Service Area,Service Division,Expense Type,Expense Code,Detailed Expense Type,Payment Date,Transaction Number,Amount Exc VAT,Supplier Name
Adult and Health Services,Public Health CC0450,Third Party Payments,460803,Contract Payments,01/06/2020,3744368-3910017812,"173,748.00",CO DURHAM & DARLINGTON NHS FOUNDATION TRUST.
Adult and Health Services,Public Health CC0450,Third Party Payments,460803,Contract Payments,01/06/2020,3744368-3910017813,"24,964.00",CO DURHAM & DARLINGTON NHS FOUNDATION TRUST.
Adult and Health Services,Public Health CC0450,Premises,145009,Cleaning and Domestic Supplies,01/06/2020,3744425-INV-2031,"1,447.80",QUALITY CLEANING SERVICES (NORTHERN) LTD.
Adult and Health Services,COVID19 - Adults and Health Services,Premises,145037,Cleaning and Domestic Supplies,01/06/2020,3744437-INV746418,"36,000.00",SMI INT GROUP LTD.
Adult and Health Services,COVID19 - Adults and Health Services,Premises,145037,Cleaning and Domestic Supplies,01/06/2020,3744437-INV747676,"144,000.00",SMI INT GROUP LTD.
Children and Young Peoples Services,Head of Childrens Social Care,Transport,230005,Contract Hire,01/06/2020,3744342-APR-20,"8,175.30",AABAT TAXIS.
Children and Young Peoples Services,Head of Education and Skills,Transport,230005,Contract Hire,01/06/2020,3744342-COVID19-EST-JUNE-AWH-1302-WV125,696.00,AABAT TAXIS.
Children and Young Peoples Services,Head of Childrens Social Care,Transport,230005,Contract Hire,01/06/2020,3744342-MAR-20,"2,043.00",AABAT TAXIS.
Children and Young Peoples Services,Head of Childrens Social Care,Transport,230005,Contract Hire,01/06/2020,3744342-MAY-20,"8,175.30",AABAT TAXIS.
Children and Young Peoples Services,Head of Education and Skills,Transport,230012,Contract Hire,01/06/2020,3744343-COVID19-EST-JUNE-CYPS-1112-S023,653.48,ABA TAXIS.
Children and Young Peoples Services,Childrens Services Operational Support,Supplies and Services,338026,Services,01/06/2020,3744363-MAS-51,"1,384.25",CHOICES & VOICES CARE LTD.
Children and Young Peoples Services,Head of Education and Skills,Transport,230031,Contract Hire,01/06/2020,3744364-COVID19-EST-JUNE-CYPS-420-8021,926.52,CHRISTOPHER JAMES GRIERSON T/A GRIERSONS COACHES.
Children and Young Peoples Services,Head of Education and Skills,Transport,230031,Contract Hire,01/06/2020,3744364-COVID19-EST-JUNE-CYPS-432-8022,"1,054.81",CHRISTOPHER JAMES GRIERSON T/A GRIERSONS COACHES.
Children and Young Peoples Services,Head of Education and Skills,Transport,230005,Contract Hire,01/06/2020,3744372-COVID19-EST-JUNE-AWH-1137-SED111,545.75,D IRVING T/A BJ TAXIS.
Children and Young Peoples Services,Head of Education and Skills,Transport,230031,Contract Hire,01/06/2020,3744387-COVID19-EST-JUNE-CYPS-454-8026,"1,082.25",GARNETTS LTD (COACHES).
Neighbourhoods and Climate Change,Technical Services CM0300,Supplies and Services,304221,Equipment and Materials,01/06/2020,3744345-29831850,685.64,AGGREGATE INDUSTRIES UK LTD.
Neighbourhoods and Climate Change,Technical Services CM0300,Supplies and Services,304221,Equipment and Materials,01/06/2020,3744345-29836207,"1,198.04",AGGREGATE INDUSTRIES UK LTD.
Neighbourhoods and Climate Change,Technical Services CM0300,Supplies and Services,304221,Equipment and Materials,01/06/2020,3744345-29840723,"1,179.74",AGGREGATE INDUSTRIES UK LTD.
Neighbourhoods and Climate Change,Technical Services CM0300,Supplies and Services,304221,Equipment and Materials,01/06/2020,3744345-29845451,966.24,AGGREGATE INDUSTRIES UK LTD.
Neighbourhoods and Climate Change,Environmental Services,Third Party Payments,430101,Rendered by Private Contractors,01/06/2020,3744376-IV1252054,"2,104.32",DIRECT TYRE MANAGEMENT LTD (DTM).
Neighbourhoods and Climate Change,Environmental Services,Supplies and Services,372009,Subscriptions E372,01/06/2020,3744381-Y00005619T,"2,731.25",ENVIRONMENT AGENCY.
Neighbourhoods and Climate Change,Technical Services CM0300,Stock A926,926900,Stock in hand-Inventory system,01/06/2020,3744389-06/067117,500.00,GREENHAM TRADING LTD.
Neighbourhoods and Climate Change,Community Protection,Supplies and Services,338045,Services,01/06/2020,3744408-112751,"1,132.50",REDACTED - PAYMENT TO INDIVIDUAL
Neighbourhoods and Climate Change,Technical Services CM0300,Third Party Payments,430100,Rendered by Private Contractors,01/06/2020,3744420-164949,"10,400.10",PREMIER TRAFFIC MANAGEMENT LTD.
Neighbourhoods and Climate Change,Environmental Services,Supplies and Services,304221,Equipment and Materials,01/06/2020,3744431-RSIN0337202,"1,545.00",RIGBY TAYLOR LTD.
Neighbourhoods and Climate Change,Environmental Services,Supplies and Services,304221,Equipment and Materials,01/06/2020,3744444-28613,"1,161.50",TELESHORE UK LTD.
Neighbourhoods and Climate Change,Technical Services CM0300,Stock A926,926900,Stock in hand-Inventory system,01/06/2020,3744445-NSIN00036000,652.80,THOMAS OWEN & SONS (NEWCASTLE) LTD.
Neighbourhoods and Climate Change,Technical Services CM0300,Stock A926,926900,Stock in hand-Inventory system,01/06/2020,3744445-NSIN00036003,707.67,THOMAS OWEN & SONS (NEWCASTLE) LTD.
Neighbourhoods and Climate Change,Technical Services CM0300,Stock A926,926900,Stock in hand-Inventory system,01/06/2020,3744445-NSIN00036004,924.86,THOMAS OWEN & SONS (NEWCASTLE) LTD.
Neighbourhoods and Climate Change,Technical Services CM0300,Stock A926,926900,Stock in hand-Inventory system,01/06/2020,3744445-NSIN00036005,"1,289.07",THOMAS OWEN & SONS (NEWCASTLE) LTD.
Neighbourhoods and Climate Change,Technical Services CM0300,Stock A926,926900,Stock in hand-Inventory system,01/06/2020,3744455-68004875,755.60,WOLSELEY UK LTD.
Non-Service Specific,Non Service Specific-Financing,Long Term Debtors,924001,Car loans,01/06/2020,3744353-117197,793.00,ARRIVA DURHAM COUNTY LTD.
"Regeneration, Economy and Growth",Corporate Property and Land,Supplies and Services,304221,Equipment and Materials,01/06/2020,3744344-11261,"1,656.80",AFTERWOOD LTD.
"Regeneration, Economy and Growth",Corporate Property and Land,Premises,120037,Energy Costs,01/06/2020,3744344-11343,"1,962.00",AFTERWOOD LTD.
"Regeneration, Economy and Growth",Development and Housing,Supplies and Services,342051,Computers and Communications,01/06/2020,3744351-9949132,956.43,ANCHOR COMPUTER SYSTEMS LTD.
"Regeneration, Economy and Growth",Business Durham CL0850,Supplies and Services,338066,Services,01/06/2020,3744358-65695/0242,"5,800.00",CANDLE LEARNING LTD.
"Regeneration, Economy and Growth",Corporate Property and Land,Supplies and Services,304221,Equipment and Materials,01/06/2020,3744379-059-263533,"1,261.75",EDMUNDSON ELECTRICAL LTD.
"Regeneration, Economy and Growth",Culture Sport and Tourism,Premises,145023,Cleaning and Domestic Supplies,01/06/2020,3744389-06/064056,"1,211.24",GREENHAM TRADING LTD.
"Regeneration, Economy and Growth",Development and Housing,Supplies and Services,338042,Services,01/06/2020,3744401-167500-12/05/2020,"1,287.50",LANDMARK CHAMBERS.
"Regeneration, Economy and Growth",Corporate Property and Land,Third Party Payments,430100,Rendered by Private Contractors,01/06/2020,3744419-22579,"2,156.60",POLAR (NE) LTD.
"Regeneration, Economy and Growth",Culture Sport and Tourism,Supplies and Services,312013,Newspapers books and periodicals E312,01/06/2020,3744422-70628734,"12,306.44",PROQUEST LLC.
"Regeneration, Economy and Growth",Corporate Property and Land,Supplies and Services,304221,Equipment and Materials,01/06/2020,3744442-383937,904.20,T CROSSLING & CO LTD.
"Regeneration, Economy and Growth",Corporate Property and Land,Supplies and Services,304221,Equipment and Materials,01/06/2020,3744446-123796,"1,050.00",REDACTED - PAYMENT TO INDIVIDUAL
"Regeneration, Economy and Growth",Business Durham CL0850,Supplies and Services,338066,Services,01/06/2020,3744451-50574,"10,976.00",UNW LLP.
Resources BK0010,Business Support,Supplies and Services,384199,Miscellaneous Expenses,01/06/2020,3744348-C35516,"1,963.20",ALLIED PUBLICITY SERVICES (MANCHESTER) LTD.
Resources BK0010,Digital and Customer Services,Stock A926,926900,Stock in hand-Inventory system,01/06/2020,3744374-7402619263,510.99,DELL COMPUTER CORPORATION LTD.
Resources BK0010,Legal & Democratic Services,Supplies and Services,338042,Services,01/06/2020,3744375-354072/INVRR117,700.00,DERE STREET BARRISTERS.
Resources BK0010,Legal & Democratic Services,Supplies and Services,338042,Services,01/06/2020,3744375-357693/INVSJT55,550.00,DERE STREET BARRISTERS.
Resources BK0010,Finance & Transactional Services,Supplies and Services,372009,Subscriptions E372,01/06/2020,3744392-1136,"8,950.00",IIZUKA SOFTWARE TECHNOLOGIES LTD.
Resources BK0010,Corporate Finance & Commercial Services,Supplies and Services,342051,Computers and Communications,01/06/2020,3744435-IN0001755,"5,600.00",SAFETYCULTURE PTY LTD.
Adult and Health Services,Head of Adults,Third Party Payments,478151,Purchase of Care,02/06/2020,3745121-1140,"10,936.80",ACCEPT CARE LTD.
Adult and Health Services,Head of Adults,Transport,230005,Contract Hire,02/06/2020,3745134-EAS193-APRIL,"1,800.00",BLACKHALL TAXIS.
Adult and Health Services,Public Health CC0450,Third Party Payments,460803,Contract Payments,02/06/2020,3745192-2510033292,"4,139.88",HARROGATE & DISTRICT NHS FOUNDATION TRUST.
Adult and Health Services,Head of Adults,Supplies and Services,384199,Miscellaneous Expenses,02/06/2020,3745232-20083,"27,200.00",ONETOUCH TELECARE LTD T/A ONETOUCH HEALTHCARE.
Adult and Health Services,Head of Adults,Transport,230005,Contract Hire,02/06/2020,3745267-2056,"1,804.00",SIMONS TAXIS.
Children and Young Peoples Services,Head of Education and Skills,Transport,230007,Contract Hire,02/06/2020,3745135-28872,600.30,BLUELINE TAXIS.
Children and Young Peoples Services,Head of Early Help Inclusion & Vulnerable Children.,Supplies and Services,342051,Computers and Communications,02/06/2020,3745198-200508,"1,103.00",I2N LTD.
Children and Young Peoples Services,Head of Education and Skills,Construction work A908,908105,Construction work,02/06/2020,3745245-900884833,"22,847.75",PORTAKABIN LTD.
Children and Young Peoples Services,Head of Childrens Social Care,Third Party Payments,440046,Other third party payments E440,02/06/2020,3745306-INV-0463,800.32,WE CARE RECRUITMENT SOLUTIONS LTD.
Neighbourhoods and Climate Change,Environmental Services,Third Party Payments,460305,Contract Payments,02/06/2020,3745147-CN30028025,829.38,CITRON HYGIENE UK LTD.
Neighbourhoods and Climate Change,Technical Services CM0300,Stock A926,926900,Stock in hand-Inventory system,02/06/2020,3745150-679617,"5,400.00",CMT EQUIPMENT LTD.
Neighbourhoods and Climate Change,Technical Services CM0300,Fees,901002,Consultants fees 901002,02/06/2020,3745165-10612,"1,323.00",DUNELM GEOTECHNICAL & ENVIRONMENTAL LTD.
Neighbourhoods and Climate Change,Environmental Services,Supplies and Services,304221,Equipment and Materials,02/06/2020,3745175-6863602,"9,021.60",ESE WORLD LTD.
Neighbourhoods and Climate Change,Environmental Services,Supplies and Services,304221,Equipment and Materials,02/06/2020,3745175-6863764,"1,288.80",ESE WORLD LTD.
Neighbourhoods and Climate Change,Environmental Services,Supplies and Services,304221,Equipment and Materials,02/06/2020,3745175-6864454,"2,577.60",ESE WORLD LTD.
Neighbourhoods and Climate Change,Environmental Services,Supplies and Services,304221,Equipment and Materials,02/06/2020,3745175-6864787,"12,888.00",ESE WORLD LTD.
Neighbourhoods and Climate Change,Environmental Services,Supplies and Services,304252,Equipment and Materials,02/06/2020,3745179-174613,"1,415.50",FR SHARROCK LTD.
Neighbourhoods and Climate Change,Technical Services CM0300,Supplies and Services,304357,Equipment and Materials,02/06/2020,3745182-DCC170520,"4,865.20",GAP GROUP LTD.
Neighbourhoods and Climate Change,Technical Services CM0300,Stock A926,926900,Stock in hand-Inventory system,02/06/2020,3745212-0113/00086741,"1,656.00",JT DOVE LTD.
Neighbourhoods and Climate Change,Technical Services CM0300,Supplies and Services,304358,Equipment and Materials,02/06/2020,3745219-5931,726.00,MAKEPEACE MOTORS.
Neighbourhoods and Climate Change,Technical Services CM0300,Supplies and Services,304358,Equipment and Materials,02/06/2020,3745219-5932,726.00,MAKEPEACE MOTORS.
Neighbourhoods and Climate Change,Technical Services CM0300,Supplies and Services,304221,Equipment and Materials,02/06/2020,3745221-Z000546726,"1,416.24",MARSHALLS MONO LTD.
Neighbourhoods and Climate Change,Environmental Services,Supplies and Services,304221,Equipment and Materials,02/06/2020,3745228-SI/04417828,858.48,NOMIX ENVIRO LTD.
Neighbourhoods and Climate Change,Environmental Services,Supplies and Services,338027,Services,02/06/2020,3745271-0000822083,"4,815.80",SOCOTEC UK LTD.
Neighbourhoods and Climate Change,Environmental Services,Supplies and Services,342033,Computers and Communications,02/06/2020,3745281-133366,"2,702.15",SWITCHSHOP LTD.
"Regeneration, Economy and Growth",Culture Sport and Tourism,Supplies and Services,384237,Miscellaneous Expenses,02/06/2020,3745118-DM-1364349,887.75,4IMPRINT DIRECT LTD.
"Regeneration, Economy and Growth",Business Durham CL0850,Supplies and Services,338027,Services,02/06/2020,3745138-J0023,"643,567.85",BUCKINGHAMSHIRE PROPERTIES LTD.
"Regeneration, Economy and Growth",Business Durham CL0850,Supplies and Services,338027,Services,02/06/2020,3745138-J0024,"14,204.54",BUCKINGHAMSHIRE PROPERTIES LTD.
"Regeneration, Economy and Growth",Culture Sport and Tourism,Premises,120037,Energy Costs,02/06/2020,3745140-32908145,591.36,CALOR GAS LTD.
"Regeneration, Economy and Growth",Culture Sport and Tourism,Premises,145050,Cleaning and Domestic Supplies,02/06/2020,3745147-CN30024583,"3,393.96",CITRON HYGIENE UK LTD.
"Regeneration, Economy and Growth",Culture Sport and Tourism,Premises,145023,Cleaning and Domestic Supplies,02/06/2020,3745185-06/066685,"1,031.82",GREENHAM TRADING LTD.
"Regeneration, Economy and Growth",Transport and Contracted Services,Supplies and Services,384540,Miscellaneous Expenses,02/06/2020,3745187-INV-0315,"1,207.50",GRM MAPPING LTD.
"Regeneration, Economy and Growth",Development and Housing,Supplies and Services,372009,Subscriptions E372,02/06/2020,3745193-50184486,"5,395.00",HAYMARKET MEDIA GROUP LTD.
"Regeneration, Economy and Growth",Corporate Property and Land,Supplies and Services,384199,Miscellaneous Expenses,02/06/2020,3745259-TEC547586,797.00,RPS CONSULTING SERVICES LTD.
"Regeneration, Economy and Growth",Transport and Contracted Services,Supplies and Services,304245,Equipment and Materials,02/06/2020,3745293-3IN/10356224,"7,497.00",TUNSTALL HEALTHCARE (UK) LTD.
"Regeneration, Economy and Growth",Transport and Contracted Services,Supplies and Services,304245,Equipment and Materials,02/06/2020,3745293-3IN/10356290,"2,400.00",TUNSTALL HEALTHCARE (UK) LTD.
"Regeneration, Economy and Growth",Culture Sport and Tourism,Supplies and Services,384956,Miscellaneous Expenses,02/06/2020,3745296-PPL-TD-043812,"16,780.50",UKACTIVE.
"Regeneration, Economy and Growth",Corporate Property and Land,Supplies and Services,338066,Services,02/06/2020,3745308-3477677,"2,189.00",WOMBLE BOND DICKINSON (UK) LLP.
Resources BK0010,Legal & Democratic Services,Supplies and Services,338025,Services,02/06/2020,3745184-F1998,540.00,GORDON FLETCHER & SONS LTD.
Resources BK0010,Digital and Customer Services,Stock A926,926900,Stock in hand-Inventory system,02/06/2020,3745203-4854818,740.00,INSIGHT DIRECT (UK) LTD.
Resources BK0010,Corporate Finance & Commercial Services,Supplies and Services,342053,Computers and Communications,02/06/2020,3745234-1762531,"10,936.50",ORACLE CORPORATION UK LTD.
Resources BK0010,Finance & Transactional Services,Supplies and Services,340001,Postages E340,02/06/2020,3745258-9060881165,"9,179.52",ROYAL MAIL GROUP PLC.
Resources BK0010,Business Support,Supplies and Services,340001,Postages E340,02/06/2020,3745258-9060944309,"2,910.00",ROYAL MAIL GROUP PLC.
Resources BK0010,Legal & Democratic Services,Supplies and Services,342051,Computers and Communications,02/06/2020,3745280-70584,"1,363.50",SWINBURNE MADDISON.
Resources BK0010,Digital and Customer Services,Supplies and Services,342051,Computers and Communications,02/06/2020,3745283-6022,"2,250.00",SYRENIS LTD.
Resources BK0010,Digital and Customer Services,Supplies and Services,344015,Telephones,02/06/2020,3745303-OA77652,"1,890.00",VODAFONE LTD.
Adult and Health Services,Commissioning inc Supporting People,Third Party Payments,479111,Purchase of Care,03/06/2020,3745319-1970447,"3,297.48",ANCHOR HANOVER GROUP.
Adult and Health Services,Commissioning inc Supporting People,Third Party Payments,442002,Supporting People E442,03/06/2020,3745331-1970414,"16,448.04",BID SERVICES.
Adult and Health Services,Commissioning inc Supporting People,Third Party Payments,442002,Supporting People E442,03/06/2020,3745371-1970405,"19,868.48",CREATIVE SUPPORT LTD.
Adult and Health Services,Commissioning inc Supporting People,Third Party Payments,441001,Supporting People E441,03/06/2020,3745384-1970443,"25,243.12",DURHAM ACTION ON SINGLE HOUSING LTD.
Adult and Health Services,Commissioning inc Supporting People,Third Party Payments,441001,Supporting People E441,03/06/2020,3745389-1970412,"5,483.40",EAST DURHAM COMMUNITY INITIATIVES LTD.
Adult and Health Services,Commissioning inc Supporting People,Third Party Payments,442002,Supporting People E442,03/06/2020,3745403-1970438,"23,343.56",FOUNDATION.
Adult and Health Services,Commissioning inc Supporting People,Third Party Payments,441001,Supporting People E441,03/06/2020,3745419-1970407,"18,082.80",HARBOUR SUPPORT SERVICES.
Adult and Health Services,Head of Adults,Third Party Payments,478101,Purchase of Care,03/06/2020,3745423-HLC185,"8,232.00",HIGHLEA CARE LTD.
Adult and Health Services,Commissioning inc Supporting People,Third Party Payments,442002,Supporting People E442,03/06/2020,3745425-1970403,"113,942.68",HOME GROUP LTD FORMERLY STONHAM HOUSING ASSOCIATION LTD.
Adult and Health Services,Commissioning inc Supporting People,Third Party Payments,441001,Supporting People E441,03/06/2020,3745425-1970416,"26,849.32",HOME GROUP LTD FORMERLY STONHAM HOUSING ASSOCIATION LTD.
Adult and Health Services,Commissioning inc Supporting People,Third Party Payments,479111,Purchase of Care,03/06/2020,3745425-1970419,964.80,HOME GROUP LTD FORMERLY STONHAM HOUSING ASSOCIATION LTD.
Adult and Health Services,Commissioning inc Supporting People,Third Party Payments,441001,Supporting People E441,03/06/2020,3745425-1970444,"54,465.72",HOME GROUP LTD FORMERLY STONHAM HOUSING ASSOCIATION LTD.
Adult and Health Services,Commissioning inc Supporting People,Third Party Payments,442002,Supporting People E442,03/06/2020,3745425-1970456,"27,962.72",HOME GROUP LTD FORMERLY STONHAM HOUSING ASSOCIATION LTD.
Adult and Health Services,Commissioning inc Supporting People,Third Party Payments,442002,Supporting People E442,03/06/2020,3745429-1970404,"5,668.48",HUMANKIND CHARITY.
Adult and Health Services,Commissioning inc Supporting People,Third Party Payments,442002,Supporting People E442,03/06/2020,3745429-1970441,"27,885.68",HUMANKIND CHARITY.
Adult and Health Services,Commissioning inc Supporting People,Third Party Payments,442002,Supporting People E442,03/06/2020,3745471-1970409,"5,469.72",MENTAL HEALTH MATTERS.
Adult and Health Services,Commissioning inc Supporting People,Third Party Payments,442002,Supporting People E442,03/06/2020,3745475-1970448,"2,620.48",MOVING ON HOUSING.
Adult and Health Services,Public Health CC0450,Third Party Payments,460803,Contract Payments,03/06/2020,3745501-17298/14,"5,462.93",PIONEERING CARE PARTNERSHIP.
Adult and Health Services,Public Health CC0450,Third Party Payments,460803,Contract Payments,03/06/2020,3745501-17302/14,"7,326.42",PIONEERING CARE PARTNERSHIP.
Adult and Health Services,Commissioning inc Supporting People,Third Party Payments,442002,Supporting People E442,03/06/2020,3745517-1970410,"11,729.08",RICHMOND FELLOWSHIP.
Adult and Health Services,Commissioning inc Supporting People,Third Party Payments,441001,Supporting People E441,03/06/2020,3745517-1970411,"9,423.88",RICHMOND FELLOWSHIP.
Adult and Health Services,Commissioning inc Supporting People,Third Party Payments,442002,Supporting People E442,03/06/2020,3745534-1970418,"6,331.08",SINGLE HOMELESS ACTION INITIATIVE IN DURHAM LTD (SHAID).
Adult and Health Services,Commissioning inc Supporting People,Third Party Payments,441001,Supporting People E441,03/06/2020,3745548-1970415,"19,231.20",THE CYRENIANS LTD T/A CHANGING LIVES.
Adult and Health Services,Commissioning inc Supporting People,Third Party Payments,442002,Supporting People E442,03/06/2020,3745551-1970434,"5,088.84",THIRTEEN HOUSING GROUP LTD.
Adult and Health Services,Commissioning inc Supporting People,Third Party Payments,441001,Supporting People E441,03/06/2020,3745551-1970435,"8,027.68",THIRTEEN HOUSING GROUP LTD.
Adult and Health Services,Commissioning inc Supporting People,Third Party Payments,441001,Supporting People E441,03/06/2020,3745551-1970436,"11,136.08",THIRTEEN HOUSING GROUP LTD.
Adult and Health Services,Commissioning inc Supporting People,Third Party Payments,441001,Supporting People E441,03/06/2020,3745551-1970457,"11,797.88",THIRTEEN HOUSING GROUP LTD.
Adult and Health Services,Commissioning inc Supporting People,Third Party Payments,441001,Supporting People E441,03/06/2020,3745574-1970406,"2,367.20",WADDINGTON STREET CENTRE LTD.
Adult and Health Services,Commissioning inc Supporting People,Third Party Payments,442002,Supporting People E442,03/06/2020,3745574-1970440,"1,390.14",WADDINGTON STREET CENTRE LTD.
Adult and Health Services,Commissioning inc Supporting People,Third Party Payments,441001,Supporting People E441,03/06/2020,3745578-1970408,"7,404.40",WEAR VALLEY WOMENS AID LTD.
Children and Young Peoples Services,Head of Education and Skills,Transport,230008,Contract Hire,03/06/2020,3745324-763,"1,536.00",AT TAXIS LTD.
Children and Young Peoples Services,Head of Education and Skills,Transport,230034,Contract Hire,03/06/2020,3745324-765,"1,176.00",AT TAXIS LTD.
Children and Young Peoples Services,Head of Education and Skills,Transport,230008,Contract Hire,03/06/2020,3745340-3-APRIL,"1,668.00",BRIAN PURVIS T/A BJ`S TAXIS.
Children and Young Peoples Services,Head of Education and Skills,Transport,230008,Contract Hire,03/06/2020,3745343-S00608,998.76,C & R TAXIS.
Children and Young Peoples Services,Head of Education and Skills,Transport,230008,Contract Hire,03/06/2020,3745354-SS8-APRIL,"1,566.84",CHIPPERS TAXIS.
Children and Young Peoples Services,Head of Childrens Social Care,Third Party Payments,440039,Other third party payments E440,03/06/2020,3745357-3496,800.00,CITY OF SUNDERLAND YMCA LTD.
Children and Young Peoples Services,Head of Childrens Social Care,Third Party Payments,440039,Other third party payments E440,03/06/2020,3745357-3499,800.00,CITY OF SUNDERLAND YMCA LTD.
Children and Young Peoples Services,Head of Childrens Social Care,Third Party Payments,440038,Other third party payments E440,03/06/2020,3745357-3500,800.00,CITY OF SUNDERLAND YMCA LTD.
Children and Young Peoples Services,Head of Childrens Social Care,Third Party Payments,440039,Other third party payments E440,03/06/2020,3745357-3504,800.00,CITY OF SUNDERLAND YMCA LTD.
Children and Young Peoples Services,Head of Childrens Social Care,Third Party Payments,440039,Other third party payments E440,03/06/2020,3745357-3505,800.00,CITY OF SUNDERLAND YMCA LTD.
Children and Young Peoples Services,Head of Childrens Social Care,Third Party Payments,440039,Other third party payments E440,03/06/2020,3745357-3523,800.00,CITY OF SUNDERLAND YMCA LTD.
Children and Young Peoples Services,Head of Childrens Social Care,Third Party Payments,440039,Other third party payments E440,03/06/2020,3745357-3526,800.00,CITY OF SUNDERLAND YMCA LTD.
Children and Young Peoples Services,Head of Childrens Social Care,Third Party Payments,440038,Other third party payments E440,03/06/2020,3745357-3527,800.00,CITY OF SUNDERLAND YMCA LTD.
Children and Young Peoples Services,Head of Childrens Social Care,Third Party Payments,440039,Other third party payments E440,03/06/2020,3745357-3530,800.00,CITY OF SUNDERLAND YMCA LTD.
Children and Young Peoples Services,Head of Childrens Social Care,Third Party Payments,440039,Other third party payments E440,03/06/2020,3745357-3531,800.00,CITY OF SUNDERLAND YMCA LTD.
Children and Young Peoples Services,Head of Childrens Social Care,Third Party Payments,440039,Other third party payments E440,03/06/2020,3745357-3543,800.00,CITY OF SUNDERLAND YMCA LTD.
Children and Young Peoples Services,Head of Childrens Social Care,Third Party Payments,440039,Other third party payments E440,03/06/2020,3745357-3546,800.00,CITY OF SUNDERLAND YMCA LTD.
Children and Young Peoples Services,Head of Childrens Social Care,Third Party Payments,440038,Other third party payments E440,03/06/2020,3745357-3547,800.00,CITY OF SUNDERLAND YMCA LTD.
Children and Young Peoples Services,Head of Childrens Social Care,Third Party Payments,440039,Other third party payments E440,03/06/2020,3745357-3551,800.00,CITY OF SUNDERLAND YMCA LTD.
Children and Young Peoples Services,Head of Childrens Social Care,Third Party Payments,440038,Other third party payments E440,03/06/2020,3745357-3554,800.00,CITY OF SUNDERLAND YMCA LTD.
Children and Young Peoples Services,Head of Education and Skills,Transport,230008,Contract Hire,03/06/2020,314220-COVID19-EST-JUNE-CYPS-971-N010,653.49,COLIN STEWART T/A STEWART`S TAXIS.
Children and Young Peoples Services,Head of Education and Skills,Transport,230008,Contract Hire,03/06/2020,3745373-DI202004,"1,435.00",D&I TAXIS.
Children and Young Peoples Services,Head of Childrens Social Care,Employees,080025,Agency Staff,03/06/2020,3745407-2438990,"91,249.28",GEOMETRIC RESULTS INTERNATIONAL.
Children and Young Peoples Services,Head of Education and Skills,Transport,230008,Contract Hire,03/06/2020,3745421-8-W041,"1,780.00",HENRY FOREMAN T/A HENRY`S TAXIS.
Children and Young Peoples Services,Head of Education and Skills,Transport,230007,Contract Hire,03/06/2020,3745424-17667,"3,394.00",HODGSONS COACH OPERATORS LTD.
Children and Young Peoples Services,Head of Education and Skills,Transport,230007,Contract Hire,03/06/2020,3745424-17668,"2,399.16",HODGSONS COACH OPERATORS LTD.
Children and Young Peoples Services,Head of Childrens Social Care,Third Party Payments,425023,Rendered by Voluntary Organisations,03/06/2020,3745426-5477,"3,602.50",HOWARD HOUSE CARE LTD.
Children and Young Peoples Services,Head of Childrens Social Care,Third Party Payments,425023,Rendered by Voluntary Organisations,03/06/2020,3745426-5493,"3,602.50",HOWARD HOUSE CARE LTD.
Children and Young Peoples Services,Head of Education and Skills,Transport,230010,Contract Hire,03/06/2020,3745443-1772,"1,548.00",JDS PRIVATE HIRE DURHAM.
Children and Young Peoples Services,Head of Education and Skills,Transport,230008,Contract Hire,03/06/2020,3745443-1774,"2,280.00",JDS PRIVATE HIRE DURHAM.
Children and Young Peoples Services,Head of Education and Skills,Transport,230008,Contract Hire,03/06/2020,3745443-1775,"2,341.40",JDS PRIVATE HIRE DURHAM.
Children and Young Peoples Services,Head of Education and Skills,Transport,230003,Contract Hire,03/06/2020,3745446-30190,"4,515.00",JIM HUGHES COACHES LTD.
Children and Young Peoples Services,Head of Early Help Inclusion & Vulnerable Children.,Supplies and Services,384199,Miscellaneous Expenses,03/06/2020,3745469-SI-244,"1,260.00",MAX-FITNESS.
Children and Young Peoples Services,Head of Childrens Social Care,Third Party Payments,440046,Other third party payments E440,03/06/2020,3745577-INV-0485-2020,673.44,WE CARE RECRUITMENT SOLUTIONS LTD.
Children and Young Peoples Services,Head of Childrens Social Care,Third Party Payments,440046,Other third party payments E440,03/06/2020,3745577-INV-0488-2020,"4,616.48",WE CARE RECRUITMENT SOLUTIONS LTD.
Children and Young Peoples Services,Head of Childrens Social Care,Third Party Payments,440046,Other third party payments E440,03/06/2020,3745577-INV-0492-2020,800.32,WE CARE RECRUITMENT SOLUTIONS LTD.
Children and Young Peoples Services,Head of Childrens Social Care,Third Party Payments,440046,Other third party payments E440,03/06/2020,3745577-INV-0513,683.20,WE CARE RECRUITMENT SOLUTIONS LTD.
Children and Young Peoples Services,Head of Childrens Social Care,Third Party Payments,440046,Other third party payments E440,03/06/2020,3745577-INV-0515-2020,"5,172.80",WE CARE RECRUITMENT SOLUTIONS LTD.
Dedicated Schools Grant BG0015,DSG High Needs Block,Central Support and Other Recharges,615208,Support Services,03/06/2020,3745390-RES-06-2020-005,"2,839.92",EDEN LEARNING TRUST T/A FERRYHILL BUSINESS & ENTERPRISE COLLEGE.
Dedicated Schools Grant BG0015,DSG High Needs Block,Supplies and Services,304259,Equipment and Materials,03/06/2020,3745405-178796,"1,429.00",G & S SMIRTHWAITE LTD.
Dedicated Schools Grant BG0015,DSG High Needs Block,Third Party Payments,425005,Rendered by Voluntary Organisations,03/06/2020,3745452-0000002537,"1,990.00",KEYS GROUP T/A ALLIANCE CARE AND EDUCATION LTD.
Dedicated Schools Grant BG0015,DSG High Needs Block,Central Support and Other Recharges,615208,Support Services,03/06/2020,3745483-RES-06-2020-006,"21,772.72",NEW COLLEGE ACADEMIES TRUST - CONSETT ACADEMY.
Excluded Services,ADASS / ADCS,Supplies and Services,338027,Services,03/06/2020,3745451-COVIDSUPP31/5/20,"1,442.00",KATHY CLARK (SOCIAL CARE CONSULTANT).
Neighbourhoods and Climate Change,Environmental Services,Third Party Payments,430100,Rendered by Private Contractors,03/06/2020,3745317-R189/20/91966,"1,245.00",ALAN M RANSON FUNERAL SERVICE.
Neighbourhoods and Climate Change,Environmental Services,Third Party Payments,430100,Rendered by Private Contractors,03/06/2020,3745321-INV-3477,"1,199.71",ANNFIELD AUTO SERVICES.
Neighbourhoods and Climate Change,Environmental Services,Third Party Payments,430100,Rendered by Private Contractors,03/06/2020,3745321-INV-3479,515.00,ANNFIELD AUTO SERVICES.
Neighbourhoods and Climate Change,Environmental Services,Third Party Payments,430100,Rendered by Private Contractors,03/06/2020,3745356-CN30031072,"1,962.96",CITRON HYGIENE UK LTD.
Neighbourhoods and Climate Change,Environmental Services,Stock A926,926004,Stock,03/06/2020,3745377-96389282,536.51,DENNIS EAGLE LTD T/A TERBERG MATEC (UK) LTD.
Neighbourhoods and Climate Change,Environmental Services,Third Party Payments,430113,Rendered by Private Contractors,03/06/2020,3745430-W201781,"314,585.30",HW MARTIN HOLDINGS LTD.
Neighbourhoods and Climate Change,Technical Services CM0300,Supplies and Services,304221,Equipment and Materials,03/06/2020,3745438-730664,"1,149.13",INSTARMAC GROUP PLC.
Neighbourhoods and Climate Change,Technical Services CM0300,Stock A926,926900,Stock in hand-Inventory system,03/06/2020,3745438-732253,"1,106.00",INSTARMAC GROUP PLC.
Neighbourhoods and Climate Change,Technical Services CM0300,Construction work A908,908105,Construction work,03/06/2020,3745441-24097,550.00,JACK COUPE & SONS LTD T/A COUPE LINE.
Neighbourhoods and Climate Change,Technical Services CM0300,Stock A926,926900,Stock in hand-Inventory system,03/06/2020,3745449-0113/00088516,"1,269.93",JT DOVE LTD.
Neighbourhoods and Climate Change,Environmental Services,Supplies and Services,304221,Equipment and Materials,03/06/2020,3745484-064937,945.63,NEW ROW FARM NURSERIES.
Neighbourhoods and Climate Change,Technical Services CM0300,Third Party Payments,430100,Rendered by Private Contractors,03/06/2020,3745488-DI20339508,580.69,NORTHERN POWERGRID (NORTHEAST) LTD.
Neighbourhoods and Climate Change,Environmental Services,Transport,215022,Running Costs of Vehicles,03/06/2020,3745493-605394,"3,067.68",OIL NRG LTD.
Neighbourhoods and Climate Change,Environmental Services,Transport,215005,Running Costs of Vehicles,03/06/2020,3745493-606028,"10,228.25",OIL NRG LTD.
Neighbourhoods and Climate Change,Technical Services CM0300,Stock A926,926900,Stock in hand-Inventory system,03/06/2020,3745494-XL255088,949.52,PARK ELECTRICAL DISTRIBUTORS LTD.
Neighbourhoods and Climate Change,Technical Services CM0300,Third Party Payments,430100,Rendered by Private Contractors,03/06/2020,3745514-12448,"1,050.46",QUANTUM POWER CONNECTIONS LTD.
Neighbourhoods and Climate Change,Technical Services CM0300,Third Party Payments,430100,Rendered by Private Contractors,03/06/2020,3745514-12454,"2,839.78",QUANTUM POWER CONNECTIONS LTD.
Neighbourhoods and Climate Change,Technical Services CM0300,Third Party Payments,430100,Rendered by Private Contractors,03/06/2020,3745514-12484,"1,470.46",QUANTUM POWER CONNECTIONS LTD.
Neighbourhoods and Climate Change,Technical Services CM0300,Third Party Payments,430100,Rendered by Private Contractors,03/06/2020,3745514-12488,"1,857.33",QUANTUM POWER CONNECTIONS LTD.
Neighbourhoods and Climate Change,Environmental Services,Third Party Payments,430100,Rendered by Private Contractors,03/06/2020,3745518-739103,"1,641.15",RICKERBY LTD.
Neighbourhoods and Climate Change,Environmental Services,Third Party Payments,430100,Rendered by Private Contractors,03/06/2020,3745528-2020.1000002885,"25,000.00",SCARAB SWEEPERS LTD.
Neighbourhoods and Climate Change,Environmental Services,Transport,210057,Repair and Maintenance of Vehicles,03/06/2020,3745528-2020.1000008366,613.31,SCARAB SWEEPERS LTD.
Neighbourhoods and Climate Change,Technical Services CM0300,Stock A926,926900,Stock in hand-Inventory system,03/06/2020,3745556-103495,"1,344.00",TOTAL RENTAL SOLUTIONS.
Neighbourhoods and Climate Change,Technical Services CM0300,Stock A926,926900,Stock in hand-Inventory system,03/06/2020,3745556-103496,660.00,TOTAL RENTAL SOLUTIONS.
Neighbourhoods and Climate Change,Environmental Services,Supplies and Services,342033,Computers and Communications,03/06/2020,3745571-00513/2020,"2,560.00",VIPA UK LTD.
Neighbourhoods and Climate Change,Technical Services CM0300,Third Party Payments,460305,Contract Payments,03/06/2020,314232-2015707,"3,000.00",XAIS ASSET MANAGEMENT LTD.
"Regeneration, Economy and Growth",Culture Sport and Tourism,Supplies and Services,384956,Miscellaneous Expenses,03/06/2020,3745338-10067,"1,257.66",BRAMBLE HUB LTD.
"Regeneration, Economy and Growth",Corporate Property and Land,Supplies and Services,304221,Equipment and Materials,03/06/2020,3745348-5878,"11,655.00",CENTURY FABRICATIONS LTD.
"Regeneration, Economy and Growth",Culture Sport and Tourism,Premises,145023,Cleaning and Domestic Supplies,03/06/2020,3745356-CN30024574,624.48,CITRON HYGIENE UK LTD.
"Regeneration, Economy and Growth",Corporate Property and Land,Supplies and Services,304221,Equipment and Materials,03/06/2020,3745392-059-263848,551.87,EDMUNDSON ELECTRICAL LTD.
"Regeneration, Economy and Growth",Corporate Property and Land,Third Party Payments,430100,Rendered by Private Contractors,03/06/2020,3745404-11338,"1,015.00",FROSTREE LTD.
"Regeneration, Economy and Growth",Culture Sport and Tourism,Premises,145023,Cleaning and Domestic Supplies,03/06/2020,3745416-06/064053,"1,656.34",GREENHAM TRADING LTD.
"Regeneration, Economy and Growth",Corporate Property and Land,Supplies and Services,304221,Equipment and Materials,03/06/2020,3745439-00260694,"1,242.00",INTERNATIONAL LIFT EQUIPMENT LTD.
"Regeneration, Economy and Growth",Corporate Property and Land,Third Party Payments,430100,Rendered by Private Contractors,03/06/2020,3745448-SI-152,"2,150.00",JOHN WRAGG JOINERY & BUILDING SERVICES.
"Regeneration, Economy and Growth",Transport and Contracted Services,Intangible Assets,917001,Software capitalised licence fees,03/06/2020,3745474-IN00437451,"2,584.59",MOTT MACDONALD LTD.
"Regeneration, Economy and Growth",Development and Housing,Supplies and Services,338066,Services,03/06/2020,3745481-INV130216,"4,907.50",NATHANIEL LICHFIELD & PARTNERS LTD.
"Regeneration, Economy and Growth",Corporate Property and Land,Supplies and Services,338078,Services,03/06/2020,3745524-12038,974.00,SAFEGUARD SECURITY (NE) LTD.
"Regeneration, Economy and Growth",Corporate Property and Land,Supplies and Services,304221,Equipment and Materials,03/06/2020,3745532-10229998,510.00,SIG TRADING LTD T/A CARPET & FLOORING LTD.*
"Regeneration, Economy and Growth",Corporate Property and Land,Third Party Payments,430100,Rendered by Private Contractors,03/06/2020,3745537-7169,"1,622.00",ST ASTIER LTD.
"Regeneration, Economy and Growth",Culture Sport and Tourism,Supplies and Services,304259,Equipment and Materials,03/06/2020,3745565-US2941,"1,760.00",ULTIMATE SUPPLIES (NORTH) LTD.
"Regeneration, Economy and Growth",Culture Sport and Tourism,Supplies and Services,384199,Miscellaneous Expenses,03/06/2020,3745579-UOTR4648634,"7,536.16",WESTERN UNION BUSINESS SOLUTIONS.
"Regeneration, Economy and Growth",Development and Housing,Supplies and Services,338045,Services,03/06/2020,3745584-3477915,"8,521.00",WOMBLE BOND DICKINSON (UK) LLP.
Resources BK0010,Legal & Democratic Services,Supplies and Services,338025,Services,03/06/2020,3745361-S44997-01081,"1,010.00",CO-OPERATIVE FUNERAL CARE.
Resources BK0010,Legal & Democratic Services,Supplies and Services,338042,Services,03/06/2020,3745380-355820/INVDR733,800.00,DERE STREET BARRISTERS.
Resources BK0010,Legal & Democratic Services,Supplies and Services,338042,Services,03/06/2020,3745380-357602/INVDR734,550.00,DERE STREET BARRISTERS.
Resources BK0010,Legal & Democratic Services,Supplies and Services,338042,Services,03/06/2020,3745380-357716/INVSEB1X229,850.00,DERE STREET BARRISTERS.
Resources BK0010,Finance & Transactional Services,Supplies and Services,338045,Services,03/06/2020,3745415-12943,"5,107.50",GREENHALGH KERR.
Resources BK0010,Digital and Customer Services,Stock A926,926900,Stock in hand-Inventory system,03/06/2020,3745437-4855751,825.00,INSIGHT DIRECT (UK) LTD.
Resources BK0010,Digital and Customer Services,Supplies and Services,342051,Computers and Communications,03/06/2020,3745466-12494076,"137,937.21",MAINTEL EUROPE LTD.
Resources BK0010,Finance & Transactional Services,Supplies and Services,338066,Services,03/06/2020,3745490-91434891,"13,117.08",NORTHGATE PUBLIC SERVICES (UK) LTD.
Resources BK0010,Digital and Customer Services,Supplies and Services,342051,Computers and Communications,03/06/2020,3745535-INV02595183,"2,238.00",SOFTCAT LTD.
Resources BK0010,Business Support,Supplies and Services,384199,Miscellaneous Expenses,03/06/2020,3745568-UKSI9805,926.55,VALTECH LTD.
Adult and Health Services,COVID19 - Adults and Health Services,Premises,145037,Cleaning and Domestic Supplies,04/06/2020,3745590-38883,"1,465.00",1ST COVERALL COMPANY LTD.
Children and Young Peoples Services,Head of Early Help Inclusion & Vulnerable Children.,Supplies and Services,304516,Equipment and Materials,04/06/2020,3745594-51886,606.79,ABILITY SMART LTD.
Children and Young Peoples Services,Head of Childrens Social Care,Supplies and Services,338099,Services,04/06/2020,3745595-4818,"2,830.00",ADVANCED TRAVEL.
Children and Young Peoples Services,Head of Childrens Social Care,Third Party Payments,425021,Rendered by Voluntary Organisations,04/06/2020,3745607-BG-0207,"10,610.90",BESPOKE GUARDIANS LTD.
Children and Young Peoples Services,Head of Education and Skills,Transport,230016,Contract Hire,04/06/2020,3745610-30942,"1,012.00",BLUELINE TAXIS.
Children and Young Peoples Services,Head of Education and Skills,Transport,230008,Contract Hire,04/06/2020,3745624-INV-042,672.00,CLARE LYNSEY STEWART T/A K&C TAXIS.
Children and Young Peoples Services,Head of Education and Skills,Construction work A908,908105,Construction work,04/06/2020,3745661-165496,"125,883.20",ESH CONSTRUCTION LTD FORMERLY LUMSDEN & CARROLL CONSTRUCTION LTD.
Children and Young Peoples Services,Head of Education and Skills,Transport,230008,Contract Hire,04/06/2020,3745697-002,"1,400.00",LEWIS PATTISON T/A LEWIS TAXIS.
Children and Young Peoples Services,Head of Education and Skills,Transport,230010,Contract Hire,04/06/2020,3745697-003,"1,215.00",LEWIS PATTISON T/A LEWIS TAXIS.
Children and Young Peoples Services,Head of Education and Skills,Transport,230010,Contract Hire,04/06/2020,3745697-004,"1,620.00",LEWIS PATTISON T/A LEWIS TAXIS.
Children and Young Peoples Services,Head of Education and Skills,Transport,230008,Contract Hire,04/06/2020,3745728-DCC302,"2,929.20",PAUL`S TAXIS..
Children and Young Peoples Services,Head of Education and Skills,Transport,230034,Contract Hire,04/06/2020,3745734-3422-APRIL,800.00,PETER`S TAXIS.
Children and Young Peoples Services,Head of Education and Skills,Transport,230008,Contract Hire,04/06/2020,3745752-W056/08APRIL,"1,430.00",S & S TRAVEL LTD.
Children and Young Peoples Services,Head of Education and Skills,Transport,230008,Contract Hire,04/06/2020,3745752-W067/08APRIL,852.50,S & S TRAVEL LTD.
Children and Young Peoples Services,Head of Education and Skills,Transport,230008,Contract Hire,04/06/2020,3745752-W076/08APRIL,"1,285.35",S & S TRAVEL LTD.
Children and Young Peoples Services,Childrens Services Operational Support,Supplies and Services,384199,Miscellaneous Expenses,04/06/2020,3745767-01008000946398,"5,280.00",STHREE PARTNERSHIP LLP T/A PROGRESSIVE.
Children and Young Peoples Services,Head of Education and Skills,Transport,230007,Contract Hire,04/06/2020,3745770-26804PA,"1,710.00",T MOORE & SON.
Children and Young Peoples Services,Head of Childrens Social Care,Third Party Payments,440046,Other third party payments E440,04/06/2020,3745789-INV-0519,849.12,WE CARE RECRUITMENT SOLUTIONS LTD.
Dedicated Schools Grant BG0015,DSG High Needs Block,Central Support and Other Recharges,689988,Unclassified E690,04/06/2020,3745637-SEN-TOPUP-ADJ,"4,947.00",DENE HOUSE PRIMARY SCHOOL (ACADEMY).
Dedicated Schools Grant BG0015,DSG High Needs Block,Central Support and Other Recharges,615208,Support Services,04/06/2020,3745651-RES-06-2020-002,698.11,EDEN LEARNING TRUST T/A WOODHAM ACADEMY.
Dedicated Schools Grant BG0015,DSG High Needs Block,Central Support and Other Recharges,615208,Support Services,04/06/2020,3745651-RES-06-2020-003,558.49,EDEN LEARNING TRUST T/A WOODHAM ACADEMY.
Dedicated Schools Grant BG0015,DSG High Needs Block,Central Support and Other Recharges,689988,Unclassified E690,04/06/2020,3745674-SEN-TOPUP-ADJ,"1,551.00",HERMITAGE ACADEMY (NORTH EAST LEARNING ACADEMY).
Dedicated Schools Grant BG0015,DSG High Needs Block,Central Support and Other Recharges,689987,Unclassified E690,04/06/2020,3745676-SEN-TOPUP-ADJ,"4,579.00",HOPE WOOD ACADEMY.
Dedicated Schools Grant BG0015,DSG High Needs Block,Central Support and Other Recharges,689988,Unclassified E690,04/06/2020,3745710-SEN-TOPUP-ADJ,"1,930.00",NEW COLLEGE ACADEMIES TRUST - CONSETT ACADEMY.
Dedicated Schools Grant BG0015,DSG High Needs Block,Central Support and Other Recharges,689988,Unclassified E690,04/06/2020,3745713-SEN-TOPUP-ADJ-TEES,"1,828.00",NORTH EAST LEARNING TRUST (NELT).
Dedicated Schools Grant BG0015,DSG High Needs Block,Central Support and Other Recharges,689988,Unclassified E690,04/06/2020,3745725-SEN-TOPUP-ADJ,"5,947.00",OUSTON PRIMARY SCHOOL (PART OF JIGSAW LEARNING TRUST).
Dedicated Schools Grant BG0015,DSG High Needs Block,Central Support and Other Recharges,689988,Unclassified E690,04/06/2020,3745763-SEN-TOPUP-ADJ,"4,807.00",ST BEDES CATHOLIC ACADEMY (LANCHESTER).
Neighbourhoods and Climate Change,Technical Services CM0300,Supplies and Services,304221,Equipment and Materials,04/06/2020,3745597-29851602,977.00,AGGREGATE INDUSTRIES UK LTD.
Neighbourhoods and Climate Change,Technical Services CM0300,Supplies and Services,304221,Equipment and Materials,04/06/2020,3745597-29856304,964.00,AGGREGATE INDUSTRIES UK LTD.
Neighbourhoods and Climate Change,Technical Services CM0300,Supplies and Services,304221,Equipment and Materials,04/06/2020,3745597-29861032,"1,944.00",AGGREGATE INDUSTRIES UK LTD.
Neighbourhoods and Climate Change,Technical Services CM0300,Supplies and Services,304221,Equipment and Materials,04/06/2020,3745597-29861033,708.98,AGGREGATE INDUSTRIES UK LTD.
Neighbourhoods and Climate Change,Technical Services CM0300,Supplies and Services,304221,Equipment and Materials,04/06/2020,3745597-29866853,"1,951.00",AGGREGATE INDUSTRIES UK LTD.
Neighbourhoods and Climate Change,Technical Services CM0300,Supplies and Services,304221,Equipment and Materials,04/06/2020,3745597-29873555,686.86,AGGREGATE INDUSTRIES UK LTD.
Neighbourhoods and Climate Change,Technical Services CM0300,Supplies and Services,304221,Equipment and Materials,04/06/2020,3745597-29873556,"2,572.98",AGGREGATE INDUSTRIES UK LTD.
Neighbourhoods and Climate Change,Technical Services CM0300,Supplies and Services,304221,Equipment and Materials,04/06/2020,3745597-29873574,"1,097.00",AGGREGATE INDUSTRIES UK LTD.
Neighbourhoods and Climate Change,Technical Services CM0300,Stock A926,926900,Stock in hand-Inventory system,04/06/2020,3745604-458657,"4,377.61",BAY PLASTICS LTD.
Neighbourhoods and Climate Change,Environmental Services,Transport,210057,Repair and Maintenance of Vehicles,04/06/2020,3745606-35182248,661.44,BELL TRUCK SALES LTD T/A BELL TRUCK & VAN.
Neighbourhoods and Climate Change,Environmental Services,Transport,210057,Repair and Maintenance of Vehicles,04/06/2020,3745620-709925,617.11,CHATFIELDS T/A EVANS HALSHAW.
Neighbourhoods and Climate Change,Technical Services CM0300,Third Party Payments,430127,Rendered by Private Contractors,04/06/2020,3745634-047,"2,967.50",D & L HOPPS.
Neighbourhoods and Climate Change,Environmental Services,Third Party Payments,430101,Rendered by Private Contractors,04/06/2020,3745641-IV1278889,"2,069.85",DIRECT TYRE MANAGEMENT LTD (DTM).
Neighbourhoods and Climate Change,Environmental Services,Third Party Payments,430101,Rendered by Private Contractors,04/06/2020,3745641-IV1278891,"1,075.21",DIRECT TYRE MANAGEMENT LTD (DTM).
Neighbourhoods and Climate Change,Environmental Services,Third Party Payments,430101,Rendered by Private Contractors,04/06/2020,3745641-IV1282064,"1,047.67",DIRECT TYRE MANAGEMENT LTD (DTM).
Neighbourhoods and Climate Change,Partnerships & Community Engagement Div.,Cap Exp on Grants & Other Financial Assistance (REFCUS),918004,Contributions to other bodies 918004,04/06/2020,3745647-VOUCHER20ABCV19-WEAR008,"3,000.00",DURHAM POLICE & CRIME COMMISSIONER.
Neighbourhoods and Climate Change,Technical Services CM0300,Construction work A908,908105,Construction work,04/06/2020,3745661-165517,"29,416.05",ESH CONSTRUCTION LTD FORMERLY LUMSDEN & CARROLL CONSTRUCTION LTD.
Neighbourhoods and Climate Change,Partnerships & Community Engagement Div.,Supplies and Services,384086,Miscellaneous Expenses,04/06/2020,3745667-VOUCHER20NBCV19-CHES007,"2,000.00",GARDEN FARM & WEST LANE RESIDENTS ASSOCIATION.
Neighbourhoods and Climate Change,Environmental Services,Third Party Payments,430119,Rendered by Private Contractors,04/06/2020,3745673-116285,"1,488.36",HARPERS ENVIRONMENTAL LTD.
Neighbourhoods and Climate Change,Environmental Services,Third Party Payments,430119,Rendered by Private Contractors,04/06/2020,3745673-116286,"7,280.24",HARPERS ENVIRONMENTAL LTD.
Neighbourhoods and Climate Change,Technical Services CM0300,Supplies and Services,304221,Equipment and Materials,04/06/2020,3745690-0303/00081573,"1,322.29",JT DOVE LTD.
Neighbourhoods and Climate Change,Environmental Services,Supplies and Services,338027,Services,04/06/2020,3745695-19443,"1,450.00",LANDFORM SURVEYS LTD.
Neighbourhoods and Climate Change,Technical Services CM0300,Supplies and Services,304221,Equipment and Materials,04/06/2020,3745703-Z000544963,924.84,MARSHALLS MONO LTD.
Neighbourhoods and Climate Change,Technical Services CM0300,Third Party Payments,430100,Rendered by Private Contractors,04/06/2020,3745715-DI20340610,856.37,NORTHERN POWERGRID (NORTHEAST) LTD.
Neighbourhoods and Climate Change,Environmental Services,Transport,215005,Running Costs of Vehicles,04/06/2020,3745720-605777,"13,552.66",OIL NRG LTD.
Neighbourhoods and Climate Change,Environmental Services,Transport,215022,Running Costs of Vehicles,04/06/2020,3745720-606898,797.20,OIL NRG LTD.
Neighbourhoods and Climate Change,Technical Services CM0300,Supplies and Services,338027,Services,04/06/2020,3745723-A197845,"23,392.36",OPENREACH LLU.
Neighbourhoods and Climate Change,Partnerships & Community Engagement Div.,Supplies and Services,384086,Miscellaneous Expenses,04/06/2020,3745762-VOUCHER20NBCV19-4TOG006,"1,500.00",ST AIDANS CHILTON PAROCHIAL CHURCH COUNCIL.
Neighbourhoods and Climate Change,Environmental Services,Supplies and Services,338078,Services,04/06/2020,3745766-15861,"3,008.00",STEADFAST SECURITY SOLUTIONS LTD.
Neighbourhoods and Climate Change,Technical Services CM0300,Supplies and Services,342007,Computers and Communications,04/06/2020,3745769-SINV-2020001042,"21,700.00",SYMOLOGY LTD.
Neighbourhoods and Climate Change,Technical Services CM0300,Supplies and Services,304221,Equipment and Materials,04/06/2020,3745775-112705,"1,935.00",TOFCO LTD.
Neighbourhoods and Climate Change,Environmental Services,Supplies and Services,304259,Equipment and Materials,04/06/2020,3745784-00512/2020,"2,364.00",VIPA UK LTD.
Neighbourhoods and Climate Change,Technical Services CM0300,Supplies and Services,304221,Equipment and Materials,04/06/2020,3745792-13326,672.00,WILF HUSBAND PLANT HIRE.
Regeneration and Local Services,COVID19 - Neighbourhoods and Climate Change,Premises,145037,Cleaning and Domestic Supplies,04/06/2020,3745590-39103,"1,257.95",1ST COVERALL COMPANY LTD.
"Regeneration, Economy and Growth",Transport and Contracted Services,Fees,901002,Consultants fees 901002,04/06/2020,3745609-SIN015692,"49,197.89",BLOOM PROCUREMENT SERVICES LTD (FORMERLY NEPRO LTD).
"Regeneration, Economy and Growth",Business Durham CL0850,Supplies and Services,338029,Services,04/06/2020,3745644-10600,800.00,DPP ONE LTD.
"Regeneration, Economy and Growth",Corporate Property and Land,Supplies and Services,328041,Clothing uniforms and laundry E328,04/06/2020,3745652-059-263558,"2,200.00",EDMUNDSON ELECTRICAL LTD.
"Regeneration, Economy and Growth",Business Durham CL0850,Supplies and Services,368008,Incentives to Industrialists,04/06/2020,3745672-RED-06-2020-028,"2,500.00",GW TECHNOLOGIES LTD.
"Regeneration, Economy and Growth",Transport and Contracted Services,Construction work A908,908105,Construction work,04/06/2020,3745709-1264741,"1,303,234.33",NETWORK RAIL.
"Regeneration, Economy and Growth",Transport and Contracted Services,Premises,120009,Energy Costs,04/06/2020,3745715-DI20340994,713.00,NORTHERN POWERGRID (NORTHEAST) LTD.
"Regeneration, Economy and Growth",Corporate Property and Land,Supplies and Services,304221,Equipment and Materials,04/06/2020,3745756-10231444,757.70,SIG TRADING LTD T/A CARPET & FLOORING LTD.*
"Regeneration, Economy and Growth",Culture Sport and Tourism,Supplies and Services,304259,Equipment and Materials,04/06/2020,3745781-US2944,800.00,ULTIMATE SUPPLIES (NORTH) LTD.
"Regeneration, Economy and Growth",Transport and Contracted Services,Supplies and Services,384199,Miscellaneous Expenses,04/06/2020,3745795-64462468,"6,999.86",WSP UK LTD.
Resources BK0010,Legal & Democratic Services,Supplies and Services,308011,Furniture,04/06/2020,3745598-168873,"3,120.00",ALBANY OFFICE EQUIPMENT (WHOLESALE) LTD.
Resources BK0010,Business Support,Supplies and Services,338099,Services,04/06/2020,3745599-C39008,"3,049.49",ALLIED PUBLICITY SERVICES (MANCHESTER) LTD.
Resources BK0010,Digital and Customer Services,Supplies and Services,342033,Computers and Communications,04/06/2020,3745736-OP/I868411,547.68,PHOENIX SOFTWARE LTD.
Adult and Health Services,Head of Adults,Supplies and Services,338366,Services,05/06/2020,3745837-67786,512.10,CARE ABILITY HEALTHCARE LTD.
Adult and Health Services,Head of Adults,Supplies and Services,338366,Services,05/06/2020,3745837-67787,"1,378.10",CARE ABILITY HEALTHCARE LTD.
Adult and Health Services,Head of Adults,Supplies and Services,338366,Services,05/06/2020,3745837-67788,"2,057.20",CARE ABILITY HEALTHCARE LTD.
Adult and Health Services,Head of Adults,Supplies and Services,338366,Services,05/06/2020,3745837-67789,"3,328.10",CARE ABILITY HEALTHCARE LTD.
Adult and Health Services,Head of Adults,Supplies and Services,338366,Services,05/06/2020,3745837-67790,"2,834.00",CARE ABILITY HEALTHCARE LTD.
Adult and Health Services,Head of Adults,Supplies and Services,338366,Services,05/06/2020,3745837-67791,"1,775.70",CARE ABILITY HEALTHCARE LTD.
Adult and Health Services,Head of Adults,Supplies and Services,338366,Services,05/06/2020,3745837-67792,"3,775.70",CARE ABILITY HEALTHCARE LTD.
Adult and Health Services,Head of Adults,Supplies and Services,338366,Services,05/06/2020,3745837-67935,"1,132.00",CARE ABILITY HEALTHCARE LTD.
Adult and Health Services,Head of Adults,Supplies and Services,338366,Services,05/06/2020,3745837-67936,"1,856.30",CARE ABILITY HEALTHCARE LTD.
Adult and Health Services,Head of Adults,Supplies and Services,338366,Services,05/06/2020,3745837-67939,"2,412.80",CARE ABILITY HEALTHCARE LTD.
Adult and Health Services,Head of Adults,Supplies and Services,338366,Services,05/06/2020,3745837-67940,"3,589.55",CARE ABILITY HEALTHCARE LTD.
Adult and Health Services,Head of Adults,Supplies and Services,338366,Services,05/06/2020,3745837-67941,"1,294.00",CARE ABILITY HEALTHCARE LTD.
Adult and Health Services,Head of Adults,Supplies and Services,338366,Services,05/06/2020,3745837-67942,808.12,CARE ABILITY HEALTHCARE LTD.
Adult and Health Services,Head of Adults,Third Party Payments,478151,Purchase of Care,05/06/2020,3745957-38853,882.00,OAKLEA TRUST.
Adult and Health Services,Head of Adults,Third Party Payments,478151,Purchase of Care,05/06/2020,3745957-38854,"1,764.00",OAKLEA TRUST.
Children and Young Peoples Services,Head of Childrens Social Care,Third Party Payments,440039,Other third party payments E440,05/06/2020,3745848-3539,800.00,CITY OF SUNDERLAND YMCA LTD.
Children and Young Peoples Services,Head of Childrens Social Care,Third Party Payments,440039,Other third party payments E440,05/06/2020,3745848-3559,800.00,CITY OF SUNDERLAND YMCA LTD.
Children and Young Peoples Services,Head of Education and Skills,Transport,230006,Contract Hire,05/06/2020,3745912-DCC0018,745.00,JANICE BRADSHAW T/A JAN PRIVATE HIRE.
Children and Young Peoples Services,Head of Early Help Inclusion & Vulnerable Children.,Premises,108099,Service Repairs and Maintenance,05/06/2020,3745985-224602,"2,150.50",RIELLO UPS LTD.
Children and Young Peoples Services,Head of Childrens Social Care,Third Party Payments,440046,Other third party payments E440,05/06/2020,3746038-INV-0483,"2,220.40",WE CARE RECRUITMENT SOLUTIONS LTD.
Children and Young Peoples Services,Head of Childrens Social Care,Third Party Payments,440046,Other third party payments E440,05/06/2020,3746038-INV-0511,629.52,WE CARE RECRUITMENT SOLUTIONS LTD.
Dedicated Schools Grant BG0015,DSG High Needs Block,Supplies and Services,304259,Equipment and Materials,05/06/2020,3745866-SI126219,"1,766.00",DOLPHIN COMPUTER ACCESS LTD.
Neighbourhoods and Climate Change,Technical Services CM0300,Supplies and Services,304221,Equipment and Materials,05/06/2020,3745805-29861028,969.00,AGGREGATE INDUSTRIES UK LTD.
Neighbourhoods and Climate Change,Technical Services CM0300,Supplies and Services,304221,Equipment and Materials,05/06/2020,3745805-29873557,617.00,AGGREGATE INDUSTRIES UK LTD.
Neighbourhoods and Climate Change,Technical Services CM0300,Supplies and Services,304221,Equipment and Materials,05/06/2020,3745805-29873558,617.00,AGGREGATE INDUSTRIES UK LTD.
Neighbourhoods and Climate Change,Environmental Services,Supplies and Services,384199,Miscellaneous Expenses,05/06/2020,3745819-BE4418,510.00,BARRETT ENVIRONMENTAL LTD.
Neighbourhoods and Climate Change,Environmental Services,Third Party Payments,430100,Rendered by Private Contractors,05/06/2020,3745822-46060064,961.55,BELL TRUCK SALES LTD T/A BELL TRUCK & VAN.
Neighbourhoods and Climate Change,Environmental Services,Third Party Payments,430100,Rendered by Private Contractors,05/06/2020,3745822-46060078,"1,837.28",BELL TRUCK SALES LTD T/A BELL TRUCK & VAN.
Neighbourhoods and Climate Change,Environmental Services,Third Party Payments,430114,Rendered by Private Contractors,05/06/2020,3745826-509M00195,"3,034.85",BIFFA WASTE SERVICES LTD.
Neighbourhoods and Climate Change,Environmental Services,Third Party Payments,430114,Rendered by Private Contractors,05/06/2020,3745827-509M00194,"2,379.70",BIFFA WASTE SERVICES LTD.
Neighbourhoods and Climate Change,Environmental Services,Third Party Payments,430114,Rendered by Private Contractors,05/06/2020,3745827-509M00199,"2,004.00",BIFFA WASTE SERVICES LTD.
Neighbourhoods and Climate Change,Environmental Services,Third Party Payments,430114,Rendered by Private Contractors,05/06/2020,3745827-509M00200,"2,004.00",BIFFA WASTE SERVICES LTD.
Neighbourhoods and Climate Change,Environmental Services,Third Party Payments,430114,Rendered by Private Contractors,05/06/2020,3745827-509M00201,"2,564.11",BIFFA WASTE SERVICES LTD.
Neighbourhoods and Climate Change,Environmental Services,Stock A926,926004,Stock,05/06/2020,3745865-96389911,635.66,DENNIS EAGLE LTD T/A TERBERG MATEC (UK) LTD.
Neighbourhoods and Climate Change,Environmental Services,Transport,210057,Repair and Maintenance of Vehicles,05/06/2020,3745865-96389912,"1,006.65",DENNIS EAGLE LTD T/A TERBERG MATEC (UK) LTD.
Neighbourhoods and Climate Change,Environmental Services,Stock A926,926004,Stock,05/06/2020,3745865-96389973,"1,004.61",DENNIS EAGLE LTD T/A TERBERG MATEC (UK) LTD.
Neighbourhoods and Climate Change,Technical Services CM0300,Stock A926,926900,Stock in hand-Inventory system,05/06/2020,3745875-78SI/70855,"2,160.00",ENCON INSULATION LTD.
Neighbourhoods and Climate Change,Environmental Services,Transport,230005,Contract Hire,05/06/2020,3745876-8158119,"1,135.50",ENTERPRISE FLEX-E-RENT T/A BURNT TREE GROUP LTD.
Neighbourhoods and Climate Change,Environmental Services,Transport,230005,Contract Hire,05/06/2020,3745877-8159303,"1,059.80",ENTERPRISE FLEX-E-RENT T/A BURNT TREE GROUP LTD.
Neighbourhoods and Climate Change,Technical Services CM0300,Supplies and Services,304221,Equipment and Materials,05/06/2020,3745878-2005\147,729.58,EPPLETON QUARRY PRODUCTS LTD.
Neighbourhoods and Climate Change,Environmental Services,Supplies and Services,304221,Equipment and Materials,05/06/2020,3745879-6863690,"10,310.40",ESE WORLD LTD.
Neighbourhoods and Climate Change,Environmental Services,Supplies and Services,304221,Equipment and Materials,05/06/2020,3745879-6864369,"10,310.40",ESE WORLD LTD.
Neighbourhoods and Climate Change,Environmental Services,Supplies and Services,304221,Equipment and Materials,05/06/2020,3745879-6864650,"5,155.20",ESE WORLD LTD.
Neighbourhoods and Climate Change,Environmental Services,Third Party Payments,430100,Rendered by Private Contractors,05/06/2020,3745900-81294,950.48,HOGARTH COACHWORKS LTD.
Neighbourhoods and Climate Change,Technical Services CM0300,Supplies and Services,304358,Equipment and Materials,05/06/2020,3745918-0000082155,800.00,JOHN WADE (HAULAGE) LTD.
Neighbourhoods and Climate Change,Technical Services CM0300,Supplies and Services,304358,Equipment and Materials,05/06/2020,3745918-0000082158,800.00,JOHN WADE (HAULAGE) LTD.
Neighbourhoods and Climate Change,Technical Services CM0300,Supplies and Services,304221,Equipment and Materials,05/06/2020,3745936-Z000542735,581.93,MARSHALLS MONO LTD.
Neighbourhoods and Climate Change,Environmental Services,Stock A926,926004,Stock,05/06/2020,3745946-101643,528.37,MTS BOBCAT.
Neighbourhoods and Climate Change,Environmental Services,Transport,210057,Repair and Maintenance of Vehicles,05/06/2020,3745969-TYN13786,541.33,PIRTEK TYNE & WEAR.
Neighbourhoods and Climate Change,Environmental Services,Third Party Payments,430100,Rendered by Private Contractors,05/06/2020,3745976-164996,"2,100.00",PREMIER TRAFFIC MANAGEMENT LTD.
Neighbourhoods and Climate Change,Environmental Services,Third Party Payments,430100,Rendered by Private Contractors,05/06/2020,3745976-164997,"1,900.00",PREMIER TRAFFIC MANAGEMENT LTD.
Neighbourhoods and Climate Change,Environmental Services,Third Party Payments,430100,Rendered by Private Contractors,05/06/2020,3745976-164998,"1,500.00",PREMIER TRAFFIC MANAGEMENT LTD.
Neighbourhoods and Climate Change,Technical Services CM0300,Third Party Payments,430100,Rendered by Private Contractors,05/06/2020,3745979-504973,550.00,PROTECTOR SECURITY GROUP LTD.
Neighbourhoods and Climate Change,Environmental Services,Supplies and Services,338078,Services,05/06/2020,3746004-15859,"6,085.00",STEADFAST SECURITY SOLUTIONS LTD.
Neighbourhoods and Climate Change,Environmental Services,Supplies and Services,338078,Services,05/06/2020,3746004-15863,"6,506.50",STEADFAST SECURITY SOLUTIONS LTD.
Neighbourhoods and Climate Change,Environmental Services,Supplies and Services,338078,Services,05/06/2020,3746004-15877,"8,415.11",STEADFAST SECURITY SOLUTIONS LTD.
Neighbourhoods and Climate Change,Environmental Services,Supplies and Services,304221,Equipment and Materials,05/06/2020,3746006-6003468,"17,200.00",STORM ENVIRONMENTAL LTD.
Neighbourhoods and Climate Change,Environmental Services,Third Party Payments,430100,Rendered by Private Contractors,05/06/2020,3746015-SIP-27419,885.22,TH WHITE LTD.
Neighbourhoods and Climate Change,Environmental Services,Third Party Payments,430100,Rendered by Private Contractors,05/06/2020,3746022-902371,"3,490.00",TRIPLE POINT LEASE PARTNERS.
Neighbourhoods and Climate Change,Environmental Services,Transport,230710,Contract Hire,05/06/2020,3746022-902379,"5,894.12",TRIPLE POINT LEASE PARTNERS.
Non-Service Specific,Insurances,Expenditure 8INSEX,810045,Insurance Expenditure,05/06/2020,3746039-01946856,630.00,WEIGHTMANS LLP.
"Regeneration, Economy and Growth",Corporate Property and Land,Supplies and Services,304221,Equipment and Materials,05/06/2020,3745800-4046692,726.48,A & A ELECTRICAL DISTRIBUTORS LTD.
"Regeneration, Economy and Growth",Corporate Property and Land,Premises,108099,Service Repairs and Maintenance,05/06/2020,3745812-34110,"1,215.00",AQUAJET DRAIN CLEANING LTD.
"Regeneration, Economy and Growth",Corporate Property and Land,Supplies and Services,304221,Equipment and Materials,05/06/2020,3745816-270956,772.53,AVIRE LTD.
"Regeneration, Economy and Growth",Corporate Property and Land,Supplies and Services,304221,Equipment and Materials,05/06/2020,3745816-270997,897.25,AVIRE LTD.
"Regeneration, Economy and Growth",Transport and Contracted Services,Supplies and Services,304245,Equipment and Materials,05/06/2020,3745823-DHP0084,857.75,BERNICIA GROUP LTD.
"Regeneration, Economy and Growth",Corporate Property and Land,Supplies and Services,304221,Equipment and Materials,05/06/2020,3745849-2852AAW311,556.74,CITY PLUMBING SUPPLIES HOLDINGS LTD.
"Regeneration, Economy and Growth",Corporate Property and Land,Supplies and Services,304221,Equipment and Materials,05/06/2020,3745868-059-263586,943.24,EDMUNDSON ELECTRICAL LTD.
"Regeneration, Economy and Growth",Corporate Property and Land,Supplies and Services,304221,Equipment and Materials,05/06/2020,3745868-059-263865,780.77,EDMUNDSON ELECTRICAL LTD.
"Regeneration, Economy and Growth",Corporate Property and Land,Premises,108099,Service Repairs and Maintenance,05/06/2020,3745902-7080822552,910.36,HONEYWELL NOVAR SYSTEMS LTD.
"Regeneration, Economy and Growth",Corporate Property and Land,Premises,108099,Service Repairs and Maintenance,05/06/2020,3745902-7080822553,756.71,HONEYWELL NOVAR SYSTEMS LTD.
"Regeneration, Economy and Growth",Transport and Contracted Services,Third Party Payments,430100,Rendered by Private Contractors,05/06/2020,3745954-00012620,"1,794.84",NSL LTD.
"Regeneration, Economy and Growth",Transport and Contracted Services,Third Party Payments,430100,Rendered by Private Contractors,05/06/2020,3745954-00012621,868.89,NSL LTD.
"Regeneration, Economy and Growth",Transport and Contracted Services,Third Party Payments,430100,Rendered by Private Contractors,05/06/2020,3745954-00012622,"8,811.72",NSL LTD.
"Regeneration, Economy and Growth",Culture Sport and Tourism,Supplies and Services,384199,Miscellaneous Expenses,05/06/2020,3746002-INV-S011108,668.99,SPEKTRIX LTD.
"Regeneration, Economy and Growth",Business Durham CL0850,Third Party Payments,460305,Contract Payments,05/06/2020,3746030-RED-06-2020-031,"12,382.54",UMI COMMERCIAL LTD.
"Regeneration, Economy and Growth",Culture Sport and Tourism,Premises,106082,Centrally Controlled Rep and Maint,05/06/2020,3746033-1325,696.00,VENTILATION HYGIENE SPECIALISTS (VHS) LTD.
"Regeneration, Economy and Growth",Corporate Property and Land,Supplies and Services,304221,Equipment and Materials,05/06/2020,3746041-68055948,"1,025.65",WOLSELEY UK LTD.
Resources BK0010,Corporate Finance & Commercial Services,Supplies and Services,338066,Services,05/06/2020,3745929-DFE80202145,"18,000.00",LINK TREASURY SERVICES LTD.
Resources BK0010,Digital and Customer Services,Supplies and Services,332029,Printing Stationery and Gen Off Exps,05/06/2020,3745973-684401,"14,950.00",POTTS PRINTERS LTD.
Resources BK0010,Digital and Customer Services,Supplies and Services,332029,Printing Stationery and Gen Off Exps,05/06/2020,3745973-684402,"14,950.00",POTTS PRINTERS LTD.
Resources BK0010,Digital and Customer Services,Supplies and Services,332029,Printing Stationery and Gen Off Exps,05/06/2020,3745973-684415,"14,950.00",POTTS PRINTERS LTD.
Resources BK0010,Digital and Customer Services,Supplies and Services,332029,Printing Stationery and Gen Off Exps,05/06/2020,3745973-684436,"8,548.00",POTTS PRINTERS LTD.
Resources BK0010,Finance & Transactional Services,Supplies and Services,384999,Miscellaneous Expenses,05/06/2020,3745977-18253-DURHAMCOUNTYCOUNCIL-0520,"2,708.42",PREPAID FINANCIAL SERVICES LTD.
Resources BK0010,COVID19 - Resources,Supplies and Services,340001,Postages E340,05/06/2020,3745989-9060915283,"14,193.66",ROYAL MAIL GROUP PLC.
Resources BK0010,Legal & Democratic Services,Supplies and Services,338042,Services,05/06/2020,3746021-247528JUN20,650.00,TRINITY CHAMBERS.
Adult and Health Services,Head of Adults,Third Party Payments,479150,Purchase of Care,08/06/2020,3746048-INFECTIONCONTROLFUND/234,"23,400.00",A CHARLES THOMAS (CARE) LTD.
Adult and Health Services,Head of Adults,Third Party Payments,478151,Purchase of Care,08/06/2020,3746050-1112,"10,319.40",ACCEPT CARE LTD.
Adult and Health Services,Head of Adults,Third Party Payments,479150,Purchase of Care,08/06/2020,3746054-INFECTIONCONTROLFUND/251,"26,325.00",AKARI CARE LTD.
Adult and Health Services,Head of Adults,Third Party Payments,479150,Purchase of Care,08/06/2020,3746055-INFECTIONCONTROLFUND/252,"26,812.50",AKARI CARE LTD.
Adult and Health Services,Head of Adults,Third Party Payments,479150,Purchase of Care,08/06/2020,3746060-INFECTIONCONTROLFUND/275,"36,562.50",ALLIANCE CARE (TRENDLEWOOD) LTD.
Adult and Health Services,Head of Adults,Third Party Payments,479150,Purchase of Care,08/06/2020,3746064-INFECTIONCONTROLFUND/276,"37,050.00",ANCHOR HANOVER GROUP.
Adult and Health Services,Commissioning inc Supporting People,Third Party Payments,479111,Purchase of Care,08/06/2020,3746068-INV-10806,"4,912.50",APM CLEANING LTD.
Adult and Health Services,Head of Adults,Third Party Payments,479150,Purchase of Care,08/06/2020,3746074-INFECTIONCONTROLFUND/209,"19,500.00",ASCOT CARE NORTH EAST LTD..
Adult and Health Services,Head of Adults,Third Party Payments,479150,Purchase of Care,08/06/2020,3746077-INFECTIONCONTROLFUND/167,"3,900.00",ASPIRE CARE GROUP.
Adult and Health Services,Head of Adults,Third Party Payments,479150,Purchase of Care,08/06/2020,3746078-INFECTIONCONTROLFUND/170,"4,387.50",ASPIRE CARE GROUP.
Adult and Health Services,Head of Adults,Third Party Payments,479150,Purchase of Care,08/06/2020,3746079-INFECTIONCONTROLFUND/147,"1,462.50",ASPIRE CARE GROUP.
Adult and Health Services,Head of Adults,Third Party Payments,479150,Purchase of Care,08/06/2020,3746081-INFECTIONCONTROLFUND/164,"3,412.50",AUTISM CARE UK (4) LTD.
Adult and Health Services,Head of Adults,Third Party Payments,479150,Purchase of Care,08/06/2020,3746083-INFECTIONCONTROLFUND/282,"51,187.50",BARCHESTER HEALTHCARE HOMES LTD.
Adult and Health Services,Head of Adults,Third Party Payments,479150,Purchase of Care,08/06/2020,3746087-INFECTIONCONTROLFUND/184,"10,237.50",BEAMISH RESIDENTIAL CARE HOME LTD.
Adult and Health Services,Head of Adults,Third Party Payments,479150,Purchase of Care,08/06/2020,3746089-INFECTIONCONTROLFUND/176,"6,337.50",BENTON CARE SERVICES LTD.
Adult and Health Services,Commissioning inc Supporting People,Third Party Payments,479111,Purchase of Care,08/06/2020,3746090-DHP0082,"102,588.25",BERNICIA GROUP LTD.
Adult and Health Services,Head of Adults,Third Party Payments,479150,Purchase of Care,08/06/2020,3746095-INFECTIONCONTROLFUND/240,"23,887.50",BONDCARE WILLINGTON LTD.
Adult and Health Services,Head of Adults,Third Party Payments,479150,Purchase of Care,08/06/2020,3746096-INFECTIONCONTROLFUND/239,"23,887.50",BONDCARE WILLINGTON LTD.
Adult and Health Services,Head of Adults,Third Party Payments,479150,Purchase of Care,08/06/2020,3746097-INFECTIONCONTROLFUND/212,"19,500.00",BONDCARE WILLINGTON LTD.
Adult and Health Services,Head of Adults,Third Party Payments,479150,Purchase of Care,08/06/2020,3746105-INFECTIONCONTROLFUND/201,"16,575.00",BROOMHOUSE CARE LTD.
Adult and Health Services,Public Health CC0450,Third Party Payments,460803,Contract Payments,08/06/2020,3746108-769,"1,750.00",C HEWISON (CONSULTANT PROJECT MANAGEMENT TRAINING).
Adult and Health Services,Head of Adults,Third Party Payments,479150,Purchase of Care,08/06/2020,3746110-INFECTIONCONTROLFUND/274,"34,612.50",CARE UK COMMUNITY PARTNERSHIPS LTD.
Adult and Health Services,Head of Adults,Third Party Payments,479150,Purchase of Care,08/06/2020,3746111-INFECTIONCONTROLFUND/218,"20,475.00",CARE UK COMMUNITY PARTNERSHIPS LTD.
Adult and Health Services,Head of Adults,Third Party Payments,479150,Purchase of Care,08/06/2020,3746112-INFECTIONCONTROLFUND/205,"18,037.50",CARE UK COMMUNITY PARTNERSHIPS LTD.
Adult and Health Services,Head of Adults,Third Party Payments,479150,Purchase of Care,08/06/2020,3746113-INFECTIONCONTROLFUND/249,"26,325.00",CAREWELL (HEALTH CARE) LTD.
Adult and Health Services,Head of Adults,Third Party Payments,479150,Purchase of Care,08/06/2020,3746114-INFECTIONCONTROLFUND/192,"13,650.00",CASTLEBANK CARE HOME LTD.
Adult and Health Services,Head of Adults,Third Party Payments,479150,Purchase of Care,08/06/2020,3746141-INFECTIONCONTROLFUND/250,"26,325.00",COUNTRYWIDE CARE HOMES (2) LTD.
Adult and Health Services,Head of Adults,Third Party Payments,479150,Purchase of Care,08/06/2020,3746142-INFECTIONCONTROLFUND/202,"17,550.00",COUNTRYWIDE CARE HOMES (2) LTD.
Adult and Health Services,Head of Adults,Third Party Payments,479150,Purchase of Care,08/06/2020,3746143-INFECTIONCONTROLFUND/277,"37,537.50",COUNTRYWIDE CARE HOMES (2) LTD.
Adult and Health Services,Head of Adults,Third Party Payments,479150,Purchase of Care,08/06/2020,3746145-INFECTIONCONTROLFUND/226,"21,450.00",CRAIGARRAN LTD.
Adult and Health Services,Head of Adults,Third Party Payments,479150,Purchase of Care,08/06/2020,3746148-INFECTIONCONTROLFUND/263,"29,250.00",CROFT HOUSE (CARE) LTD.
Adult and Health Services,Head of Adults,Third Party Payments,479150,Purchase of Care,08/06/2020,3746149-INFECTIONCONTROLFUND/281,"44,850.00",CROWN CARE VI LTD.
Adult and Health Services,Head of Adults,Third Party Payments,479150,Purchase of Care,08/06/2020,3746153-INFECTIONCONTROLFUND/174,"4,875.00",CYGNET OE LTD.
Adult and Health Services,Head of Adults,Third Party Payments,479150,Purchase of Care,08/06/2020,3746155-INFECTIONCONTROLFUND/183,"9,750.00",D3 CARE LTD.
Adult and Health Services,Head of Adults,Third Party Payments,479150,Purchase of Care,08/06/2020,3746156-INFECTIONCONTROLFUND/213,"19,500.00",D3 CARE LTD.
Adult and Health Services,Head of Adults,Third Party Payments,479150,Purchase of Care,08/06/2020,3746163-INFECTIONCONTROLFUND/189,"12,187.50",DEVONSHIRE HOUSE CARE LTD.
Adult and Health Services,Head of Adults,Third Party Payments,479150,Purchase of Care,08/06/2020,3746165-INFECTIONCONTROLFUND/273,"34,125.00",DIPTON CARE HOME LTD.
Adult and Health Services,Head of Adults,Third Party Payments,479150,Purchase of Care,08/06/2020,3746170-INFECTIONCONTROLFUND/242,"24,375.00",DURHAM CARELINE LTD.
Adult and Health Services,Head of Adults,Third Party Payments,479150,Purchase of Care,08/06/2020,3746171-INFECTIONCONTROLFUND/186,"11,212.50",DURHAM CARELINE LTD.
Adult and Health Services,Head of Adults,Third Party Payments,479150,Purchase of Care,08/06/2020,3746172-INFECTIONCONTROLFUND/214,"19,987.50",DURHAM CARELINE LTD.
Adult and Health Services,Head of Adults,Third Party Payments,479150,Purchase of Care,08/06/2020,3746173-INFECTIONCONTROLFUND/157,"1,950.00",DURHAM CARELINE LTD.
Adult and Health Services,Head of Adults,Supplies and Services,338365,Services,08/06/2020,3746177-49716,652.13,EASIBATHE LTD.
Adult and Health Services,Head of Adults,Third Party Payments,479150,Purchase of Care,08/06/2020,3746179-INFECTIONCONTROLFUND/144,"4,387.50",EDUCATION & SERVICES FOR PEOPLE WITH AUTISM LTD (ESPA).
Adult and Health Services,Head of Adults,Third Party Payments,479150,Purchase of Care,08/06/2020,3746180-INFECTIONCONTROLFUND/140,"1,950.00",EDUCATION & SERVICES FOR PEOPLE WITH AUTISM LTD (ESPA).
Adult and Health Services,Head of Adults,Third Party Payments,479150,Purchase of Care,08/06/2020,3746181-INFECTIONCONTROLFUND/143,"3,900.00",EDUCATION & SERVICES FOR PEOPLE WITH AUTISM LTD (ESPA).
Adult and Health Services,Head of Adults,Third Party Payments,479150,Purchase of Care,08/06/2020,3746182-INFECTIONCONTROLFUND/142,"3,412.50",EDUCATION & SERVICES FOR PEOPLE WITH AUTISM LTD (ESPA).
Adult and Health Services,Head of Adults,Third Party Payments,479150,Purchase of Care,08/06/2020,3746183-INFECTIONCONTROLFUND/146,975.00,EDUCATION & SERVICES FOR PEOPLE WITH AUTISM LTD (ESPA).
Adult and Health Services,Head of Adults,Third Party Payments,479150,Purchase of Care,08/06/2020,3746187-INFECTIONCONTROLFUND/225,"21,450.00",ELBA CARE LTD.
Adult and Health Services,Head of Adults,Third Party Payments,478151,Purchase of Care,08/06/2020,3746188-KWVOIDS/PERIOD2/2020,"2,219.88",EMBRACING CARE.
Adult and Health Services,Head of Adults,Third Party Payments,479150,Purchase of Care,08/06/2020,3746192-INFECTIONCONTROLFUND/221,"20,475.00",ESSENTIAL CARE & SUPPORT LTD.
Adult and Health Services,Head of Adults,Third Party Payments,479150,Purchase of Care,08/06/2020,3746206-INFECTIONCONTROLFUND/264,"29,250.00",FOUR SEASONS (NO 9) LTD.
Adult and Health Services,Head of Adults,Third Party Payments,479150,Purchase of Care,08/06/2020,3746207-INFECTIONCONTROLFUND/243,"24,375.00",FOUR SEASONS HOMES NO 1 LTD.
Adult and Health Services,Head of Adults,Third Party Payments,479150,Purchase of Care,08/06/2020,3746212-INFECTIONCONTROLFUND/267,"30,225.00",GAINFORD CARE HOMES LTD.
Adult and Health Services,Head of Adults,Third Party Payments,479150,Purchase of Care,08/06/2020,3746213-INFECTIONCONTROLFUND/254,"27,300.00",GAINFORD CARE HOMES LTD.
Adult and Health Services,Head of Adults,Third Party Payments,479150,Purchase of Care,08/06/2020,3746214-INFECTIONCONTROLFUND/256,"27,787.50",GAINFORD CARE HOMES LTD.
Adult and Health Services,Head of Adults,Third Party Payments,479150,Purchase of Care,08/06/2020,3746215-INFECTIONCONTROLFUND/266,"29,737.50",GAINFORD CARE HOMES LTD.
Adult and Health Services,Head of Adults,Third Party Payments,479150,Purchase of Care,08/06/2020,3746216-INFECTIONCONTROLFUND/194,"14,625.00",GAINFORD CARE HOMES LTD.
Adult and Health Services,Head of Adults,Third Party Payments,479150,Purchase of Care,08/06/2020,3746216-INFECTIONCONTROLFUND/253,"27,300.00",GAINFORD CARE HOMES LTD.
Adult and Health Services,Head of Adults,Third Party Payments,479150,Purchase of Care,08/06/2020,3746232-INFECTIONCONTROLFUND/279,"42,412.50",HC-ONE BEAMISH LTD.
Adult and Health Services,Head of Adults,Third Party Payments,479150,Purchase of Care,08/06/2020,3746233-INFECTIONCONTROLFUND/245,"24,862.50",HC-ONE BEAMISH LTD.
Adult and Health Services,Head of Adults,Third Party Payments,479150,Purchase of Care,08/06/2020,3746234-INFECTIONCONTROLFUND/248,"25,837.50",HC-ONE BEAMISH LTD.
Adult and Health Services,Head of Adults,Third Party Payments,479150,Purchase of Care,08/06/2020,3746235-INFECTIONCONTROLFUND/259,"28,275.00",HC-ONE BEAMISH LTD.
Adult and Health Services,Head of Adults,Third Party Payments,479150,Purchase of Care,08/06/2020,3746236-INFECTIONCONTROLFUND/258,"27,787.50",HC-ONE BEAMISH LTD.
Adult and Health Services,Head of Adults,Third Party Payments,479150,Purchase of Care,08/06/2020,3746237-INFECTIONCONTROLFUND/238,"23,400.00",HC-ONE LTD.
Adult and Health Services,Head of Adults,Third Party Payments,479150,Purchase of Care,08/06/2020,3746238-INFECTIONCONTROLFUND/203,"17,550.00",HC-ONE LTD.
Adult and Health Services,Head of Adults,Third Party Payments,479150,Purchase of Care,08/06/2020,3746239-INFECTIONCONTROLFUND/211,"19,500.00",HC-ONE LTD.
Adult and Health Services,Head of Adults,Third Party Payments,479150,Purchase of Care,08/06/2020,3746240-INFECTIONCONTROLFUND/216,"19,987.50",HC-ONE LTD.
Adult and Health Services,Head of Adults,Third Party Payments,479150,Purchase of Care,08/06/2020,3746241-INFECTIONCONTROLFUND/200,"15,600.00",HC-ONE LTD.
Adult and Health Services,Head of Adults,Third Party Payments,479150,Purchase of Care,08/06/2020,3746242-INFECTIONCONTROLFUND/223,"20,962.50",HC-ONE LTD.
Adult and Health Services,Head of Adults,Third Party Payments,479150,Purchase of Care,08/06/2020,3746243-INFECTIONCONTROLFUND/246,"24,862.50",HC-ONE LTD.
Adult and Health Services,Head of Adults,Third Party Payments,479150,Purchase of Care,08/06/2020,3746244-INFECTIONCONTROLFUND/265,"29,250.00",HC-ONE LTD.
Adult and Health Services,Head of Adults,Third Party Payments,479150,Purchase of Care,08/06/2020,3746246-INFECTIONCONTROLFUND/244,"24,375.00",HILL CARE 3 LTD.
Adult and Health Services,Head of Adults,Third Party Payments,479150,Purchase of Care,08/06/2020,3746247-INFECTIONCONTROLFUND/232,"22,912.50",HILL CARE 3 LTD.
Adult and Health Services,Head of Adults,Third Party Payments,479150,Purchase of Care,08/06/2020,3746260-INFECTIONCONTROLFUND/269,"30,225.00",IDEAL CARE (NORTH) LTD.
Adult and Health Services,Head of Adults,Third Party Payments,479150,Purchase of Care,08/06/2020,3746265-INFECTIONCONTROLFUND/148,"1,462.50",INTERACT CARE LTD.
Adult and Health Services,Head of Adults,Third Party Payments,479150,Purchase of Care,08/06/2020,3746265-INFECTIONCONTROLFUND/154,"1,462.50",INTERACT CARE LTD.
Adult and Health Services,Head of Adults,Third Party Payments,479150,Purchase of Care,08/06/2020,3746266-INFECTIONCONTROLFUND/158,"2,437.50",INTERACT CARE LTD.
Adult and Health Services,Head of Adults,Third Party Payments,479150,Purchase of Care,08/06/2020,3746285-INFECTIONCONTROLFUND/219,"20,475.00",KINGSWAY CARE HOME LTD.
Adult and Health Services,Head of Adults,Third Party Payments,479150,Purchase of Care,08/06/2020,3746288-INFECTIONCONTROLFUND/255,"27,787.50",LAMBTON HOUSE LTD.
Adult and Health Services,Head of Adults,Third Party Payments,479150,Purchase of Care,08/06/2020,3746289-INFECTIONCONTROLFUND/196,"14,625.00",LANGLEY HOUSE CARE HOME LTD.
Adult and Health Services,Head of Adults,Third Party Payments,479150,Purchase of Care,08/06/2020,3746292-INFECTIONCONTROLFUND/241,"24,375.00",LEAZES HALL CARE HOME LTD.
Adult and Health Services,Head of Adults,Third Party Payments,479150,Purchase of Care,08/06/2020,3746293-INFECTIONCONTROLFUND/190,"12,187.50",LEONARD CHESHIRE DISABILITY.
Adult and Health Services,Head of Adults,Third Party Payments,479150,Purchase of Care,08/06/2020,3746296-INFECTIONCONTROLFUND/185,"10,725.00",LIFEWAYS COMMUNITY CARE LTD.
Adult and Health Services,Commissioning inc Supporting People,Third Party Payments,479111,Purchase of Care,08/06/2020,3746300-3039,"11,757.00",MAIN - TAKING AUTISM PERSONALLY.
Adult and Health Services,Head of Adults,Third Party Payments,479150,Purchase of Care,08/06/2020,3746301-INFECTIONCONTROLFUND/247,"25,837.50",MALHOTRA CARE HOMES LTD.
Adult and Health Services,Head of Adults,Third Party Payments,479150,Purchase of Care,08/06/2020,3746303-INFECTIONCONTROLFUND/236,"23,400.00",MARIA MALLABAND NURSING HOMES LTD.
Adult and Health Services,Head of Adults,Third Party Payments,479150,Purchase of Care,08/06/2020,3746305-INFECTIONCONTROLFUND/230,"21,937.50",MARIPOSA CARE GROUP LTD.
Adult and Health Services,Head of Adults,Third Party Payments,479150,Purchase of Care,08/06/2020,3746306-INFECTIONCONTROLFUND/217,"19,987.50",MARIPOSA CARE LTD.
Adult and Health Services,Head of Adults,Third Party Payments,479150,Purchase of Care,08/06/2020,3746307-INFECTIONCONTROLFUND/231,"22,425.00",MARTON CARE HOMES LTD T/A LANGLEY PARK CARE HOME.
Adult and Health Services,Head of Adults,Third Party Payments,479150,Purchase of Care,08/06/2020,3746308-INFECTIONCONTROLFUND/237,"23,400.00",MARTON CARE HOMES LTD T/A ST HELENS CARE HOME.
Adult and Health Services,Head of Adults,Third Party Payments,479150,Purchase of Care,08/06/2020,3746312-INFECTIONCONTROLFUND/173,"4,875.00",MOORLAND HOLDINGS (NE) LTD.
Adult and Health Services,Head of Adults,Third Party Payments,479150,Purchase of Care,08/06/2020,3746313-INFECTIONCONTROLFUND/165,"3,900.00",MR & MRS BURNS.
Adult and Health Services,Head of Adults,Third Party Payments,479150,Purchase of Care,08/06/2020,3746324-INFECTIONCONTROLFUND/162,"3,412.50",NEWLIFE CARE SERVICES LTD.
Adult and Health Services,Head of Adults,Third Party Payments,479150,Purchase of Care,08/06/2020,3746330-INFECTIONCONTROLFUND/187,"11,212.50",NORTH EAST AUTISM SOCIETY.
Adult and Health Services,Head of Adults,Third Party Payments,479150,Purchase of Care,08/06/2020,3746336-INFECTIONCONTROLFUND/197,"15,112.50",OBJECT QUEST LTD.
Adult and Health Services,Head of Adults,Third Party Payments,479150,Purchase of Care,08/06/2020,3746341-INFECTIONCONTROLFUND/152,"1,462.50",OSWALD HOUSE CARE HOME LTD.
Adult and Health Services,Head of Adults,Third Party Payments,479150,Purchase of Care,08/06/2020,3746342-INFECTIONCONTROLFUND/151,"1,462.50",OSWALD HOUSE CARE HOME LTD.
Adult and Health Services,Head of Adults,Third Party Payments,479150,Purchase of Care,08/06/2020,3746343-INFECTIONCONTROLFUND/149,"1,462.50",OSWALD HOUSE CARE HOME LTD.
Adult and Health Services,Head of Adults,Third Party Payments,479150,Purchase of Care,08/06/2020,3746344-INFECTIONCONTROLFUND/150,"1,462.50",OSWALD HOUSE CARE HOME LTD.
Adult and Health Services,Head of Adults,Third Party Payments,479150,Purchase of Care,08/06/2020,3746354-INFECTIONCONTROLFUND/193,"14,625.00",PERFECT CARE LTD.
Adult and Health Services,Head of Adults,Third Party Payments,479150,Purchase of Care,08/06/2020,3746358-INFECTIONCONTROLFUND/224,"21,450.00",POPULAR CARE LTD..
Adult and Health Services,Head of Adults,Third Party Payments,479150,Purchase of Care,08/06/2020,3746361-INFECTIONCONTROLFUND/181,"7,800.00",POTENSIAL LTD.
Adult and Health Services,Head of Adults,Third Party Payments,479150,Purchase of Care,08/06/2020,3746362-INFECTIONCONTROLFUND/280,"42,900.00",PREMIER CARE HOMES LTD.
Adult and Health Services,Head of Adults,Third Party Payments,479150,Purchase of Care,08/06/2020,3746363-INFECTIONCONTROLFUND/198,"15,112.50",PREMIER CARE HOMES LTD.
Adult and Health Services,Head of Adults,Third Party Payments,479150,Purchase of Care,08/06/2020,3746365-INFECTIONCONTROLFUND/178,"7,312.50",PRINCE BISHOP SUPPORT SERVICES LTD.
Adult and Health Services,Head of Adults,Third Party Payments,479150,Purchase of Care,08/06/2020,3746366-INFECTIONCONTROLFUND/153,"1,462.50",PRINCE BISHOP SUPPORT SERVICES LTD.
Adult and Health Services,Head of Adults,Third Party Payments,479150,Purchase of Care,08/06/2020,3746366-INFECTIONCONTROLFUND/169,"3,900.00",PRINCE BISHOP SUPPORT SERVICES LTD.
Adult and Health Services,Head of Adults,Third Party Payments,479150,Purchase of Care,08/06/2020,3746373-INFECTIONCONTROLFUND/195,"14,625.00",RAYSON HOMES LTD.
Adult and Health Services,Head of Adults,Third Party Payments,479150,Purchase of Care,08/06/2020,3746374-INFECTIONCONTROLFUND/177,"6,825.00",RAYSON HOMES LTD.
Adult and Health Services,Head of Adults,Third Party Payments,479150,Purchase of Care,08/06/2020,3746377-INFECTIONCONTROLFUND/160,"3,412.50",RESOLVE (CARE NORTHERN) LTD..
Adult and Health Services,Head of Adults,Third Party Payments,479150,Purchase of Care,08/06/2020,3746378-INFECTIONCONTROLFUND/168,"3,900.00",RESOLVE (CARE NORTHERN) LTD..
Adult and Health Services,Head of Adults,Third Party Payments,479150,Purchase of Care,08/06/2020,3746384-INFECTIONCONTROLFUND/235,"23,400.00",ROBERT PATTINSON.
Adult and Health Services,Head of Adults,Third Party Payments,479150,Purchase of Care,08/06/2020,3746385-INFECTIONCONTROLFUND/229,"21,937.50",ROSEBERRY CARE CENTRES GB LTD.
Adult and Health Services,Head of Adults,Third Party Payments,479150,Purchase of Care,08/06/2020,3746386-INFECTIONCONTROLFUND/180,"7,800.00",ROSEMOUNT TRUST.
Adult and Health Services,Head of Adults,Third Party Payments,479150,Purchase of Care,08/06/2020,3746392-INFECTIONCONTROLFUND/270,"31,687.50",SANCTUARY CARE (ENGLAND) LTD.
Adult and Health Services,Head of Adults,Third Party Payments,479150,Purchase of Care,08/06/2020,3746393-INFECTIONCONTROLFUND/222,"20,962.50",SANCTUARY CARE (ENGLAND) LTD.
Adult and Health Services,Head of Adults,Third Party Payments,479150,Purchase of Care,08/06/2020,3746394-INFECTIONCONTROLFUND/271,"33,637.50",SANCTUARY CARE (ENGLAND) LTD.
Adult and Health Services,Head of Adults,Third Party Payments,479150,Purchase of Care,08/06/2020,3746395-INFECTIONCONTROLFUND/215,"19,987.50",SANCTUARY CARE (ENGLAND) LTD.
Adult and Health Services,Head of Adults,Third Party Payments,479150,Purchase of Care,08/06/2020,3746404-INFECTIONCONTROLFUND/204,"18,037.50",SEAHAM CARE LTD.
Adult and Health Services,Head of Adults,Third Party Payments,479150,Purchase of Care,08/06/2020,3746405-INFECTIONCONTROLFUND/207,"19,012.50",SEAHAM CARE LTD.
Adult and Health Services,Head of Adults,Third Party Payments,479150,Purchase of Care,08/06/2020,3746406-INFECTIONCONTROLFUND/257,"27,787.50",SHAFTESBURY CARE GROUP LTD.
Adult and Health Services,Head of Adults,Third Party Payments,479150,Purchase of Care,08/06/2020,3746407-INFECTIONCONTROLFUND/261,"29,250.00",SHERBURN HOUSE CHARITY.
Adult and Health Services,Head of Adults,Third Party Payments,479150,Purchase of Care,08/06/2020,3746408-INFECTIONCONTROLFUND/228,"21,937.50",SHOTLEY PARK HOMES FOR THE ELDERLY LTD.
Adult and Health Services,Head of Adults,Third Party Payments,478151,Purchase of Care,08/06/2020,3746418-1620,579.05,SOVEREIGN CARE (NORTH EAST) LTD.
Adult and Health Services,Head of Adults,Third Party Payments,479150,Purchase of Care,08/06/2020,3746418-INFECTIONCONTROLFUND/182,"8,775.00",SOVEREIGN CARE (NORTH EAST) LTD.
Adult and Health Services,Head of Adults,Third Party Payments,479150,Purchase of Care,08/06/2020,3746420-INFECTIONCONTROLFUND/227,"21,937.50",ST ANDREWS MPS LTD.
Adult and Health Services,Head of Adults,Third Party Payments,479150,Purchase of Care,08/06/2020,3746421-INFECTIONCONTROLFUND/278,"39,000.00",ST PHILIPS CARE LTD.
Adult and Health Services,Head of Adults,Third Party Payments,479150,Purchase of Care,08/06/2020,3746422-INFECTIONCONTROLFUND/210,"19,500.00",ST PHILIPS CARE LTD.
Adult and Health Services,Head of Adults,Third Party Payments,479150,Purchase of Care,08/06/2020,3746432-INFECTIONCONTROLFUND/199,"15,112.50",SUNNY OKUKPOLOR HUMPHREYS.
Adult and Health Services,Head of Adults,Third Party Payments,479150,Purchase of Care,08/06/2020,3746434-INFECTIONCONTROLFUND/155,"1,950.00",SWANTON CARE & COMMUNITY (AUTISM NORTH) LTD.
Adult and Health Services,Head of Adults,Third Party Payments,479150,Purchase of Care,08/06/2020,3746435-INFECTIONCONTROLFUND/172,"4,875.00",SWANTON CARE & COMMUNITY (AUTISM NORTH) LTD.
Adult and Health Services,Head of Adults,Third Party Payments,479150,Purchase of Care,08/06/2020,3746436-INFECTIONCONTROLFUND/161,"3,412.50",SWANTON CARE & COMMUNITY (AUTISM NORTH) LTD.
Adult and Health Services,Head of Adults,Third Party Payments,479150,Purchase of Care,08/06/2020,3746437-INFECTIONCONTROLFUND/175,"5,850.00",SWANTON CARE & COMMUNITY (AUTISM NORTH) LTD.
Adult and Health Services,Head of Adults,Third Party Payments,479150,Purchase of Care,08/06/2020,3746441-INFECTIONCONTROLFUND/262,"29,250.00",TAMARIS HEALTHCARE (ENGLAND) LTD.
Adult and Health Services,Head of Adults,Third Party Payments,479150,Purchase of Care,08/06/2020,3746442-INFECTIONCONTROLFUND/272,"34,125.00",TAMARIS HEALTHCARE (ENGLAND) LTD.
Adult and Health Services,Head of Adults,Third Party Payments,479150,Purchase of Care,08/06/2020,3746443-INFECTIONCONTROLFUND/206,"18,525.00",TAMARIS HEALTHCARE (ENGLAND) LTD.
Adult and Health Services,Head of Adults,Third Party Payments,479150,Purchase of Care,08/06/2020,3746444-INFECTIONCONTROLFUND/268,"30,225.00",TAMARIS HEALTHCARE (ENGLAND) LTD.
Adult and Health Services,Head of Adults,Third Party Payments,479150,Purchase of Care,08/06/2020,3746451-INFECTIONCONTROLFUND/188,"11,700.00",THE FIELDS CARE HOME.
Adult and Health Services,Head of Adults,Third Party Payments,479150,Purchase of Care,08/06/2020,3746452-INFECTIONCONTROLFUND/233,"22,912.50",THE HAWTHORNS LODGE LTD.
Adult and Health Services,Head of Adults,Third Party Payments,479150,Purchase of Care,08/06/2020,3746454-INFECTIONCONTROLFUND/179,"7,800.00",THE ORDER OF THE GOOD & PERPETUAL SUCCOUR.
Adult and Health Services,Head of Adults,Third Party Payments,479150,Purchase of Care,08/06/2020,3746464-INFECTIONCONTROLFUND/220,"20,475.00",TRIMS GYM LTD.
Adult and Health Services,Head of Adults,Third Party Payments,479150,Purchase of Care,08/06/2020,3746477-INFECTIONCONTROLFUND/171,"4,875.00",VALDIGARTH RESIDENTIAL CARE HOME.
Adult and Health Services,Head of Adults,Third Party Payments,479150,Purchase of Care,08/06/2020,3746485-INFECTIONCONTROLFUND/159,"2,925.00",VOYAGE 1 LTD.
Adult and Health Services,Head of Adults,Third Party Payments,479150,Purchase of Care,08/06/2020,3746485-INFECTIONCONTROLFUND/166,"3,900.00",VOYAGE 1 LTD.
Adult and Health Services,Head of Adults,Third Party Payments,479150,Purchase of Care,08/06/2020,3746486-INFECTIONCONTROLFUND/156,"1,950.00",VOYAGE 1 LTD.
Adult and Health Services,Head of Adults,Third Party Payments,479150,Purchase of Care,08/06/2020,3746487-INFECTIONCONTROLFUND/163,"3,412.50",VOYAGE 1 LTD.
Adult and Health Services,Head of Adults,Third Party Payments,479150,Purchase of Care,08/06/2020,3746490-INFECTIONCONTROLFUND/191,"12,675.00",WEST HOUSE CARE HOME LTD.
Adult and Health Services,Head of Adults,Third Party Payments,479150,Purchase of Care,08/06/2020,3746491-INFECTIONCONTROLFUND/260,"29,250.00",WEST LODGE CARE HOMES LTD.
Adult and Health Services,Head of Adults,Third Party Payments,479150,Purchase of Care,08/06/2020,3746495-INFECTIONCONTROLFUND/208,"19,500.00",WILLIAMS & SPENCELEY LTD.
Adult and Health Services,Head of Adults,Third Party Payments,479150,Purchase of Care,08/06/2020,3746500-INFECTIONCONTROLFUND/145,"2,437.50",YOUNG FOUNDATIONS LTD.
Adult and Health Services,Head of Adults,Third Party Payments,479150,Purchase of Care,08/06/2020,3746501-INFECTIONCONTROLFUND/141,"2,925.00",YOUNG FOUNDATIONS LTD.
Children and Young Peoples Services,Central Charges (CYPS),Supplies and Services,384197,Miscellaneous Expenses,08/06/2020,3746098-A0021136,559.77,BOX IT NORTH.
Children and Young Peoples Services,Central Charges (CYPS),Supplies and Services,384197,Miscellaneous Expenses,08/06/2020,3746098-A0021137,"1,562.10",BOX IT NORTH.
Children and Young Peoples Services,Childrens Services Operational Support,Intangible Assets,917001,Software capitalised licence fees,08/06/2020,3746166-8523,"1,375.00",DOCUMATION SOFTWARE LTD.
Children and Young Peoples Services,Head of Childrens Social Care,Supplies and Services,338044,Services,08/06/2020,3746169-SI-788,713.70,DR SUSAN COOPER.
Children and Young Peoples Services,Head of Education and Skills,Third Party Payments,440999,Other third party payments E440,08/06/2020,3746227-M226,"8,777.00",GROUNDWORK NORTH EAST.
Children and Young Peoples Services,Head of Education and Skills,Third Party Payments,440999,Other third party payments E440,08/06/2020,3746227-M227,"7,080.00",GROUNDWORK NORTH EAST.
Children and Young Peoples Services,Head of Early Help Inclusion & Vulnerable Children.,Third Party Payments,479101,Purchase of Care,08/06/2020,3746326-7010501427,"14,289.00",NHS NORTH DURHAM CCG.
Children and Young Peoples Services,Head of Education and Skills,Fees,901002,Consultants fees 901002,08/06/2020,3746387-TEC547588,"1,050.00",RPS CONSULTING SERVICES LTD.
Children and Young Peoples Services,Head of Education and Skills,Third Party Payments,440999,Other third party payments E440,08/06/2020,3746425-330,"2,840.00",STANLEY EVENTS LTD.
Children and Young Peoples Services,Head of Education and Skills,Construction work A908,908105,Construction work,08/06/2020,3746493-290,"1,295.00",WHORLTON LAND SURVEYS LTD.
Neighbourhoods and Climate Change,Technical Services CM0300,Supplies and Services,338066,Services,08/06/2020,3746052-28427286,"1,725.00",AECOM LTD.
Neighbourhoods and Climate Change,Technical Services CM0300,Supplies and Services,304221,Equipment and Materials,08/06/2020,3746053-29851598,947.94,AGGREGATE INDUSTRIES UK LTD.
Neighbourhoods and Climate Change,Technical Services CM0300,Supplies and Services,304221,Equipment and Materials,08/06/2020,3746053-29851599,730.40,AGGREGATE INDUSTRIES UK LTD.
Neighbourhoods and Climate Change,Technical Services CM0300,Supplies and Services,304221,Equipment and Materials,08/06/2020,3746053-29851600,721.24,AGGREGATE INDUSTRIES UK LTD.
Neighbourhoods and Climate Change,Technical Services CM0300,Supplies and Services,304221,Equipment and Materials,08/06/2020,3746053-29856301,885.48,AGGREGATE INDUSTRIES UK LTD.
Neighbourhoods and Climate Change,Technical Services CM0300,Supplies and Services,304221,Equipment and Materials,08/06/2020,3746053-29856302,"1,191.94",AGGREGATE INDUSTRIES UK LTD.
Neighbourhoods and Climate Change,Technical Services CM0300,Supplies and Services,304221,Equipment and Materials,08/06/2020,3746053-29861027,624.32,AGGREGATE INDUSTRIES UK LTD.
Neighbourhoods and Climate Change,Technical Services CM0300,Supplies and Services,304221,Equipment and Materials,08/06/2020,3746053-29861029,"1,180.96",AGGREGATE INDUSTRIES UK LTD.
Neighbourhoods and Climate Change,Technical Services CM0300,Supplies and Services,304221,Equipment and Materials,08/06/2020,3746053-29861030,"1,121.06",AGGREGATE INDUSTRIES UK LTD.
Neighbourhoods and Climate Change,Technical Services CM0300,Supplies and Services,304221,Equipment and Materials,08/06/2020,3746053-29866848,945.72,AGGREGATE INDUSTRIES UK LTD.
Neighbourhoods and Climate Change,Technical Services CM0300,Supplies and Services,304221,Equipment and Materials,08/06/2020,3746053-29866849,730.40,AGGREGATE INDUSTRIES UK LTD.
Neighbourhoods and Climate Change,Technical Services CM0300,Supplies and Services,304221,Equipment and Materials,08/06/2020,3746053-29866850,623.30,AGGREGATE INDUSTRIES UK LTD.
Neighbourhoods and Climate Change,Technical Services CM0300,Supplies and Services,304221,Equipment and Materials,08/06/2020,3746053-29866852,814.64,AGGREGATE INDUSTRIES UK LTD.
Neighbourhoods and Climate Change,Technical Services CM0300,Supplies and Services,304221,Equipment and Materials,08/06/2020,3746053-29872686,560.06,AGGREGATE INDUSTRIES UK LTD.
Neighbourhoods and Climate Change,Technical Services CM0300,Supplies and Services,304221,Equipment and Materials,08/06/2020,3746053-29873553,913.62,AGGREGATE INDUSTRIES UK LTD.
Neighbourhoods and Climate Change,Technical Services CM0300,Supplies and Services,304221,Equipment and Materials,08/06/2020,3746053-29873554,"1,127.40",AGGREGATE INDUSTRIES UK LTD.
Neighbourhoods and Climate Change,Technical Services CM0300,Supplies and Services,304221,Equipment and Materials,08/06/2020,3746053-29873563,"1,216.34",AGGREGATE INDUSTRIES UK LTD.
Neighbourhoods and Climate Change,Technical Services CM0300,Supplies and Services,304221,Equipment and Materials,08/06/2020,3746053-29873565,"1,202.92",AGGREGATE INDUSTRIES UK LTD.
Neighbourhoods and Climate Change,Technical Services CM0300,Supplies and Services,304221,Equipment and Materials,08/06/2020,3746053-29873566,"1,236.96",AGGREGATE INDUSTRIES UK LTD.
Neighbourhoods and Climate Change,Technical Services CM0300,Supplies and Services,304221,Equipment and Materials,08/06/2020,3746053-29873567,"1,235.16",AGGREGATE INDUSTRIES UK LTD.
Neighbourhoods and Climate Change,Technical Services CM0300,Supplies and Services,304221,Equipment and Materials,08/06/2020,3746053-29873573,608.58,AGGREGATE INDUSTRIES UK LTD.
Neighbourhoods and Climate Change,Technical Services CM0300,Stock A926,926900,Stock in hand-Inventory system,08/06/2020,3746061-18604514,771.00,ALLIANCE DISPOSABLES LTD T/A ALLIANCE NORTH LTD.
Neighbourhoods and Climate Change,Technical Services CM0300,Stock A926,926900,Stock in hand-Inventory system,08/06/2020,3746123-144694,"1,120.00",CHEMTECH WASTE MANAGEMENT LTD.
Neighbourhoods and Climate Change,Partnerships & Community Engagement Div.,Cap Exp on Grants & Other Financial Assistance (REFCUS),918004,Contributions to other bodies 918004,08/06/2020,3746126-VOUCHER19AB-4TOG008,"20,000.00",CHILTON COMMUNITY SPORTS & SOCIAL CLUB LTD.
Neighbourhoods and Climate Change,Environmental Services,Third Party Payments,430100,Rendered by Private Contractors,08/06/2020,3746190-13000455805,783.92,ENTERPRISE FLEX-E-RENT T/A BURNT TREE GROUP LTD.
Neighbourhoods and Climate Change,Environmental Services,Third Party Payments,430100,Rendered by Private Contractors,08/06/2020,3746190-13000460169,964.34,ENTERPRISE FLEX-E-RENT T/A BURNT TREE GROUP LTD.
Neighbourhoods and Climate Change,Technical Services CM0300,Stock A926,926900,Stock in hand-Inventory system,08/06/2020,3746198-132953,"1,153.60",FABRIKAT (NOTTINGHAM) LTD.
Neighbourhoods and Climate Change,Environmental Services,Transport,210057,Repair and Maintenance of Vehicles,08/06/2020,3746224-263612,"1,966.44",GREENLAY T/A THOMAS SHERRIFF & CO LTD.
Neighbourhoods and Climate Change,Environmental Services,Supplies and Services,304259,Equipment and Materials,08/06/2020,3746224-263754,"1,037.40",GREENLAY T/A THOMAS SHERRIFF & CO LTD.
Neighbourhoods and Climate Change,Environmental Services,Stock A926,926004,Stock,08/06/2020,3746224-263817,587.99,GREENLAY T/A THOMAS SHERRIFF & CO LTD.
Neighbourhoods and Climate Change,Environmental Services,Transport,210057,Repair and Maintenance of Vehicles,08/06/2020,3746224-263832,"1,041.70",GREENLAY T/A THOMAS SHERRIFF & CO LTD.
Neighbourhoods and Climate Change,Partnerships & Community Engagement Div.,Cap Exp on Grants & Other Financial Assistance (REFCUS),918004,Contributions to other bodies 918004,08/06/2020,3746256-VOUCHER19NB-EDUR035,"1,500.00",HORDEN PARISH COUNCIL.
Neighbourhoods and Climate Change,Technical Services CM0300,Supplies and Services,304358,Equipment and Materials,08/06/2020,3746275-30273,"1,327.00",JOHN R BUTTERFIELD LTD.
Neighbourhoods and Climate Change,Technical Services CM0300,Supplies and Services,304358,Equipment and Materials,08/06/2020,3746275-30300,"1,068.00",JOHN R BUTTERFIELD LTD.
Neighbourhoods and Climate Change,Technical Services CM0300,Supplies and Services,304358,Equipment and Materials,08/06/2020,3746275-30602,"1,627.50",JOHN R BUTTERFIELD LTD.
Neighbourhoods and Climate Change,Technical Services CM0300,Supplies and Services,304358,Equipment and Materials,08/06/2020,3746275-30610,"1,020.00",JOHN R BUTTERFIELD LTD.
Neighbourhoods and Climate Change,Technical Services CM0300,Supplies and Services,304358,Equipment and Materials,08/06/2020,3746275-30633,"1,440.25",JOHN R BUTTERFIELD LTD.
Neighbourhoods and Climate Change,Technical Services CM0300,Supplies and Services,304358,Equipment and Materials,08/06/2020,3746275-30634,"1,016.75",JOHN R BUTTERFIELD LTD.
Neighbourhoods and Climate Change,Technical Services CM0300,Supplies and Services,304358,Equipment and Materials,08/06/2020,3746275-30635,"1,207.50",JOHN R BUTTERFIELD LTD.
Neighbourhoods and Climate Change,Technical Services CM0300,Supplies and Services,304358,Equipment and Materials,08/06/2020,3746275-30636,"1,260.00",JOHN R BUTTERFIELD LTD.
Neighbourhoods and Climate Change,Technical Services CM0300,Supplies and Services,304358,Equipment and Materials,08/06/2020,3746275-30637,"1,500.00",JOHN R BUTTERFIELD LTD.
Neighbourhoods and Climate Change,Technical Services CM0300,Supplies and Services,304358,Equipment and Materials,08/06/2020,3746283-3262,580.00,KEVIN SNOWDON GROUNDWORKS LTD.
Neighbourhoods and Climate Change,Technical Services CM0300,Supplies and Services,304358,Equipment and Materials,08/06/2020,3746283-3264,770.00,KEVIN SNOWDON GROUNDWORKS LTD.
Neighbourhoods and Climate Change,Technical Services CM0300,Supplies and Services,304358,Equipment and Materials,08/06/2020,3746283-3268,"1,075.00",KEVIN SNOWDON GROUNDWORKS LTD.
Neighbourhoods and Climate Change,Technical Services CM0300,Supplies and Services,304358,Equipment and Materials,08/06/2020,3746283-3270,562.50,KEVIN SNOWDON GROUNDWORKS LTD.
Neighbourhoods and Climate Change,Technical Services CM0300,Supplies and Services,304358,Equipment and Materials,08/06/2020,3746283-3271,925.00,KEVIN SNOWDON GROUNDWORKS LTD.
Neighbourhoods and Climate Change,Technical Services CM0300,Supplies and Services,304358,Equipment and Materials,08/06/2020,3746283-3272,"1,189.00",KEVIN SNOWDON GROUNDWORKS LTD.
Neighbourhoods and Climate Change,Environmental Services,Third Party Payments,430100,Rendered by Private Contractors,08/06/2020,3746318-11850,745.00,N1 JETTING SYSTEMS LTD.
Neighbourhoods and Climate Change,Technical Services CM0300,Third Party Payments,430100,Rendered by Private Contractors,08/06/2020,3746333-DI20340250,"2,068.21",NORTHERN POWERGRID (NORTHEAST) LTD.
Neighbourhoods and Climate Change,Technical Services CM0300,Third Party Payments,430100,Rendered by Private Contractors,08/06/2020,3746333-DI20340259,"1,610.12",NORTHERN POWERGRID (NORTHEAST) LTD.
Neighbourhoods and Climate Change,Environmental Services,Transport,230005,Contract Hire,08/06/2020,3746334-SL06182328INV,"1,015.20",NORTHGATE VEHICLE HIRE LTD.
Neighbourhoods and Climate Change,Environmental Services,Transport,215005,Running Costs of Vehicles,08/06/2020,3746338-607154,"5,081.65",OIL NRG LTD.
Neighbourhoods and Climate Change,Technical Services CM0300,Third Party Payments,430100,Rendered by Private Contractors,08/06/2020,3746371-12614,"1,510.69",QUANTUM POWER CONNECTIONS LTD.
Neighbourhoods and Climate Change,Technical Services CM0300,Supplies and Services,304358,Equipment and Materials,08/06/2020,3746379-3828,"2,176.00",REUBEN SMITH (PLANT HIRE) LTD.
Neighbourhoods and Climate Change,Partnerships & Community Engagement Div.,Cap Exp on Grants & Other Financial Assistance (REFCUS),918004,Contributions to other bodies 918004,08/06/2020,3746425-VOUCHER20ABCV19-STAN011,"8,527.80",STANLEY EVENTS LTD.
Neighbourhoods and Climate Change,Environmental Services,Supplies and Services,328041,Clothing uniforms and laundry E328,08/06/2020,3746457-NSIN00036374,"2,018.62",THOMAS OWEN & SONS (NEWCASTLE) LTD.
Neighbourhoods and Climate Change,Technical Services CM0300,Stock A926,926900,Stock in hand-Inventory system,08/06/2020,3746457-NSIN00036546,634.40,THOMAS OWEN & SONS (NEWCASTLE) LTD.
Neighbourhoods and Climate Change,Technical Services CM0300,Stock A926,926900,Stock in hand-Inventory system,08/06/2020,3746457-NSIN00036547,"1,476.00",THOMAS OWEN & SONS (NEWCASTLE) LTD.
Neighbourhoods and Climate Change,Environmental Services,Transport,230005,Contract Hire,08/06/2020,3746463-21315,975.00,TRASH UK LTD.
Neighbourhoods and Climate Change,Environmental Services,Transport,230005,Contract Hire,08/06/2020,3746463-21344,975.00,TRASH UK LTD.
Neighbourhoods and Climate Change,Technical Services CM0300,Third Party Payments,430100,Rendered by Private Contractors,08/06/2020,3746493-281,"1,950.00",WHORLTON LAND SURVEYS LTD.
Neighbourhoods and Climate Change,Technical Services CM0300,Supplies and Services,338066,Services,08/06/2020,3746493-291,885.00,WHORLTON LAND SURVEYS LTD.
Neighbourhoods and Climate Change,Technical Services CM0300,Supplies and Services,338066,Services,08/06/2020,3746493-295,"1,395.00",WHORLTON LAND SURVEYS LTD.
Neighbourhoods and Climate Change,Technical Services CM0300,Stock A926,926900,Stock in hand-Inventory system,08/06/2020,3746494-554784,960.00,WILLIAM SMITH GROUP 1832.
Regeneration and Local Services,COVID19 - Regeneration Economy and Growth,Supplies and Services,338047,Services,08/06/2020,3746082-00025,500.00,AVALON PROMOTIONS LTD.
Regeneration and Local Services,COVID19 - Neighbourhoods and Climate Change,Premises,145037,Cleaning and Domestic Supplies,08/06/2020,3746457-NSIN00036545,"1,064.00",THOMAS OWEN & SONS (NEWCASTLE) LTD.
"Regeneration, Economy and Growth",Culture Sport and Tourism,Third Party Payments,430100,Rendered by Private Contractors,08/06/2020,3746045-1LIFE20640,"23,000.00",1LIFE MANAGEMENT SOLUTIONS LTD.
"Regeneration, Economy and Growth",Culture Sport and Tourism,Third Party Payments,430100,Rendered by Private Contractors,08/06/2020,3746045-1LIFE20647,"116,750.00",1LIFE MANAGEMENT SOLUTIONS LTD.
"Regeneration, Economy and Growth",Transport and Contracted Services,Third Party Payments,430106,Rendered by Private Contractors,08/06/2020,3746073-117102,"29,443.81",ARRIVA NORTHUMBRIA LTD.
"Regeneration, Economy and Growth",Corporate Property and Land,Supplies and Services,384199,Miscellaneous Expenses,08/06/2020,3746092-38857,"1,240.00",BGP CONSULTING LTD T/A BILLINGHURST GEORGE & PARTNERS.
"Regeneration, Economy and Growth",Culture Sport and Tourism,Premises,145023,Cleaning and Domestic Supplies,08/06/2020,3746101-22SI2259828,"1,739.34",BRENNTAG UK LTD.
"Regeneration, Economy and Growth",Culture Sport and Tourism,Premises,145023,Cleaning and Domestic Supplies,08/06/2020,3746101-22SI2259829,"1,451.48",BRENNTAG UK LTD.
"Regeneration, Economy and Growth",Culture Sport and Tourism,Premises,145023,Cleaning and Domestic Supplies,08/06/2020,3746101-22SI2259919,963.60,BRENNTAG UK LTD.
"Regeneration, Economy and Growth",Corporate Property and Land,Third Party Payments,430100,Rendered by Private Contractors,08/06/2020,3746106-PRI030977,750.00,BROXAP LTD.
"Regeneration, Economy and Growth",Transport and Contracted Services,Supplies and Services,384199,Miscellaneous Expenses,08/06/2020,3746119-INV-0969,"4,995.00",CHALLENGE FOR CHANGE LTD T/A LOVE TO RIDE.
"Regeneration, Economy and Growth",Culture Sport and Tourism,Supplies and Services,384956,Miscellaneous Expenses,08/06/2020,3746138-SI-3105,"2,076.00",CORE BUSINESS SYSTEMS LTD T/A CASCADE 3D.
"Regeneration, Economy and Growth",Corporate Property and Land,Supplies and Services,304221,Equipment and Materials,08/06/2020,3746178-059-263844,512.82,EDMUNDSON ELECTRICAL LTD.
"Regeneration, Economy and Growth",Culture Sport and Tourism,Premises,145023,Cleaning and Domestic Supplies,08/06/2020,3746222-06/064329,546.76,GREENHAM TRADING LTD.
"Regeneration, Economy and Growth",Culture Sport and Tourism,Premises,145023,Cleaning and Domestic Supplies,08/06/2020,3746222-06/064331,576.49,GREENHAM TRADING LTD.
"Regeneration, Economy and Growth",Culture Sport and Tourism,Premises,145023,Cleaning and Domestic Supplies,08/06/2020,3746222-06/065582,"1,015.31",GREENHAM TRADING LTD.
"Regeneration, Economy and Growth",Culture Sport and Tourism,Premises,145023,Cleaning and Domestic Supplies,08/06/2020,3746222-06/066550,801.04,GREENHAM TRADING LTD.
"Regeneration, Economy and Growth",Culture Sport and Tourism,Premises,145023,Cleaning and Domestic Supplies,08/06/2020,3746222-06/066551,609.12,GREENHAM TRADING LTD.
"Regeneration, Economy and Growth",Culture Sport and Tourism,Premises,120009,Energy Costs,08/06/2020,3746262-13720,"2,860.57",IMPALA ESTATES LTD.
"Regeneration, Economy and Growth",Culture Sport and Tourism,Premises,120021,Energy Costs,08/06/2020,3746262-13793,"2,026.45",IMPALA ESTATES LTD.
"Regeneration, Economy and Growth",Culture Sport and Tourism,Premises,120021,Energy Costs,08/06/2020,3746262-13853,"1,786.29",IMPALA ESTATES LTD.
"Regeneration, Economy and Growth",Corporate Property and Land,Supplies and Services,304221,Equipment and Materials,08/06/2020,3746279-0113/00089300,"1,635.12",JT DOVE LTD.
"Regeneration, Economy and Growth",Corporate Property and Land,Supplies and Services,304221,Equipment and Materials,08/06/2020,3746279-0213/00090898,768.79,JT DOVE LTD.
"Regeneration, Economy and Growth",Development and Housing,Fees,901002,Consultants fees 901002,08/06/2020,3746319-5617,"1,260.00",NAPPER ARCHITECTS LTD.
"Regeneration, Economy and Growth",Culture Sport and Tourism,Supplies and Services,312013,Newspapers books and periodicals E312,08/06/2020,3746337-6000000640,"2,790.00",OCLC (UK) LTD.
"Regeneration, Economy and Growth",Corporate Property and Land,Supplies and Services,304221,Equipment and Materials,08/06/2020,3746381-0000056525,"4,603.60",RINNAI UK LTD.
"Regeneration, Economy and Growth",Corporate Property and Land,Supplies and Services,384199,Miscellaneous Expenses,08/06/2020,3746387-TEC547584,"5,634.65",RPS CONSULTING SERVICES LTD.
"Regeneration, Economy and Growth",Business Durham CL0850,Supplies and Services,338066,Services,08/06/2020,3746417-14837,"15,622.00",SOUTH DURHAM ENTERPRISE AGENCY LTD.
"Regeneration, Economy and Growth",Corporate Property and Land,Third Party Payments,430100,Rendered by Private Contractors,08/06/2020,3746430-48074,541.66,STORMKING WINDOWS.
Resources BK0010,Business Support,Supplies and Services,338099,Services,08/06/2020,3746062-C35035,"2,093.16",ALLIED PUBLICITY SERVICES (MANCHESTER) LTD.
Resources BK0010,Business Support,Supplies and Services,338099,Services,08/06/2020,3746062-C39007,"3,054.58",ALLIED PUBLICITY SERVICES (MANCHESTER) LTD.
Resources BK0010,Digital and Customer Services,Supplies and Services,304252,Equipment and Materials,08/06/2020,3746063-10382,"2,250.00",ALPHATEC 2000 LTD.
Resources BK0010,Legal & Democratic Services,Supplies and Services,338042,Services,08/06/2020,3746161-338702/INVCF276,850.00,DERE STREET BARRISTERS.
Resources BK0010,Digital and Customer Services,Supplies and Services,342033,Computers and Communications,08/06/2020,3746264-4855361,"74,300.00",INSIGHT DIRECT (UK) LTD.
Resources BK0010,Business Support,Supplies and Services,304040,Equipment and Materials,08/06/2020,3746268-90809091,"21,198.99",IVANTI UK LTD.
Resources BK0010,Transformation,Fees,901002,Consultants fees 901002,08/06/2020,3746390-002724,"7,250.00",RYDER ARCHITECTURE LTD.
Resources BK0010,Transformation,Fees,901002,Consultants fees 901002,08/06/2020,3746390-002725,"1,500.00",RYDER ARCHITECTURE LTD.
Resources BK0010,Transformation,Fees,901002,Consultants fees 901002,08/06/2020,3746390-002726,"4,212.50",RYDER ARCHITECTURE LTD.
Resources BK0010,Digital and Customer Services,Supplies and Services,344131,Telephones,08/06/2020,3746439-133322,"1,652.80",SWITCHSHOP LTD.
Resources BK0010,Digital and Customer Services,Supplies and Services,342033,Computers and Communications,08/06/2020,3746439-133325,818.00,SWITCHSHOP LTD.
Resources BK0010,Digital and Customer Services,Supplies and Services,342033,Computers and Communications,08/06/2020,3746439-133369,"7,294.20",SWITCHSHOP LTD.
Resources BK0010,Legal & Democratic Services,Supplies and Services,384199,Miscellaneous Expenses,08/06/2020,3746456-I250285,"2,217.20",THOMAS FATTORINI LTD.
Resources BK0010,Legal & Democratic Services,Supplies and Services,338042,Services,08/06/2020,3746465-266243/INVHM200,600.00,TRINITY CHAMBERS.
Adult and Health Services,Head of Adults,Third Party Payments,470101,Purchase of Care,09/06/2020,3747310-2616183,"2,488.08",A CHARLES THOMAS (CARE) LTD.
Adult and Health Services,Head of Adults,Third Party Payments,470101,Purchase of Care,09/06/2020,3747310-2616655,"2,488.08",A CHARLES THOMAS (CARE) LTD.
Adult and Health Services,Head of Adults,Third Party Payments,470101,Purchase of Care,09/06/2020,3747310-2616662,"2,488.08",A CHARLES THOMAS (CARE) LTD.
Adult and Health Services,Head of Adults,Third Party Payments,470101,Purchase of Care,09/06/2020,3747310-2616808,"2,488.08",A CHARLES THOMAS (CARE) LTD.
Adult and Health Services,Head of Adults,Third Party Payments,470101,Purchase of Care,09/06/2020,3747310-2616816,"2,488.08",A CHARLES THOMAS (CARE) LTD.
Adult and Health Services,Head of Adults,Third Party Payments,470101,Purchase of Care,09/06/2020,3747310-2616861,"2,488.08",A CHARLES THOMAS (CARE) LTD.
Adult and Health Services,Head of Adults,Third Party Payments,470101,Purchase of Care,09/06/2020,3747310-2617004,"2,488.08",A CHARLES THOMAS (CARE) LTD.
Adult and Health Services,Head of Adults,Third Party Payments,470101,Purchase of Care,09/06/2020,3747310-2617027,"2,790.20",A CHARLES THOMAS (CARE) LTD.
Adult and Health Services,Head of Adults,Third Party Payments,470101,Purchase of Care,09/06/2020,3747310-2617103,"2,488.08",A CHARLES THOMAS (CARE) LTD.
Adult and Health Services,Head of Adults,Third Party Payments,470101,Purchase of Care,09/06/2020,3747310-2617113,"2,488.08",A CHARLES THOMAS (CARE) LTD.
Adult and Health Services,Head of Adults,Third Party Payments,470101,Purchase of Care,09/06/2020,3747310-2617156,"2,488.08",A CHARLES THOMAS (CARE) LTD.
Adult and Health Services,Head of Adults,Third Party Payments,470101,Purchase of Care,09/06/2020,3747310-2617253,"2,488.08",A CHARLES THOMAS (CARE) LTD.
Adult and Health Services,Head of Adults,Third Party Payments,470101,Purchase of Care,09/06/2020,3747310-2617373,"2,488.08",A CHARLES THOMAS (CARE) LTD.
Adult and Health Services,Head of Adults,Third Party Payments,470101,Purchase of Care,09/06/2020,3747310-2617437,"2,488.08",A CHARLES THOMAS (CARE) LTD.
Adult and Health Services,Head of Adults,Third Party Payments,470101,Purchase of Care,09/06/2020,3747310-2617671,622.02,A CHARLES THOMAS (CARE) LTD.
Adult and Health Services,Head of Adults,Third Party Payments,470101,Purchase of Care,09/06/2020,3747310-2617979,"2,488.08",A CHARLES THOMAS (CARE) LTD.
Adult and Health Services,Head of Adults,Third Party Payments,470101,Purchase of Care,09/06/2020,3747310-2618117,"2,488.08",A CHARLES THOMAS (CARE) LTD.
Adult and Health Services,Head of Adults,Third Party Payments,470101,Purchase of Care,09/06/2020,3747310-2618319,"2,488.08",A CHARLES THOMAS (CARE) LTD.
Adult and Health Services,Head of Adults,Third Party Payments,470101,Purchase of Care,09/06/2020,3747310-2618345,"2,488.08",A CHARLES THOMAS (CARE) LTD.
Adult and Health Services,Head of Adults,Third Party Payments,470101,Purchase of Care,09/06/2020,3747310-2618447,"2,488.08",A CHARLES THOMAS (CARE) LTD.
Adult and Health Services,Head of Adults,Third Party Payments,470101,Purchase of Care,09/06/2020,3747310-2618613,"2,488.08",A CHARLES THOMAS (CARE) LTD.
Adult and Health Services,Head of Adults,Third Party Payments,470101,Purchase of Care,09/06/2020,3747310-2618623,"2,488.08",A CHARLES THOMAS (CARE) LTD.
Adult and Health Services,Head of Adults,Third Party Payments,470101,Purchase of Care,09/06/2020,3747310-2618627,"2,488.08",A CHARLES THOMAS (CARE) LTD.
Adult and Health Services,Head of Adults,Third Party Payments,470101,Purchase of Care,09/06/2020,3747310-2618772,"2,488.08",A CHARLES THOMAS (CARE) LTD.
Adult and Health Services,Head of Adults,Third Party Payments,470101,Purchase of Care,09/06/2020,3747310-2618933,"2,488.08",A CHARLES THOMAS (CARE) LTD.
Adult and Health Services,Head of Adults,Third Party Payments,470101,Purchase of Care,09/06/2020,3747310-2618947,"2,488.08",A CHARLES THOMAS (CARE) LTD.
Adult and Health Services,Head of Adults,Third Party Payments,470101,Purchase of Care,09/06/2020,3747310-2618993,"2,488.08",A CHARLES THOMAS (CARE) LTD.
Adult and Health Services,Head of Adults,Third Party Payments,470101,Purchase of Care,09/06/2020,3747310-2619026,"2,488.08",A CHARLES THOMAS (CARE) LTD.
Adult and Health Services,Head of Adults,Third Party Payments,470101,Purchase of Care,09/06/2020,3747310-2619417,"2,488.08",A CHARLES THOMAS (CARE) LTD.
Adult and Health Services,Head of Adults,Third Party Payments,470101,Purchase of Care,09/06/2020,3747310-2619453,"2,488.08",A CHARLES THOMAS (CARE) LTD.
Adult and Health Services,Head of Adults,Third Party Payments,470101,Purchase of Care,09/06/2020,3747310-2619590,"2,488.08",A CHARLES THOMAS (CARE) LTD.
Adult and Health Services,Head of Adults,Third Party Payments,470101,Purchase of Care,09/06/2020,3747310-2619979,888.60,A CHARLES THOMAS (CARE) LTD.
Adult and Health Services,Head of Adults,Third Party Payments,470101,Purchase of Care,09/06/2020,3747345-2616066,"1,244.04",AKARI CARE LTD.
Adult and Health Services,Head of Adults,Third Party Payments,470101,Purchase of Care,09/06/2020,3747345-2616070,"2,488.08",AKARI CARE LTD.
Adult and Health Services,Head of Adults,Third Party Payments,470101,Purchase of Care,09/06/2020,3747345-2616196,"2,488.08",AKARI CARE LTD.
Adult and Health Services,Head of Adults,Third Party Payments,470101,Purchase of Care,09/06/2020,3747345-2616424,"2,488.08",AKARI CARE LTD.
Adult and Health Services,Head of Adults,Third Party Payments,471101,Purchase of Care,09/06/2020,3747345-2616583,"2,579.92",AKARI CARE LTD.
Adult and Health Services,Head of Adults,Third Party Payments,471101,Purchase of Care,09/06/2020,3747345-2616625,"2,579.92",AKARI CARE LTD.
Adult and Health Services,Head of Adults,Third Party Payments,470101,Purchase of Care,09/06/2020,3747345-2616694,"2,488.08",AKARI CARE LTD.
Adult and Health Services,Head of Adults,Third Party Payments,471101,Purchase of Care,09/06/2020,3747345-2616786,"2,579.92",AKARI CARE LTD.
Adult and Health Services,Head of Adults,Third Party Payments,470101,Purchase of Care,09/06/2020,3747345-2616904,"2,488.08",AKARI CARE LTD.
Adult and Health Services,Head of Adults,Third Party Payments,470101,Purchase of Care,09/06/2020,3747345-2617090,"2,488.08",AKARI CARE LTD.
Adult and Health Services,Head of Adults,Third Party Payments,470101,Purchase of Care,09/06/2020,3747345-2617240,"2,488.08",AKARI CARE LTD.
Adult and Health Services,Head of Adults,Third Party Payments,470101,Purchase of Care,09/06/2020,3747345-2617380,"2,488.08",AKARI CARE LTD.
Adult and Health Services,Head of Adults,Third Party Payments,471101,Purchase of Care,09/06/2020,3747345-2617505,"2,579.92",AKARI CARE LTD.
Adult and Health Services,Head of Adults,Third Party Payments,471101,Purchase of Care,09/06/2020,3747345-2617579,"2,579.92",AKARI CARE LTD.
Adult and Health Services,Head of Adults,Third Party Payments,471101,Purchase of Care,09/06/2020,3747345-2617667,"2,579.92",AKARI CARE LTD.
Adult and Health Services,Head of Adults,Third Party Payments,471101,Purchase of Care,09/06/2020,3747345-2617774,"2,579.92",AKARI CARE LTD.
Adult and Health Services,Head of Adults,Third Party Payments,470101,Purchase of Care,09/06/2020,3747345-2617802,"2,488.08",AKARI CARE LTD.
Adult and Health Services,Head of Adults,Third Party Payments,471101,Purchase of Care,09/06/2020,3747345-2617865,"2,579.92",AKARI CARE LTD.
Adult and Health Services,Head of Adults,Third Party Payments,470101,Purchase of Care,09/06/2020,3747345-2617913,"2,488.08",AKARI CARE LTD.
Adult and Health Services,Head of Adults,Third Party Payments,470101,Purchase of Care,09/06/2020,3747345-2618064,"2,488.08",AKARI CARE LTD.
Adult and Health Services,Head of Adults,Third Party Payments,471101,Purchase of Care,09/06/2020,3747345-2618125,829.26,AKARI CARE LTD.
Adult and Health Services,Head of Adults,Third Party Payments,471101,Purchase of Care,09/06/2020,3747345-2618226,"2,579.92",AKARI CARE LTD.
Adult and Health Services,Head of Adults,Third Party Payments,471101,Purchase of Care,09/06/2020,3747345-2618413,"2,579.92",AKARI CARE LTD.
Adult and Health Services,Head of Adults,Third Party Payments,471101,Purchase of Care,09/06/2020,3747345-2618417,"2,579.92",AKARI CARE LTD.
Adult and Health Services,Head of Adults,Third Party Payments,470101,Purchase of Care,09/06/2020,3747345-2618580,"2,488.08",AKARI CARE LTD.
Adult and Health Services,Head of Adults,Third Party Payments,470101,Purchase of Care,09/06/2020,3747345-2618830,"2,488.08",AKARI CARE LTD.
Adult and Health Services,Head of Adults,Third Party Payments,471101,Purchase of Care,09/06/2020,3747345-2618855,"2,579.92",AKARI CARE LTD.
Adult and Health Services,Head of Adults,Third Party Payments,471101,Purchase of Care,09/06/2020,3747345-2618903,"2,579.92",AKARI CARE LTD.
Adult and Health Services,Head of Adults,Third Party Payments,471101,Purchase of Care,09/06/2020,3747345-2618997,"2,579.92",AKARI CARE LTD.
Adult and Health Services,Head of Adults,Third Party Payments,471101,Purchase of Care,09/06/2020,3747345-2619293,"2,579.92",AKARI CARE LTD.
Adult and Health Services,Head of Adults,Third Party Payments,470101,Purchase of Care,09/06/2020,3747345-2619346,"2,488.08",AKARI CARE LTD.
Adult and Health Services,Head of Adults,Third Party Payments,470101,Purchase of Care,09/06/2020,3747345-2619541,"2,488.08",AKARI CARE LTD.
Adult and Health Services,Head of Adults,Third Party Payments,470101,Purchase of Care,09/06/2020,3747345-2619609,"2,488.08",AKARI CARE LTD.
Adult and Health Services,Head of Adults,Third Party Payments,471101,Purchase of Care,09/06/2020,3747345-2619829,737.12,AKARI CARE LTD.
Adult and Health Services,Head of Adults,Third Party Payments,470101,Purchase of Care,09/06/2020,3747345-2621264,"1,066.32",AKARI CARE LTD.
Adult and Health Services,Head of Adults,Third Party Payments,474101,Purchase of Care,09/06/2020,3747346-2616901,"2,807.96",AKARI CARE LTD.
Adult and Health Services,Head of Adults,Third Party Payments,474101,Purchase of Care,09/06/2020,3747347-2616148,"2,559.24",AKARI CARE LTD.
Adult and Health Services,Head of Adults,Third Party Payments,471101,Purchase of Care,09/06/2020,3747348-2615863,"2,579.92",AKARI CARE LTD.
Adult and Health Services,Head of Adults,Third Party Payments,470101,Purchase of Care,09/06/2020,3747348-2615915,"2,488.08",AKARI CARE LTD.
Adult and Health Services,Head of Adults,Third Party Payments,470101,Purchase of Care,09/06/2020,3747348-2616014,"2,488.08",AKARI CARE LTD.
Adult and Health Services,Head of Adults,Third Party Payments,470101,Purchase of Care,09/06/2020,3747348-2616102,"2,488.08",AKARI CARE LTD.
Adult and Health Services,Head of Adults,Third Party Payments,471101,Purchase of Care,09/06/2020,3747348-2616187,"2,579.92",AKARI CARE LTD.
Adult and Health Services,Head of Adults,Third Party Payments,471101,Purchase of Care,09/06/2020,3747348-2616240,"2,579.92",AKARI CARE LTD.
Adult and Health Services,Head of Adults,Third Party Payments,471101,Purchase of Care,09/06/2020,3747348-2616415,"2,579.92",AKARI CARE LTD.
Adult and Health Services,Head of Adults,Third Party Payments,471101,Purchase of Care,09/06/2020,3747348-2616458,"2,579.92",AKARI CARE LTD.
Adult and Health Services,Head of Adults,Third Party Payments,471101,Purchase of Care,09/06/2020,3747348-2616822,"2,579.92",AKARI CARE LTD.
Adult and Health Services,Head of Adults,Third Party Payments,474101,Purchase of Care,09/06/2020,3747348-2616888,"1,294.72",AKARI CARE LTD.
Adult and Health Services,Head of Adults,Third Party Payments,474999,Purchase of Care,09/06/2020,3747348-2616889,796.99,AKARI CARE LTD.
Adult and Health Services,Head of Adults,Third Party Payments,470101,Purchase of Care,09/06/2020,3747348-2616893,"2,488.08",AKARI CARE LTD.
Adult and Health Services,Head of Adults,Third Party Payments,474101,Purchase of Care,09/06/2020,3747348-2616929,"2,589.44",AKARI CARE LTD.
Adult and Health Services,Head of Adults,Third Party Payments,474101,Purchase of Care,09/06/2020,3747348-2617032,"2,589.44",AKARI CARE LTD.
Adult and Health Services,Head of Adults,Third Party Payments,470101,Purchase of Care,09/06/2020,3747348-2617279,"2,488.08",AKARI CARE LTD.
Adult and Health Services,Head of Adults,Third Party Payments,471101,Purchase of Care,09/06/2020,3747348-2617326,"2,659.92",AKARI CARE LTD.
Adult and Health Services,Head of Adults,Third Party Payments,471101,Purchase of Care,09/06/2020,3747348-2617367,"2,659.92",AKARI CARE LTD.
Adult and Health Services,Head of Adults,Third Party Payments,470101,Purchase of Care,09/06/2020,3747348-2617427,"2,488.08",AKARI CARE LTD.
Adult and Health Services,Head of Adults,Third Party Payments,474101,Purchase of Care,09/06/2020,3747348-2617692,"2,589.44",AKARI CARE LTD.
Adult and Health Services,Head of Adults,Third Party Payments,474101,Purchase of Care,09/06/2020,3747348-2617793,"2,589.44",AKARI CARE LTD.
Adult and Health Services,Head of Adults,Third Party Payments,470101,Purchase of Care,09/06/2020,3747348-2617854,"2,554.08",AKARI CARE LTD.
Adult and Health Services,Head of Adults,Third Party Payments,474101,Purchase of Care,09/06/2020,3747348-2617922,"2,589.44",AKARI CARE LTD.
Adult and Health Services,Head of Adults,Third Party Payments,470101,Purchase of Care,09/06/2020,3747348-2617933,"2,568.08",AKARI CARE LTD.
Adult and Health Services,Head of Adults,Third Party Payments,474101,Purchase of Care,09/06/2020,3747348-2618086,"2,589.44",AKARI CARE LTD.
Adult and Health Services,Head of Adults,Third Party Payments,471101,Purchase of Care,09/06/2020,3747348-2618099,"2,579.92",AKARI CARE LTD.
Adult and Health Services,Head of Adults,Third Party Payments,471101,Purchase of Care,09/06/2020,3747348-2618129,"2,579.92",AKARI CARE LTD.
Adult and Health Services,Head of Adults,Third Party Payments,470101,Purchase of Care,09/06/2020,3747348-2618201,"2,488.08",AKARI CARE LTD.
Adult and Health Services,Head of Adults,Third Party Payments,470101,Purchase of Care,09/06/2020,3747348-2618282,"2,488.08",AKARI CARE LTD.
Adult and Health Services,Head of Adults,Third Party Payments,474101,Purchase of Care,09/06/2020,3747348-2618298,"2,589.44",AKARI CARE LTD.
Adult and Health Services,Head of Adults,Third Party Payments,474101,Purchase of Care,09/06/2020,3747348-2618310,"2,589.44",AKARI CARE LTD.
Adult and Health Services,Head of Adults,Third Party Payments,470101,Purchase of Care,09/06/2020,3747348-2618366,"2,488.08",AKARI CARE LTD.
Adult and Health Services,Head of Adults,Third Party Payments,474101,Purchase of Care,09/06/2020,3747348-2618462,"2,589.44",AKARI CARE LTD.
Adult and Health Services,Head of Adults,Third Party Payments,470101,Purchase of Care,09/06/2020,3747348-2618476,"2,488.08",AKARI CARE LTD.
Adult and Health Services,Head of Adults,Third Party Payments,474101,Purchase of Care,09/06/2020,3747348-2618566,"2,589.44",AKARI CARE LTD.
Adult and Health Services,Head of Adults,Third Party Payments,474101,Purchase of Care,09/06/2020,3747348-2618663,"2,589.44",AKARI CARE LTD.
Adult and Health Services,Head of Adults,Third Party Payments,470101,Purchase of Care,09/06/2020,3747348-2618694,"2,488.08",AKARI CARE LTD.
Adult and Health Services,Head of Adults,Third Party Payments,470101,Purchase of Care,09/06/2020,3747348-2618711,"2,488.08",AKARI CARE LTD.
Adult and Health Services,Head of Adults,Third Party Payments,474101,Purchase of Care,09/06/2020,3747348-2618738,739.84,AKARI CARE LTD.
Adult and Health Services,Head of Adults,Third Party Payments,470101,Purchase of Care,09/06/2020,3747348-2619129,"2,488.08",AKARI CARE LTD.
Adult and Health Services,Head of Adults,Third Party Payments,474101,Purchase of Care,09/06/2020,3747348-2619291,"1,294.72",AKARI CARE LTD.
Adult and Health Services,Head of Adults,Third Party Payments,471101,Purchase of Care,09/06/2020,3747348-2619412,"2,659.92",AKARI CARE LTD.
Adult and Health Services,Head of Adults,Third Party Payments,470101,Purchase of Care,09/06/2020,3747348-2619650,"2,568.08",AKARI CARE LTD.
Adult and Health Services,Head of Adults,Third Party Payments,470101,Purchase of Care,09/06/2020,3747348-2619799,"4,087.56",AKARI CARE LTD.
Adult and Health Services,Head of Adults,Third Party Payments,474101,Purchase of Care,09/06/2020,3747348-2620127,"2,589.44",AKARI CARE LTD.
Adult and Health Services,Head of Adults,Third Party Payments,474101,Purchase of Care,09/06/2020,3747348-2620888,"1,107.15",AKARI CARE LTD.
Adult and Health Services,Head of Adults,Third Party Payments,470101,Purchase of Care,09/06/2020,3747348-2621303,"2,488.08",AKARI CARE LTD.
Adult and Health Services,Head of Adults,Third Party Payments,474101,Purchase of Care,09/06/2020,3747348-2621304,554.88,AKARI CARE LTD.
Adult and Health Services,Head of Adults,Third Party Payments,470101,Purchase of Care,09/06/2020,3747349-2616428,"1,052.00",AKARI CARE LTD.
Adult and Health Services,Head of Adults,Third Party Payments,474101,Purchase of Care,09/06/2020,3747349-2617994,"1,082.00",AKARI CARE LTD.
Adult and Health Services,Head of Adults,Third Party Payments,474101,Purchase of Care,09/06/2020,3747349-2618890,"1,082.00",AKARI CARE LTD.
Adult and Health Services,Head of Adults,Third Party Payments,471101,Purchase of Care,09/06/2020,3747349-2619130,"2,164.00",AKARI CARE LTD.
Adult and Health Services,Head of Adults,Third Party Payments,474101,Purchase of Care,09/06/2020,3747349-2619991,772.85,AKARI CARE LTD.
Adult and Health Services,Head of Adults,Third Party Payments,474999,Purchase of Care,09/06/2020,3747349-2619992,907.96,AKARI CARE LTD.
Adult and Health Services,Head of Adults,Third Party Payments,474101,Purchase of Care,09/06/2020,3747349-2620104,"1,236.57",AKARI CARE LTD.
Adult and Health Services,Head of Adults,Third Party Payments,470101,Purchase of Care,09/06/2020,3747352-2615848,"2,790.20",ALLIANCE CARE (TRENDLEWOOD) LTD.
Adult and Health Services,Head of Adults,Third Party Payments,471101,Purchase of Care,09/06/2020,3747352-2616105,"2,579.92",ALLIANCE CARE (TRENDLEWOOD) LTD.
Adult and Health Services,Head of Adults,Third Party Payments,470101,Purchase of Care,09/06/2020,3747352-2616442,"2,488.08",ALLIANCE CARE (TRENDLEWOOD) LTD.
Adult and Health Services,Head of Adults,Third Party Payments,470101,Purchase of Care,09/06/2020,3747352-2616706,"1,244.04",ALLIANCE CARE (TRENDLEWOOD) LTD.
Adult and Health Services,Head of Adults,Third Party Payments,474101,Purchase of Care,09/06/2020,3747352-2616717,"2,589.44",ALLIANCE CARE (TRENDLEWOOD) LTD.
Adult and Health Services,Head of Adults,Third Party Payments,474101,Purchase of Care,09/06/2020,3747352-2616719,"2,589.44",ALLIANCE CARE (TRENDLEWOOD) LTD.
Adult and Health Services,Head of Adults,Third Party Payments,470101,Purchase of Care,09/06/2020,3747352-2616895,"2,488.08",ALLIANCE CARE (TRENDLEWOOD) LTD.
Adult and Health Services,Head of Adults,Third Party Payments,470101,Purchase of Care,09/06/2020,3747352-2617003,"2,488.08",ALLIANCE CARE (TRENDLEWOOD) LTD.
Adult and Health Services,Head of Adults,Third Party Payments,470101,Purchase of Care,09/06/2020,3747352-2617011,"2,488.08",ALLIANCE CARE (TRENDLEWOOD) LTD.
Adult and Health Services,Head of Adults,Third Party Payments,470101,Purchase of Care,09/06/2020,3747352-2617063,"2,488.08",ALLIANCE CARE (TRENDLEWOOD) LTD.
Adult and Health Services,Head of Adults,Third Party Payments,470101,Purchase of Care,09/06/2020,3747352-2617169,"2,488.08",ALLIANCE CARE (TRENDLEWOOD) LTD.
Adult and Health Services,Head of Adults,Third Party Payments,470101,Purchase of Care,09/06/2020,3747352-2617378,"2,488.08",ALLIANCE CARE (TRENDLEWOOD) LTD.
Adult and Health Services,Head of Adults,Third Party Payments,474101,Purchase of Care,09/06/2020,3747352-2617424,"2,589.44",ALLIANCE CARE (TRENDLEWOOD) LTD.
Adult and Health Services,Head of Adults,Third Party Payments,470101,Purchase of Care,09/06/2020,3747352-2617455,"2,488.08",ALLIANCE CARE (TRENDLEWOOD) LTD.
Adult and Health Services,Head of Adults,Third Party Payments,470101,Purchase of Care,09/06/2020,3747352-2617555,"2,488.08",ALLIANCE CARE (TRENDLEWOOD) LTD.
Adult and Health Services,Head of Adults,Third Party Payments,470101,Purchase of Care,09/06/2020,3747352-2617867,"2,488.08",ALLIANCE CARE (TRENDLEWOOD) LTD.
Adult and Health Services,Head of Adults,Third Party Payments,470101,Purchase of Care,09/06/2020,3747352-2617876,"2,790.20",ALLIANCE CARE (TRENDLEWOOD) LTD.
Adult and Health Services,Head of Adults,Third Party Payments,471101,Purchase of Care,09/06/2020,3747352-2617980,"3,224.90",ALLIANCE CARE (TRENDLEWOOD) LTD.
Adult and Health Services,Head of Adults,Third Party Payments,470101,Purchase of Care,09/06/2020,3747352-2618034,"2,488.08",ALLIANCE CARE (TRENDLEWOOD) LTD.
Adult and Health Services,Head of Adults,Third Party Payments,470101,Purchase of Care,09/06/2020,3747352-2618164,"1,244.04",ALLIANCE CARE (TRENDLEWOOD) LTD.
Adult and Health Services,Head of Adults,Third Party Payments,470101,Purchase of Care,09/06/2020,3747352-2618187,"1,066.32",ALLIANCE CARE (TRENDLEWOOD) LTD.
Adult and Health Services,Head of Adults,Third Party Payments,470101,Purchase of Care,09/06/2020,3747352-2618243,"2,488.08",ALLIANCE CARE (TRENDLEWOOD) LTD.
Adult and Health Services,Head of Adults,Third Party Payments,470101,Purchase of Care,09/06/2020,3747352-2618337,"2,488.08",ALLIANCE CARE (TRENDLEWOOD) LTD.
Adult and Health Services,Head of Adults,Third Party Payments,470101,Purchase of Care,09/06/2020,3747352-2618367,"2,488.08",ALLIANCE CARE (TRENDLEWOOD) LTD.
Adult and Health Services,Head of Adults,Third Party Payments,470101,Purchase of Care,09/06/2020,3747352-2618778,"1,777.20",ALLIANCE CARE (TRENDLEWOOD) LTD.
Adult and Health Services,Head of Adults,Third Party Payments,471101,Purchase of Care,09/06/2020,3747352-2618866,"2,579.92",ALLIANCE CARE (TRENDLEWOOD) LTD.
Adult and Health Services,Head of Adults,Third Party Payments,470101,Purchase of Care,09/06/2020,3747352-2619017,"2,488.08",ALLIANCE CARE (TRENDLEWOOD) LTD.
Adult and Health Services,Head of Adults,Third Party Payments,470101,Purchase of Care,09/06/2020,3747352-2619021,"2,488.08",ALLIANCE CARE (TRENDLEWOOD) LTD.
Adult and Health Services,Head of Adults,Third Party Payments,474101,Purchase of Care,09/06/2020,3747352-2619148,"2,589.44",ALLIANCE CARE (TRENDLEWOOD) LTD.
Adult and Health Services,Head of Adults,Third Party Payments,471101,Purchase of Care,09/06/2020,3747352-2619204,"2,579.92",ALLIANCE CARE (TRENDLEWOOD) LTD.
Adult and Health Services,Head of Adults,Third Party Payments,470101,Purchase of Care,09/06/2020,3747352-2619230,"2,488.08",ALLIANCE CARE (TRENDLEWOOD) LTD.
Adult and Health Services,Head of Adults,Third Party Payments,470101,Purchase of Care,09/06/2020,3747352-2619513,"2,657.20",ALLIANCE CARE (TRENDLEWOOD) LTD.
Adult and Health Services,Head of Adults,Third Party Payments,474101,Purchase of Care,09/06/2020,3747352-2619543,"1,294.72",ALLIANCE CARE (TRENDLEWOOD) LTD.
Adult and Health Services,Head of Adults,Third Party Payments,471101,Purchase of Care,09/06/2020,3747352-2619552,"2,579.92",ALLIANCE CARE (TRENDLEWOOD) LTD.
Adult and Health Services,Head of Adults,Third Party Payments,471101,Purchase of Care,09/06/2020,3747352-2619605,"2,579.92",ALLIANCE CARE (TRENDLEWOOD) LTD.
Adult and Health Services,Head of Adults,Third Party Payments,470102,Purchase of Care,09/06/2020,3747352-2619714,"1,155.18",ALLIANCE CARE (TRENDLEWOOD) LTD.
Adult and Health Services,Head of Adults,Third Party Payments,470102,Purchase of Care,09/06/2020,3747352-2619962,"1,866.06",ALLIANCE CARE (TRENDLEWOOD) LTD.
Adult and Health Services,Head of Adults,Third Party Payments,474101,Purchase of Care,09/06/2020,3747352-2619967,"2,312.00",ALLIANCE CARE (TRENDLEWOOD) LTD.
Adult and Health Services,Head of Adults,Third Party Payments,474101,Purchase of Care,09/06/2020,3747352-2620500,836.79,ALLIANCE CARE (TRENDLEWOOD) LTD.
Adult and Health Services,Head of Adults,Third Party Payments,474101,Purchase of Care,09/06/2020,3747352-2620753,818.43,ALLIANCE CARE (TRENDLEWOOD) LTD.
Adult and Health Services,Head of Adults,Third Party Payments,470101,Purchase of Care,09/06/2020,3747353-2617785,"2,408.00",ANCHOR CAREHOMES LTD.
Adult and Health Services,Head of Adults,Third Party Payments,470101,Purchase of Care,09/06/2020,3747353-2618030,"2,408.00",ANCHOR CAREHOMES LTD.
Adult and Health Services,Head of Adults,Third Party Payments,470101,Purchase of Care,09/06/2020,3747353-2618128,"1,204.00",ANCHOR CAREHOMES LTD.
Adult and Health Services,Head of Adults,Third Party Payments,470101,Purchase of Care,09/06/2020,3747353-2618635,"2,408.00",ANCHOR CAREHOMES LTD.
Adult and Health Services,Head of Adults,Third Party Payments,471101,Purchase of Care,09/06/2020,3747354-2616042,"2,719.92",ANCHOR HANOVER GROUP.
Adult and Health Services,Head of Adults,Third Party Payments,470101,Purchase of Care,09/06/2020,3747354-2616064,"2,808.08",ANCHOR HANOVER GROUP.
Adult and Health Services,Head of Adults,Third Party Payments,471101,Purchase of Care,09/06/2020,3747354-2616277,"2,579.92",ANCHOR HANOVER GROUP.
Adult and Health Services,Head of Adults,Third Party Payments,470101,Purchase of Care,09/06/2020,3747354-2616447,"1,244.04",ANCHOR HANOVER GROUP.
Adult and Health Services,Head of Adults,Third Party Payments,470101,Purchase of Care,09/06/2020,3747354-2616713,"2,728.08",ANCHOR HANOVER GROUP.
Adult and Health Services,Head of Adults,Third Party Payments,471101,Purchase of Care,09/06/2020,3747354-2616730,"2,819.92",ANCHOR HANOVER GROUP.
Adult and Health Services,Head of Adults,Third Party Payments,470101,Purchase of Care,09/06/2020,3747354-2616753,"2,488.08",ANCHOR HANOVER GROUP.
Adult and Health Services,Head of Adults,Third Party Payments,470101,Purchase of Care,09/06/2020,3747354-2616842,"2,608.08",ANCHOR HANOVER GROUP.
Adult and Health Services,Head of Adults,Third Party Payments,470101,Purchase of Care,09/06/2020,3747354-2616940,"2,728.08",ANCHOR HANOVER GROUP.
Adult and Health Services,Head of Adults,Third Party Payments,470101,Purchase of Care,09/06/2020,3747354-2617047,"1,484.04",ANCHOR HANOVER GROUP.
Adult and Health Services,Head of Adults,Third Party Payments,471101,Purchase of Care,09/06/2020,3747354-2617228,"1,289.96",ANCHOR HANOVER GROUP.
Adult and Health Services,Head of Adults,Third Party Payments,470101,Purchase of Care,09/06/2020,3747354-2617288,"2,488.08",ANCHOR HANOVER GROUP.
Adult and Health Services,Head of Adults,Third Party Payments,470101,Purchase of Care,09/06/2020,3747354-2617309,"2,488.08",ANCHOR HANOVER GROUP.
Adult and Health Services,Head of Adults,Third Party Payments,470101,Purchase of Care,09/06/2020,3747354-2617374,"2,808.08",ANCHOR HANOVER GROUP.
Adult and Health Services,Head of Adults,Third Party Payments,470101,Purchase of Care,09/06/2020,3747354-2617578,"3,066.35",ANCHOR HANOVER GROUP.
Adult and Health Services,Head of Adults,Third Party Payments,471101,Purchase of Care,09/06/2020,3747354-2617732,"2,859.92",ANCHOR HANOVER GROUP.
Adult and Health Services,Head of Adults,Third Party Payments,471101,Purchase of Care,09/06/2020,3747354-2617914,"2,819.92",ANCHOR HANOVER GROUP.
Adult and Health Services,Head of Adults,Third Party Payments,470101,Purchase of Care,09/06/2020,3747354-2618018,"1,244.04",ANCHOR HANOVER GROUP.
Adult and Health Services,Head of Adults,Third Party Payments,471101,Purchase of Care,09/06/2020,3747354-2618111,"2,819.92",ANCHOR HANOVER GROUP.
Adult and Health Services,Head of Adults,Third Party Payments,471101,Purchase of Care,09/06/2020,3747354-2618555,"2,979.92",ANCHOR HANOVER GROUP.
Adult and Health Services,Head of Adults,Third Party Payments,470101,Purchase of Care,09/06/2020,3747354-2618559,"2,488.08",ANCHOR HANOVER GROUP.
Adult and Health Services,Head of Adults,Third Party Payments,470101,Purchase of Care,09/06/2020,3747354-2618571,"2,488.08",ANCHOR HANOVER GROUP.
Adult and Health Services,Head of Adults,Third Party Payments,471101,Purchase of Care,09/06/2020,3747354-2618615,"2,979.92",ANCHOR HANOVER GROUP.
Adult and Health Services,Head of Adults,Third Party Payments,470101,Purchase of Care,09/06/2020,3747354-2618802,"2,688.08",ANCHOR HANOVER GROUP.
Adult and Health Services,Head of Adults,Third Party Payments,471101,Purchase of Care,09/06/2020,3747354-2618942,"2,579.92",ANCHOR HANOVER GROUP.
Adult and Health Services,Head of Adults,Third Party Payments,470101,Purchase of Care,09/06/2020,3747354-2619070,"1,244.04",ANCHOR HANOVER GROUP.
Adult and Health Services,Head of Adults,Third Party Payments,471101,Purchase of Care,09/06/2020,3747354-2619090,"2,922.92",ANCHOR HANOVER GROUP.
Adult and Health Services,Head of Adults,Third Party Payments,471101,Purchase of Care,09/06/2020,3747354-2619312,"1,569.96",ANCHOR HANOVER GROUP.
Adult and Health Services,Head of Adults,Third Party Payments,470101,Purchase of Care,09/06/2020,3747354-2619335,"1,753.47",ANCHOR HANOVER GROUP.
Adult and Health Services,Head of Adults,Third Party Payments,471101,Purchase of Care,09/06/2020,3747354-2619447,"2,979.92",ANCHOR HANOVER GROUP.
Adult and Health Services,Head of Adults,Third Party Payments,470101,Purchase of Care,09/06/2020,3747354-2619624,"2,888.08",ANCHOR HANOVER GROUP.
Adult and Health Services,Head of Adults,Third Party Payments,470101,Purchase of Care,09/06/2020,3747354-2619654,"2,728.08",ANCHOR HANOVER GROUP.
Adult and Health Services,Head of Adults,Third Party Payments,471101,Purchase of Care,09/06/2020,3747354-2619681,"3,379.92",ANCHOR HANOVER GROUP.
Adult and Health Services,Head of Adults,Third Party Payments,470101,Purchase of Care,09/06/2020,3747355-2616326,"1,221.42",ANCHOR TRUST.
Adult and Health Services,Head of Adults,Third Party Payments,470101,Purchase of Care,09/06/2020,3747355-2618379,"2,280.00",ANCHOR TRUST.
Adult and Health Services,Head of Adults,Third Party Payments,470101,Purchase of Care,09/06/2020,3747355-2618928,"1,058.57",ANCHOR TRUST.
Adult and Health Services,Head of Adults,Third Party Payments,471101,Purchase of Care,09/06/2020,3747356-2616057,"2,019.76",ANDREW PASS.
Adult and Health Services,Head of Adults,Third Party Payments,474101,Purchase of Care,09/06/2020,3747358-2616791,"2,296.00",ARMSTRONG HOUSE.
Adult and Health Services,Head of Adults,Third Party Payments,470101,Purchase of Care,09/06/2020,3747359-2619116,"2,280.00",ASCOT CARE NORTH EAST LTD..
Adult and Health Services,Head of Adults,Third Party Payments,471101,Purchase of Care,09/06/2020,3747360-2616218,"1,444.48",ASCOT CARE NORTH EAST LTD..
Adult and Health Services,Head of Adults,Third Party Payments,470101,Purchase of Care,09/06/2020,3747360-2616278,"1,872.72",ASCOT CARE NORTH EAST LTD..
Adult and Health Services,Head of Adults,Third Party Payments,470101,Purchase of Care,09/06/2020,3747360-2616331,"2,488.08",ASCOT CARE NORTH EAST LTD..
Adult and Health Services,Head of Adults,Third Party Payments,470101,Purchase of Care,09/06/2020,3747360-2616397,"1,578.60",ASCOT CARE NORTH EAST LTD..
Adult and Health Services,Head of Adults,Third Party Payments,470101,Purchase of Care,09/06/2020,3747360-2616702,"2,488.08",ASCOT CARE NORTH EAST LTD..
Adult and Health Services,Head of Adults,Third Party Payments,470101,Purchase of Care,09/06/2020,3747360-2616964,"1,582.16",ASCOT CARE NORTH EAST LTD..
Adult and Health Services,Head of Adults,Third Party Payments,471101,Purchase of Care,09/06/2020,3747360-2617450,"1,973.00",ASCOT CARE NORTH EAST LTD..
Adult and Health Services,Head of Adults,Third Party Payments,470101,Purchase of Care,09/06/2020,3747360-2617642,"1,244.04",ASCOT CARE NORTH EAST LTD..
Adult and Health Services,Head of Adults,Third Party Payments,470101,Purchase of Care,09/06/2020,3747360-2618346,"1,813.08",ASCOT CARE NORTH EAST LTD..
Adult and Health Services,Head of Adults,Third Party Payments,470101,Purchase of Care,09/06/2020,3747360-2618562,"2,488.08",ASCOT CARE NORTH EAST LTD..
Adult and Health Services,Head of Adults,Third Party Payments,471101,Purchase of Care,09/06/2020,3747360-2618568,"1,289.96",ASCOT CARE NORTH EAST LTD..
Adult and Health Services,Head of Adults,Third Party Payments,470101,Purchase of Care,09/06/2020,3747360-2618626,"2,488.08",ASCOT CARE NORTH EAST LTD..
Adult and Health Services,Head of Adults,Third Party Payments,471101,Purchase of Care,09/06/2020,3747360-2618699,"1,289.96",ASCOT CARE NORTH EAST LTD..
Adult and Health Services,Head of Adults,Third Party Payments,470101,Purchase of Care,09/06/2020,3747360-2618732,"1,744.76",ASCOT CARE NORTH EAST LTD..
Adult and Health Services,Head of Adults,Third Party Payments,470101,Purchase of Care,09/06/2020,3747360-2618862,"2,488.08",ASCOT CARE NORTH EAST LTD..
Adult and Health Services,Head of Adults,Third Party Payments,471101,Purchase of Care,09/06/2020,3747360-2619657,"1,444.52",ASCOT CARE NORTH EAST LTD..
Adult and Health Services,Head of Adults,Third Party Payments,470101,Purchase of Care,09/06/2020,3747360-2619661,"2,488.08",ASCOT CARE NORTH EAST LTD..
Adult and Health Services,Head of Adults,Third Party Payments,470101,Purchase of Care,09/06/2020,3747360-2619685,533.16,ASCOT CARE NORTH EAST LTD..
Adult and Health Services,Head of Adults,Third Party Payments,470101,Purchase of Care,09/06/2020,3747360-2619697,"1,599.48",ASCOT CARE NORTH EAST LTD..
Adult and Health Services,Head of Adults,Third Party Payments,470101,Purchase of Care,09/06/2020,3747360-2621255,"2,221.50",ASCOT CARE NORTH EAST LTD..
Adult and Health Services,Head of Adults,Third Party Payments,471101,Purchase of Care,09/06/2020,3747361-2617583,"2,667.16",ASHBOURNE LODGE CARE HOME.
Adult and Health Services,Head of Adults,Third Party Payments,470101,Purchase of Care,09/06/2020,3747362-2617018,"1,140.00",ASPIRE CARE GROUP T/A GRASMERE LODGE.
Adult and Health Services,Head of Adults,Third Party Payments,470101,Purchase of Care,09/06/2020,3747363-2615789,"1,531.24",ASPIRE CARE GROUP.
Adult and Health Services,Head of Adults,Third Party Payments,470101,Purchase of Care,09/06/2020,3747363-2615805,"1,396.32",ASPIRE CARE GROUP.
Adult and Health Services,Head of Adults,Third Party Payments,470101,Purchase of Care,09/06/2020,3747363-2615817,"1,702.68",ASPIRE CARE GROUP.
Adult and Health Services,Head of Adults,Third Party Payments,470101,Purchase of Care,09/06/2020,3747363-2615956,"2,125.68",ASPIRE CARE GROUP.
Adult and Health Services,Head of Adults,Third Party Payments,470101,Purchase of Care,09/06/2020,3747363-2615964,"2,125.68",ASPIRE CARE GROUP.
Adult and Health Services,Head of Adults,Third Party Payments,470101,Purchase of Care,09/06/2020,3747363-2615974,"1,062.84",ASPIRE CARE GROUP.
Adult and Health Services,Head of Adults,Third Party Payments,470101,Purchase of Care,09/06/2020,3747363-2619518,"1,497.60",ASPIRE CARE GROUP.
Adult and Health Services,Head of Adults,Third Party Payments,470101,Purchase of Care,09/06/2020,3747364-2615801,"2,125.68",ASPIRE CARE GROUP.
Adult and Health Services,Head of Adults,Third Party Payments,470101,Purchase of Care,09/06/2020,3747364-2616186,"2,125.68",ASPIRE CARE GROUP.
Adult and Health Services,Head of Adults,Third Party Payments,470101,Purchase of Care,09/06/2020,3747365-2615950,"2,125.68",ASPIRE CARE GROUP.
Adult and Health Services,Head of Adults,Third Party Payments,470101,Purchase of Care,09/06/2020,3747365-2615959,"1,893.56",ASPIRE CARE GROUP.
Adult and Health Services,Head of Adults,Third Party Payments,470101,Purchase of Care,09/06/2020,3747365-2615960,668.64,ASPIRE CARE GROUP.
Adult and Health Services,Head of Adults,Third Party Payments,470101,Purchase of Care,09/06/2020,3747365-2617035,"1,893.56",ASPIRE CARE GROUP.
Adult and Health Services,Head of Adults,Third Party Payments,470101,Purchase of Care,09/06/2020,3747365-2617036,"2,695.00",ASPIRE CARE GROUP.
Adult and Health Services,Head of Adults,Third Party Payments,470101,Purchase of Care,09/06/2020,3747365-2619986,"15,940.11",ASPIRE CARE GROUP.
Adult and Health Services,Head of Adults,Third Party Payments,474101,Purchase of Care,09/06/2020,3747366-2616612,"2,400.00",ASTORIA HEALTHCARE LTD.
Adult and Health Services,Head of Adults,Third Party Payments,474101,Purchase of Care,09/06/2020,3747367-2616538,"1,288.00",ATLAS CARE HOMES LTD.
Adult and Health Services,Head of Adults,Third Party Payments,474999,Purchase of Care,09/06/2020,3747367-2616539,796.99,ATLAS CARE HOMES LTD.
Adult and Health Services,Head of Adults,Third Party Payments,474101,Purchase of Care,09/06/2020,3747367-2616737,"2,476.00",ATLAS CARE HOMES LTD.
Adult and Health Services,Head of Adults,Third Party Payments,470101,Purchase of Care,09/06/2020,3747369-2615905,"3,216.12",AUTISM CARE UK (4) LTD.
Adult and Health Services,Head of Adults,Third Party Payments,470101,Purchase of Care,09/06/2020,3747369-2616035,"4,504.60",AUTISM CARE UK (4) LTD.
Adult and Health Services,Head of Adults,Third Party Payments,470101,Purchase of Care,09/06/2020,3747369-2616036,"1,683.36",AUTISM CARE UK (4) LTD.
Adult and Health Services,Head of Adults,Third Party Payments,470101,Purchase of Care,09/06/2020,3747369-2616965,"2,084.80",AUTISM CARE UK (4) LTD.
Adult and Health Services,Head of Adults,Third Party Payments,470101,Purchase of Care,09/06/2020,3747369-2616966,"9,412.96",AUTISM CARE UK (4) LTD.
Adult and Health Services,Head of Adults,Third Party Payments,470101,Purchase of Care,09/06/2020,3747369-2616999,"4,096.08",AUTISM CARE UK (4) LTD.
Adult and Health Services,Head of Adults,Third Party Payments,470101,Purchase of Care,09/06/2020,3747369-2620012,"1,751.93",AUTISM CARE UK (4) LTD.
Adult and Health Services,Head of Adults,Third Party Payments,470101,Purchase of Care,09/06/2020,3747369-2620014,"3,027.47",AUTISM CARE UK (4) LTD.
Adult and Health Services,Head of Adults,Third Party Payments,470101,Purchase of Care,09/06/2020,3747370-2616340,"2,232.00",BARCHESTER HEALTHCARE HOMES LTD.
Adult and Health Services,Head of Adults,Third Party Payments,470101,Purchase of Care,09/06/2020,3747370-2616851,"2,232.00",BARCHESTER HEALTHCARE HOMES LTD.
Adult and Health Services,Head of Adults,Third Party Payments,470101,Purchase of Care,09/06/2020,3747370-2619239,"1,172.00",BARCHESTER HEALTHCARE HOMES LTD.
Adult and Health Services,Head of Adults,Third Party Payments,474101,Purchase of Care,09/06/2020,3747371-2615884,"2,457.28",BARCHESTER HEALTHCARE HOMES LTD.
Adult and Health Services,Head of Adults,Third Party Payments,474101,Purchase of Care,09/06/2020,3747371-2615918,"2,457.28",BARCHESTER HEALTHCARE HOMES LTD.
Adult and Health Services,Head of Adults,Third Party Payments,474101,Purchase of Care,09/06/2020,3747371-2616080,"2,679.88",BARCHESTER HEALTHCARE HOMES LTD.
Adult and Health Services,Head of Adults,Third Party Payments,474101,Purchase of Care,09/06/2020,3747371-2616120,"1,228.64",BARCHESTER HEALTHCARE HOMES LTD.
Adult and Health Services,Head of Adults,Third Party Payments,474999,Purchase of Care,09/06/2020,3747371-2616121,796.99,BARCHESTER HEALTHCARE HOMES LTD.
Adult and Health Services,Head of Adults,Third Party Payments,474101,Purchase of Care,09/06/2020,3747371-2616349,"2,457.28",BARCHESTER HEALTHCARE HOMES LTD.
Adult and Health Services,Head of Adults,Third Party Payments,474101,Purchase of Care,09/06/2020,3747371-2616376,"2,457.28",BARCHESTER HEALTHCARE HOMES LTD.
Adult and Health Services,Head of Adults,Third Party Payments,474101,Purchase of Care,09/06/2020,3747371-2616418,"2,457.28",BARCHESTER HEALTHCARE HOMES LTD.
Adult and Health Services,Head of Adults,Third Party Payments,474101,Purchase of Care,09/06/2020,3747371-2617292,"2,457.28",BARCHESTER HEALTHCARE HOMES LTD.
Adult and Health Services,Head of Adults,Third Party Payments,470101,Purchase of Care,09/06/2020,3747371-2617358,"2,354.80",BARCHESTER HEALTHCARE HOMES LTD.
Adult and Health Services,Head of Adults,Third Party Payments,474101,Purchase of Care,09/06/2020,3747371-2617462,"2,457.28",BARCHESTER HEALTHCARE HOMES LTD.
Adult and Health Services,Head of Adults,Third Party Payments,474101,Purchase of Care,09/06/2020,3747371-2617498,"1,228.64",BARCHESTER HEALTHCARE HOMES LTD.
Adult and Health Services,Head of Adults,Third Party Payments,474999,Purchase of Care,09/06/2020,3747371-2617499,557.66,BARCHESTER HEALTHCARE HOMES LTD.
Adult and Health Services,Head of Adults,Third Party Payments,474101,Purchase of Care,09/06/2020,3747371-2617657,"2,457.28",BARCHESTER HEALTHCARE HOMES LTD.
Adult and Health Services,Head of Adults,Third Party Payments,474101,Purchase of Care,09/06/2020,3747371-2617845,"2,457.28",BARCHESTER HEALTHCARE HOMES LTD.
Adult and Health Services,Head of Adults,Third Party Payments,470101,Purchase of Care,09/06/2020,3747371-2617943,"2,354.80",BARCHESTER HEALTHCARE HOMES LTD.
Adult and Health Services,Head of Adults,Third Party Payments,474101,Purchase of Care,09/06/2020,3747371-2618010,"1,228.64",BARCHESTER HEALTHCARE HOMES LTD.
Adult and Health Services,Head of Adults,Third Party Payments,474999,Purchase of Care,09/06/2020,3747371-2618011,654.66,BARCHESTER HEALTHCARE HOMES LTD.
Adult and Health Services,Head of Adults,Third Party Payments,474101,Purchase of Care,09/06/2020,3747371-2618144,"2,679.88",BARCHESTER HEALTHCARE HOMES LTD.
Adult and Health Services,Head of Adults,Third Party Payments,470101,Purchase of Care,09/06/2020,3747371-2618261,"2,354.80",BARCHESTER HEALTHCARE HOMES LTD.
Adult and Health Services,Head of Adults,Third Party Payments,474101,Purchase of Care,09/06/2020,3747371-2618504,"1,228.64",BARCHESTER HEALTHCARE HOMES LTD.
Adult and Health Services,Head of Adults,Third Party Payments,474101,Purchase of Care,09/06/2020,3747371-2618599,"1,228.64",BARCHESTER HEALTHCARE HOMES LTD.
Adult and Health Services,Head of Adults,Third Party Payments,474999,Purchase of Care,09/06/2020,3747371-2618600,796.99,BARCHESTER HEALTHCARE HOMES LTD.
Adult and Health Services,Head of Adults,Third Party Payments,474101,Purchase of Care,09/06/2020,3747371-2618676,"2,457.28",BARCHESTER HEALTHCARE HOMES LTD.
Adult and Health Services,Head of Adults,Third Party Payments,474101,Purchase of Care,09/06/2020,3747371-2619487,"1,228.64",BARCHESTER HEALTHCARE HOMES LTD.
Adult and Health Services,Head of Adults,Third Party Payments,474101,Purchase of Care,09/06/2020,3747371-2619871,570.44,BARCHESTER HEALTHCARE HOMES LTD.
Adult and Health Services,Head of Adults,Third Party Payments,474999,Purchase of Care,09/06/2020,3747371-2619872,573.66,BARCHESTER HEALTHCARE HOMES LTD.
Adult and Health Services,Head of Adults,Third Party Payments,474101,Purchase of Care,09/06/2020,3747371-2619873,"19,922.69",BARCHESTER HEALTHCARE HOMES LTD.
Adult and Health Services,Head of Adults,Third Party Payments,474101,Purchase of Care,09/06/2020,3747371-2619879,"1,316.40",BARCHESTER HEALTHCARE HOMES LTD.
Adult and Health Services,Head of Adults,Third Party Payments,474101,Purchase of Care,09/06/2020,3747371-2620110,"2,967.01",BARCHESTER HEALTHCARE HOMES LTD.
Adult and Health Services,Head of Adults,Third Party Payments,471101,Purchase of Care,09/06/2020,3747372-2616067,"1,335.36",BARCHESTER HEALTHCARE HOMES LTD.
Adult and Health Services,Head of Adults,Third Party Payments,474101,Purchase of Care,09/06/2020,3747373-2616089,"2,580.00",BARCHESTER HEALTHCARE HOMES LTD.
Adult and Health Services,Head of Adults,Third Party Payments,470101,Purchase of Care,09/06/2020,3747374-2617842,"2,044.00",BARCHESTER HEALTHCARE HOMES LTD.
Adult and Health Services,Head of Adults,Third Party Payments,470101,Purchase of Care,09/06/2020,3747374-2618852,"2,044.00",BARCHESTER HEALTHCARE HOMES LTD.
Adult and Health Services,Head of Adults,Third Party Payments,470101,Purchase of Care,09/06/2020,3747374-2619000,"2,044.00",BARCHESTER HEALTHCARE HOMES LTD.
Adult and Health Services,Head of Adults,Third Party Payments,470101,Purchase of Care,09/06/2020,3747374-2619001,"2,044.00",BARCHESTER HEALTHCARE HOMES LTD.
Adult and Health Services,Head of Adults,Third Party Payments,474101,Purchase of Care,09/06/2020,3747375-2616637,"2,700.00",BARCHESTER HEALTHCARE HOMES LTD.
Adult and Health Services,Head of Adults,Third Party Payments,474101,Purchase of Care,09/06/2020,3747375-2616879,"1,980.00",BARCHESTER HEALTHCARE HOMES LTD.
Adult and Health Services,Head of Adults,Third Party Payments,470101,Purchase of Care,09/06/2020,3747375-2617421,"2,700.00",BARCHESTER HEALTHCARE HOMES LTD.
Adult and Health Services,Head of Adults,Third Party Payments,470101,Purchase of Care,09/06/2020,3747375-2617491,"2,700.00",BARCHESTER HEALTHCARE HOMES LTD.
Adult and Health Services,Head of Adults,Third Party Payments,474101,Purchase of Care,09/06/2020,3747375-2617729,"2,700.00",BARCHESTER HEALTHCARE HOMES LTD.
Adult and Health Services,Head of Adults,Third Party Payments,474101,Purchase of Care,09/06/2020,3747375-2618150,"2,700.00",BARCHESTER HEALTHCARE HOMES LTD.
Adult and Health Services,Head of Adults,Third Party Payments,474101,Purchase of Care,09/06/2020,3747375-2618284,"2,700.00",BARCHESTER HEALTHCARE HOMES LTD.
Adult and Health Services,Head of Adults,Third Party Payments,470101,Purchase of Care,09/06/2020,3747375-2618754,"2,700.00",BARCHESTER HEALTHCARE HOMES LTD.
Adult and Health Services,Head of Adults,Third Party Payments,470101,Purchase of Care,09/06/2020,3747375-2619068,"2,800.00",BARCHESTER HEALTHCARE HOMES LTD.
Adult and Health Services,Head of Adults,Third Party Payments,474101,Purchase of Care,09/06/2020,3747375-2619343,"2,700.00",BARCHESTER HEALTHCARE HOMES LTD.
Adult and Health Services,Head of Adults,Third Party Payments,474101,Purchase of Care,09/06/2020,3747375-2619490,"2,700.00",BARCHESTER HEALTHCARE HOMES LTD.
Adult and Health Services,Head of Adults,Third Party Payments,474101,Purchase of Care,09/06/2020,3747375-2619677,"3,111.36",BARCHESTER HEALTHCARE HOMES LTD.
Adult and Health Services,Head of Adults,Third Party Payments,474101,Purchase of Care,09/06/2020,3747375-2619718,"2,804.00",BARCHESTER HEALTHCARE HOMES LTD.
Adult and Health Services,Head of Adults,Third Party Payments,470101,Purchase of Care,09/06/2020,3747375-2619719,"2,720.00",BARCHESTER HEALTHCARE HOMES LTD.
Adult and Health Services,Head of Adults,Third Party Payments,474101,Purchase of Care,09/06/2020,3747375-2619723,"1,072.00",BARCHESTER HEALTHCARE HOMES LTD.
Adult and Health Services,Head of Adults,Third Party Payments,474101,Purchase of Care,09/06/2020,3747377-2616192,"2,700.00",BARCHESTER HEALTHCARE HOMES LTD.
Adult and Health Services,Head of Adults,Third Party Payments,474101,Purchase of Care,09/06/2020,3747377-2616865,"2,990.00",BARCHESTER HEALTHCARE HOMES LTD.
Adult and Health Services,Head of Adults,Third Party Payments,474101,Purchase of Care,09/06/2020,3747377-2617105,"2,950.00",BARCHESTER HEALTHCARE HOMES LTD.
Adult and Health Services,Head of Adults,Third Party Payments,474101,Purchase of Care,09/06/2020,3747377-2617182,"2,950.00",BARCHESTER HEALTHCARE HOMES LTD.
Adult and Health Services,Head of Adults,Third Party Payments,474999,Purchase of Care,09/06/2020,3747377-2617183,568.21,BARCHESTER HEALTHCARE HOMES LTD.
Adult and Health Services,Head of Adults,Third Party Payments,474101,Purchase of Care,09/06/2020,3747377-2617397,"2,950.00",BARCHESTER HEALTHCARE HOMES LTD.
Adult and Health Services,Head of Adults,Third Party Payments,474999,Purchase of Care,09/06/2020,3747377-2617398,796.99,BARCHESTER HEALTHCARE HOMES LTD.
Adult and Health Services,Head of Adults,Third Party Payments,474101,Purchase of Care,09/06/2020,3747377-2617428,"2,994.00",BARCHESTER HEALTHCARE HOMES LTD.
Adult and Health Services,Head of Adults,Third Party Payments,474101,Purchase of Care,09/06/2020,3747377-2617429,"3,360.00",BARCHESTER HEALTHCARE HOMES LTD.
Adult and Health Services,Head of Adults,Third Party Payments,474101,Purchase of Care,09/06/2020,3747377-2617645,"3,179.72",BARCHESTER HEALTHCARE HOMES LTD.
Adult and Health Services,Head of Adults,Third Party Payments,474101,Purchase of Care,09/06/2020,3747377-2618005,"2,950.00",BARCHESTER HEALTHCARE HOMES LTD.
Adult and Health Services,Head of Adults,Third Party Payments,474101,Purchase of Care,09/06/2020,3747377-2618006,"2,688.00",BARCHESTER HEALTHCARE HOMES LTD.
Adult and Health Services,Head of Adults,Third Party Payments,474999,Purchase of Care,09/06/2020,3747377-2618007,612.49,BARCHESTER HEALTHCARE HOMES LTD.
Adult and Health Services,Head of Adults,Third Party Payments,474101,Purchase of Care,09/06/2020,3747377-2619036,"2,950.00",BARCHESTER HEALTHCARE HOMES LTD.
Adult and Health Services,Head of Adults,Third Party Payments,474101,Purchase of Care,09/06/2020,3747377-2619464,"2,950.00",BARCHESTER HEALTHCARE HOMES LTD.
Adult and Health Services,Head of Adults,Third Party Payments,470101,Purchase of Care,09/06/2020,3747378-2616246,"1,032.00",BARCHESTER HEALTHCARE HOMES LTD.
Adult and Health Services,Head of Adults,Third Party Payments,471101,Purchase of Care,09/06/2020,3747378-2616573,"2,144.00",BARCHESTER HEALTHCARE HOMES LTD.
Adult and Health Services,Head of Adults,Third Party Payments,470101,Purchase of Care,09/06/2020,3747378-2618057,"2,064.00",BARCHESTER HEALTHCARE HOMES LTD.
Adult and Health Services,Head of Adults,Third Party Payments,470101,Purchase of Care,09/06/2020,3747378-2618737,"3,980.57",BARCHESTER HEALTHCARE HOMES LTD.
Adult and Health Services,Head of Adults,Third Party Payments,471101,Purchase of Care,09/06/2020,3747378-2619642,"2,144.00",BARCHESTER HEALTHCARE HOMES LTD.
Adult and Health Services,Public Health CC0450,Third Party Payments,460803,Contract Payments,09/06/2020,3747380-141010514,"17,500.00",BARNARDO SERVICES LTD.
Adult and Health Services,Commissioning inc Supporting People,Third Party Payments,479102,Purchase of Care,09/06/2020,3747380-141010515,"35,660.56",BARNARDO SERVICES LTD.
Adult and Health Services,Head of Adults,Third Party Payments,470101,Purchase of Care,09/06/2020,3747383-2616174,"2,354.80",BEAMISH RESIDENTIAL CARE HOME LTD.
Adult and Health Services,Head of Adults,Third Party Payments,470101,Purchase of Care,09/06/2020,3747383-2616175,528.00,BEAMISH RESIDENTIAL CARE HOME LTD.
Adult and Health Services,Head of Adults,Third Party Payments,470101,Purchase of Care,09/06/2020,3747383-2616362,"2,354.80",BEAMISH RESIDENTIAL CARE HOME LTD.
Adult and Health Services,Head of Adults,Third Party Payments,470101,Purchase of Care,09/06/2020,3747383-2616363,"2,354.80",BEAMISH RESIDENTIAL CARE HOME LTD.
Adult and Health Services,Head of Adults,Third Party Payments,470101,Purchase of Care,09/06/2020,3747383-2616370,"1,177.40",BEAMISH RESIDENTIAL CARE HOME LTD.
Adult and Health Services,Head of Adults,Third Party Payments,470101,Purchase of Care,09/06/2020,3747383-2616650,"2,354.80",BEAMISH RESIDENTIAL CARE HOME LTD.
Adult and Health Services,Head of Adults,Third Party Payments,470101,Purchase of Care,09/06/2020,3747383-2616705,"2,354.80",BEAMISH RESIDENTIAL CARE HOME LTD.
Adult and Health Services,Head of Adults,Third Party Payments,470101,Purchase of Care,09/06/2020,3747383-2617319,"2,447.76",BEAMISH RESIDENTIAL CARE HOME LTD.
Adult and Health Services,Head of Adults,Third Party Payments,470101,Purchase of Care,09/06/2020,3747383-2617561,"2,354.80",BEAMISH RESIDENTIAL CARE HOME LTD.
Adult and Health Services,Head of Adults,Third Party Payments,471101,Purchase of Care,09/06/2020,3747383-2617966,"1,852.36",BEAMISH RESIDENTIAL CARE HOME LTD.
Adult and Health Services,Head of Adults,Third Party Payments,470101,Purchase of Care,09/06/2020,3747383-2618140,"1,459.36",BEAMISH RESIDENTIAL CARE HOME LTD.
Adult and Health Services,Head of Adults,Third Party Payments,470101,Purchase of Care,09/06/2020,3747383-2618238,"2,354.80",BEAMISH RESIDENTIAL CARE HOME LTD.
Adult and Health Services,Head of Adults,Third Party Payments,470101,Purchase of Care,09/06/2020,3747384-2617614,"3,246.24",BENTON CARE SERVICES LTD.
Adult and Health Services,Head of Adults,Third Party Payments,470101,Purchase of Care,09/06/2020,3747384-2617615,"3,246.24",BENTON CARE SERVICES LTD.
Adult and Health Services,Head of Adults,Third Party Payments,470101,Purchase of Care,09/06/2020,3747384-2617616,"3,246.24",BENTON CARE SERVICES LTD.
Adult and Health Services,Head of Adults,Third Party Payments,470101,Purchase of Care,09/06/2020,3747384-2617617,"3,246.24",BENTON CARE SERVICES LTD.
Adult and Health Services,Head of Adults,Third Party Payments,470101,Purchase of Care,09/06/2020,3747384-2617618,"2,084.80",BENTON CARE SERVICES LTD.
Adult and Health Services,Head of Adults,Third Party Payments,470101,Purchase of Care,09/06/2020,3747384-2617619,"3,246.24",BENTON CARE SERVICES LTD.
Adult and Health Services,Head of Adults,Third Party Payments,470101,Purchase of Care,09/06/2020,3747384-2617620,"3,246.24",BENTON CARE SERVICES LTD.
Adult and Health Services,Head of Adults,Third Party Payments,470101,Purchase of Care,09/06/2020,3747384-2617621,"1,042.40",BENTON CARE SERVICES LTD.
Adult and Health Services,Head of Adults,Third Party Payments,471101,Purchase of Care,09/06/2020,3747387-2615808,"2,579.92",BONDCARE WILLINGTON LTD.
Adult and Health Services,Head of Adults,Third Party Payments,471101,Purchase of Care,09/06/2020,3747387-2615994,"2,579.92",BONDCARE WILLINGTON LTD.
Adult and Health Services,Head of Adults,Third Party Payments,470101,Purchase of Care,09/06/2020,3747387-2616179,"2,566.48",BONDCARE WILLINGTON LTD.
Adult and Health Services,Head of Adults,Third Party Payments,471101,Purchase of Care,09/06/2020,3747387-2616219,"2,579.92",BONDCARE WILLINGTON LTD.
Adult and Health Services,Head of Adults,Third Party Payments,470101,Purchase of Care,09/06/2020,3747387-2616237,"2,566.48",BONDCARE WILLINGTON LTD.
Adult and Health Services,Head of Adults,Third Party Payments,471101,Purchase of Care,09/06/2020,3747387-2616250,"2,579.92",BONDCARE WILLINGTON LTD.
Adult and Health Services,Head of Adults,Third Party Payments,470101,Purchase of Care,09/06/2020,3747387-2616383,"2,566.48",BONDCARE WILLINGTON LTD.
Adult and Health Services,Head of Adults,Third Party Payments,470101,Purchase of Care,09/06/2020,3747387-2616828,"2,566.48",BONDCARE WILLINGTON LTD.
Adult and Health Services,Head of Adults,Third Party Payments,471101,Purchase of Care,09/06/2020,3747387-2616905,"2,579.92",BONDCARE WILLINGTON LTD.
Adult and Health Services,Head of Adults,Third Party Payments,471101,Purchase of Care,09/06/2020,3747387-2617337,"2,579.92",BONDCARE WILLINGTON LTD.
Adult and Health Services,Head of Adults,Third Party Payments,471101,Purchase of Care,09/06/2020,3747387-2617727,"2,579.92",BONDCARE WILLINGTON LTD.
Adult and Health Services,Head of Adults,Third Party Payments,471101,Purchase of Care,09/06/2020,3747387-2617844,"2,579.92",BONDCARE WILLINGTON LTD.
Adult and Health Services,Head of Adults,Third Party Payments,470101,Purchase of Care,09/06/2020,3747387-2617850,"2,566.48",BONDCARE WILLINGTON LTD.
Adult and Health Services,Head of Adults,Third Party Payments,471101,Purchase of Care,09/06/2020,3747387-2618055,"2,579.92",BONDCARE WILLINGTON LTD.
Adult and Health Services,Head of Adults,Third Party Payments,471101,Purchase of Care,09/06/2020,3747387-2618095,"2,579.92",BONDCARE WILLINGTON LTD.
Adult and Health Services,Head of Adults,Third Party Payments,471101,Purchase of Care,09/06/2020,3747387-2618277,"1,289.96",BONDCARE WILLINGTON LTD.
Adult and Health Services,Head of Adults,Third Party Payments,471101,Purchase of Care,09/06/2020,3747387-2618666,"2,579.92",BONDCARE WILLINGTON LTD.
Adult and Health Services,Head of Adults,Third Party Payments,471101,Purchase of Care,09/06/2020,3747387-2618714,"2,579.92",BONDCARE WILLINGTON LTD.
Adult and Health Services,Head of Adults,Third Party Payments,471101,Purchase of Care,09/06/2020,3747387-2619016,"2,579.92",BONDCARE WILLINGTON LTD.
Adult and Health Services,Head of Adults,Third Party Payments,471101,Purchase of Care,09/06/2020,3747387-2619063,"2,579.92",BONDCARE WILLINGTON LTD.
Adult and Health Services,Head of Adults,Third Party Payments,471101,Purchase of Care,09/06/2020,3747387-2619115,"2,579.92",BONDCARE WILLINGTON LTD.
Adult and Health Services,Head of Adults,Third Party Payments,471101,Purchase of Care,09/06/2020,3747387-2619147,"2,579.92",BONDCARE WILLINGTON LTD.
Adult and Health Services,Head of Adults,Third Party Payments,471101,Purchase of Care,09/06/2020,3747387-2619410,"2,579.92",BONDCARE WILLINGTON LTD.
Adult and Health Services,Head of Adults,Third Party Payments,471101,Purchase of Care,09/06/2020,3747387-2619636,"2,579.92",BONDCARE WILLINGTON LTD.
Adult and Health Services,Head of Adults,Third Party Payments,471101,Purchase of Care,09/06/2020,3747387-2619651,"2,579.92",BONDCARE WILLINGTON LTD.
Adult and Health Services,Head of Adults,Third Party Payments,471101,Purchase of Care,09/06/2020,3747387-2619920,"1,566.38",BONDCARE WILLINGTON LTD.
Adult and Health Services,Head of Adults,Third Party Payments,470101,Purchase of Care,09/06/2020,3747388-2616022,"2,566.48",BONDCARE WILLINGTON LTD.
Adult and Health Services,Head of Adults,Third Party Payments,470101,Purchase of Care,09/06/2020,3747388-2616046,"2,566.48",BONDCARE WILLINGTON LTD.
Adult and Health Services,Head of Adults,Third Party Payments,474101,Purchase of Care,09/06/2020,3747388-2616058,"2,589.44",BONDCARE WILLINGTON LTD.
Adult and Health Services,Head of Adults,Third Party Payments,470101,Purchase of Care,09/06/2020,3747388-2616091,"2,566.48",BONDCARE WILLINGTON LTD.
Adult and Health Services,Head of Adults,Third Party Payments,470101,Purchase of Care,09/06/2020,3747388-2616134,"2,566.48",BONDCARE WILLINGTON LTD.
Adult and Health Services,Head of Adults,Third Party Payments,470101,Purchase of Care,09/06/2020,3747388-2616188,"2,566.48",BONDCARE WILLINGTON LTD.
Adult and Health Services,Head of Adults,Third Party Payments,470101,Purchase of Care,09/06/2020,3747388-2616189,736.40,BONDCARE WILLINGTON LTD.
Adult and Health Services,Head of Adults,Third Party Payments,474101,Purchase of Care,09/06/2020,3747388-2616481,"2,589.44",BONDCARE WILLINGTON LTD.
Adult and Health Services,Head of Adults,Third Party Payments,474101,Purchase of Care,09/06/2020,3747388-2616497,"2,589.44",BONDCARE WILLINGTON LTD.
Adult and Health Services,Head of Adults,Third Party Payments,470101,Purchase of Care,09/06/2020,3747388-2616622,"2,566.48",BONDCARE WILLINGTON LTD.
Adult and Health Services,Head of Adults,Third Party Payments,474101,Purchase of Care,09/06/2020,3747388-2616680,"1,294.72",BONDCARE WILLINGTON LTD.
Adult and Health Services,Head of Adults,Third Party Payments,474999,Purchase of Care,09/06/2020,3747388-2616682,796.99,BONDCARE WILLINGTON LTD.
Adult and Health Services,Head of Adults,Third Party Payments,474101,Purchase of Care,09/06/2020,3747388-2616776,"2,589.44",BONDCARE WILLINGTON LTD.
Adult and Health Services,Head of Adults,Third Party Payments,474101,Purchase of Care,09/06/2020,3747388-2616843,"1,294.72",BONDCARE WILLINGTON LTD.
Adult and Health Services,Head of Adults,Third Party Payments,474101,Purchase of Care,09/06/2020,3747388-2616844,920.52,BONDCARE WILLINGTON LTD.
Adult and Health Services,Head of Adults,Third Party Payments,474999,Purchase of Care,09/06/2020,3747388-2616845,796.99,BONDCARE WILLINGTON LTD.
Adult and Health Services,Head of Adults,Third Party Payments,470101,Purchase of Care,09/06/2020,3747388-2616902,"2,566.48",BONDCARE WILLINGTON LTD.
Adult and Health Services,Head of Adults,Third Party Payments,471101,Purchase of Care,09/06/2020,3747388-2616903,921.40,BONDCARE WILLINGTON LTD.
Adult and Health Services,Head of Adults,Third Party Payments,474101,Purchase of Care,09/06/2020,3747388-2616919,"2,589.44",BONDCARE WILLINGTON LTD.
Adult and Health Services,Head of Adults,Third Party Payments,474101,Purchase of Care,09/06/2020,3747388-2616931,"2,589.44",BONDCARE WILLINGTON LTD.
Adult and Health Services,Head of Adults,Third Party Payments,470101,Purchase of Care,09/06/2020,3747388-2617402,"2,566.48",BONDCARE WILLINGTON LTD.
Adult and Health Services,Head of Adults,Third Party Payments,470101,Purchase of Care,09/06/2020,3747388-2617489,785.61,BONDCARE WILLINGTON LTD.
Adult and Health Services,Head of Adults,Third Party Payments,470101,Purchase of Care,09/06/2020,3747388-2617915,"2,566.48",BONDCARE WILLINGTON LTD.
Adult and Health Services,Head of Adults,Third Party Payments,470101,Purchase of Care,09/06/2020,3747388-2617916,526.00,BONDCARE WILLINGTON LTD.
Adult and Health Services,Head of Adults,Third Party Payments,470101,Purchase of Care,09/06/2020,3747388-2618035,"2,566.48",BONDCARE WILLINGTON LTD.
Adult and Health Services,Head of Adults,Third Party Payments,474101,Purchase of Care,09/06/2020,3747388-2618296,"2,589.44",BONDCARE WILLINGTON LTD.
Adult and Health Services,Head of Adults,Third Party Payments,471101,Purchase of Care,09/06/2020,3747388-2618323,"2,579.92",BONDCARE WILLINGTON LTD.
Adult and Health Services,Head of Adults,Third Party Payments,471101,Purchase of Care,09/06/2020,3747388-2618333,"2,579.92",BONDCARE WILLINGTON LTD.
Adult and Health Services,Head of Adults,Third Party Payments,474101,Purchase of Care,09/06/2020,3747388-2618837,"1,294.72",BONDCARE WILLINGTON LTD.
Adult and Health Services,Head of Adults,Third Party Payments,474101,Purchase of Care,09/06/2020,3747388-2618838,"2,393.32",BONDCARE WILLINGTON LTD.
Adult and Health Services,Head of Adults,Third Party Payments,474999,Purchase of Care,09/06/2020,3747388-2618839,796.99,BONDCARE WILLINGTON LTD.
Adult and Health Services,Head of Adults,Third Party Payments,474101,Purchase of Care,09/06/2020,3747388-2618849,"2,589.44",BONDCARE WILLINGTON LTD.
Adult and Health Services,Head of Adults,Third Party Payments,470101,Purchase of Care,09/06/2020,3747388-2619131,824.94,BONDCARE WILLINGTON LTD.
Adult and Health Services,Head of Adults,Third Party Payments,474101,Purchase of Care,09/06/2020,3747388-2619133,"2,589.44",BONDCARE WILLINGTON LTD.
Adult and Health Services,Head of Adults,Third Party Payments,470101,Purchase of Care,09/06/2020,3747388-2619427,865.71,BONDCARE WILLINGTON LTD.
Adult and Health Services,Head of Adults,Third Party Payments,474101,Purchase of Care,09/06/2020,3747388-2619478,"1,294.72",BONDCARE WILLINGTON LTD.
Adult and Health Services,Head of Adults,Third Party Payments,474999,Purchase of Care,09/06/2020,3747388-2619479,707.37,BONDCARE WILLINGTON LTD.
Adult and Health Services,Head of Adults,Third Party Payments,470101,Purchase of Care,09/06/2020,3747388-2619853,"1,344.40",BONDCARE WILLINGTON LTD.
Adult and Health Services,Head of Adults,Third Party Payments,470101,Purchase of Care,09/06/2020,3747388-2619884,"1,385.14",BONDCARE WILLINGTON LTD.
Adult and Health Services,Head of Adults,Third Party Payments,470101,Purchase of Care,09/06/2020,3747388-2621258,"2,688.84",BONDCARE WILLINGTON LTD.
Adult and Health Services,Head of Adults,Third Party Payments,470101,Purchase of Care,09/06/2020,3747388-2621259,"2,688.84",BONDCARE WILLINGTON LTD.
Adult and Health Services,Head of Adults,Third Party Payments,470101,Purchase of Care,09/06/2020,3747389-2615879,"2,566.48",BONDCARE WILLINGTON LTD.
Adult and Health Services,Head of Adults,Third Party Payments,470101,Purchase of Care,09/06/2020,3747389-2615913,"2,566.48",BONDCARE WILLINGTON LTD.
Adult and Health Services,Head of Adults,Third Party Payments,470101,Purchase of Care,09/06/2020,3747389-2615949,"2,566.48",BONDCARE WILLINGTON LTD.
Adult and Health Services,Head of Adults,Third Party Payments,470101,Purchase of Care,09/06/2020,3747389-2616097,"2,488.08",BONDCARE WILLINGTON LTD.
Adult and Health Services,Head of Adults,Third Party Payments,474101,Purchase of Care,09/06/2020,3747389-2616160,"2,589.44",BONDCARE WILLINGTON LTD.
Adult and Health Services,Head of Adults,Third Party Payments,470101,Purchase of Care,09/06/2020,3747389-2616222,"2,566.48",BONDCARE WILLINGTON LTD.
Adult and Health Services,Head of Adults,Third Party Payments,474101,Purchase of Care,09/06/2020,3747389-2616398,"2,600.64",BONDCARE WILLINGTON LTD.
Adult and Health Services,Head of Adults,Third Party Payments,470101,Purchase of Care,09/06/2020,3747389-2616483,"2,566.48",BONDCARE WILLINGTON LTD.
Adult and Health Services,Head of Adults,Third Party Payments,474101,Purchase of Care,09/06/2020,3747389-2616549,"2,589.44",BONDCARE WILLINGTON LTD.
Adult and Health Services,Head of Adults,Third Party Payments,470101,Purchase of Care,09/06/2020,3747389-2616710,"2,488.08",BONDCARE WILLINGTON LTD.
Adult and Health Services,Head of Adults,Third Party Payments,470101,Purchase of Care,09/06/2020,3747389-2617124,"2,790.20",BONDCARE WILLINGTON LTD.
Adult and Health Services,Head of Adults,Third Party Payments,470101,Purchase of Care,09/06/2020,3747389-2617198,"2,488.08",BONDCARE WILLINGTON LTD.
Adult and Health Services,Head of Adults,Third Party Payments,470101,Purchase of Care,09/06/2020,3747389-2617334,"2,488.08",BONDCARE WILLINGTON LTD.
Adult and Health Services,Head of Adults,Third Party Payments,470101,Purchase of Care,09/06/2020,3747389-2617352,"3,135.80",BONDCARE WILLINGTON LTD.
Adult and Health Services,Head of Adults,Third Party Payments,474101,Purchase of Care,09/06/2020,3747389-2617353,"3,174.48",BONDCARE WILLINGTON LTD.
Adult and Health Services,Head of Adults,Third Party Payments,474101,Purchase of Care,09/06/2020,3747389-2617464,"2,589.44",BONDCARE WILLINGTON LTD.
Adult and Health Services,Head of Adults,Third Party Payments,470101,Purchase of Care,09/06/2020,3747389-2617473,"2,488.08",BONDCARE WILLINGTON LTD.
Adult and Health Services,Head of Adults,Third Party Payments,470101,Purchase of Care,09/06/2020,3747389-2617731,"2,488.08",BONDCARE WILLINGTON LTD.
Adult and Health Services,Head of Adults,Third Party Payments,470101,Purchase of Care,09/06/2020,3747389-2617926,"2,488.08",BONDCARE WILLINGTON LTD.
Adult and Health Services,Head of Adults,Third Party Payments,474101,Purchase of Care,09/06/2020,3747389-2618470,"2,589.44",BONDCARE WILLINGTON LTD.
Adult and Health Services,Head of Adults,Third Party Payments,474101,Purchase of Care,09/06/2020,3747389-2618630,"2,589.44",BONDCARE WILLINGTON LTD.
Adult and Health Services,Head of Adults,Third Party Payments,470101,Purchase of Care,09/06/2020,3747389-2618653,"2,790.20",BONDCARE WILLINGTON LTD.
Adult and Health Services,Head of Adults,Third Party Payments,470101,Purchase of Care,09/06/2020,3747389-2618771,"7,768.95",BONDCARE WILLINGTON LTD.
Adult and Health Services,Head of Adults,Third Party Payments,470101,Purchase of Care,09/06/2020,3747389-2618833,"2,488.08",BONDCARE WILLINGTON LTD.
Adult and Health Services,Head of Adults,Third Party Payments,470101,Purchase of Care,09/06/2020,3747389-2618841,"2,488.08",BONDCARE WILLINGTON LTD.
Adult and Health Services,Head of Adults,Third Party Payments,470101,Purchase of Care,09/06/2020,3747389-2618915,"2,488.08",BONDCARE WILLINGTON LTD.
Adult and Health Services,Head of Adults,Third Party Payments,470101,Purchase of Care,09/06/2020,3747389-2619145,"2,488.08",BONDCARE WILLINGTON LTD.
Adult and Health Services,Head of Adults,Third Party Payments,470101,Purchase of Care,09/06/2020,3747389-2619215,"1,244.04",BONDCARE WILLINGTON LTD.
Adult and Health Services,Head of Adults,Third Party Payments,470101,Purchase of Care,09/06/2020,3747389-2619281,"2,488.08",BONDCARE WILLINGTON LTD.
Adult and Health Services,Head of Adults,Third Party Payments,474101,Purchase of Care,09/06/2020,3747389-2619319,"2,589.44",BONDCARE WILLINGTON LTD.
Adult and Health Services,Head of Adults,Third Party Payments,474101,Purchase of Care,09/06/2020,3747389-2619611,"1,587.24",BONDCARE WILLINGTON LTD.
Adult and Health Services,Head of Adults,Third Party Payments,474999,Purchase of Care,09/06/2020,3747389-2619612,789.61,BONDCARE WILLINGTON LTD.
Adult and Health Services,Head of Adults,Third Party Payments,474101,Purchase of Care,09/06/2020,3747389-2619976,739.84,BONDCARE WILLINGTON LTD.
Adult and Health Services,Head of Adults,Third Party Payments,474101,Purchase of Care,09/06/2020,3747389-2620522,516.25,BONDCARE WILLINGTON LTD.
Adult and Health Services,Head of Adults,Third Party Payments,474101,Purchase of Care,09/06/2020,3747389-2621237,655.32,BONDCARE WILLINGTON LTD.
Adult and Health Services,Head of Adults,Third Party Payments,470101,Purchase of Care,09/06/2020,3747390-2616685,"2,163.85",BONDCARE WILLINGTON LTD.
Adult and Health Services,Head of Adults,Third Party Payments,470101,Purchase of Care,09/06/2020,3747391-2619850,"22,461.33",BOWDEN DERRA PARK LTD.
Adult and Health Services,Head of Adults,Third Party Payments,471101,Purchase of Care,09/06/2020,3747392-2616725,"2,579.92",BROOMHOUSE CARE LTD.
Adult and Health Services,Head of Adults,Third Party Payments,470101,Purchase of Care,09/06/2020,3747392-2616780,"2,488.08",BROOMHOUSE CARE LTD.
Adult and Health Services,Head of Adults,Third Party Payments,471101,Purchase of Care,09/06/2020,3747392-2616818,"2,579.92",BROOMHOUSE CARE LTD.
Adult and Health Services,Head of Adults,Third Party Payments,471101,Purchase of Care,09/06/2020,3747392-2617043,"2,579.92",BROOMHOUSE CARE LTD.
Adult and Health Services,Head of Adults,Third Party Payments,471101,Purchase of Care,09/06/2020,3747392-2617146,"2,579.92",BROOMHOUSE CARE LTD.
Adult and Health Services,Head of Adults,Third Party Payments,470101,Purchase of Care,09/06/2020,3747392-2617186,"2,488.08",BROOMHOUSE CARE LTD.
Adult and Health Services,Head of Adults,Third Party Payments,471101,Purchase of Care,09/06/2020,3747392-2617571,"2,579.92",BROOMHOUSE CARE LTD.
Adult and Health Services,Head of Adults,Third Party Payments,471101,Purchase of Care,09/06/2020,3747392-2617575,"2,579.92",BROOMHOUSE CARE LTD.
Adult and Health Services,Head of Adults,Third Party Payments,470101,Purchase of Care,09/06/2020,3747392-2617637,"2,488.08",BROOMHOUSE CARE LTD.
Adult and Health Services,Head of Adults,Third Party Payments,470101,Purchase of Care,09/06/2020,3747392-2617912,"2,488.08",BROOMHOUSE CARE LTD.
Adult and Health Services,Head of Adults,Third Party Payments,471101,Purchase of Care,09/06/2020,3747392-2617953,"2,579.92",BROOMHOUSE CARE LTD.
Adult and Health Services,Head of Adults,Third Party Payments,471101,Purchase of Care,09/06/2020,3747392-2618112,"1,289.96",BROOMHOUSE CARE LTD.
Adult and Health Services,Head of Adults,Third Party Payments,471101,Purchase of Care,09/06/2020,3747392-2618211,"2,579.92",BROOMHOUSE CARE LTD.
Adult and Health Services,Head of Adults,Third Party Payments,471101,Purchase of Care,09/06/2020,3747392-2618529,"2,579.92",BROOMHOUSE CARE LTD.
Adult and Health Services,Head of Adults,Third Party Payments,471101,Purchase of Care,09/06/2020,3747392-2618609,"2,579.92",BROOMHOUSE CARE LTD.
Adult and Health Services,Head of Adults,Third Party Payments,471101,Purchase of Care,09/06/2020,3747392-2618955,"2,579.92",BROOMHOUSE CARE LTD.
Adult and Health Services,Head of Adults,Third Party Payments,470101,Purchase of Care,09/06/2020,3747392-2618960,"2,488.08",BROOMHOUSE CARE LTD.
Adult and Health Services,Head of Adults,Third Party Payments,471101,Purchase of Care,09/06/2020,3747392-2619074,"2,579.92",BROOMHOUSE CARE LTD.
Adult and Health Services,Head of Adults,Third Party Payments,470101,Purchase of Care,09/06/2020,3747392-2619279,"2,488.08",BROOMHOUSE CARE LTD.
Adult and Health Services,Head of Adults,Third Party Payments,470101,Purchase of Care,09/06/2020,3747392-2619491,"2,488.08",BROOMHOUSE CARE LTD.
Adult and Health Services,Head of Adults,Third Party Payments,474101,Purchase of Care,09/06/2020,3747393-2617715,"1,056.44",BUPA CARE HOMES LTD.
Adult and Health Services,Head of Adults,Third Party Payments,474999,Purchase of Care,09/06/2020,3747393-2617716,627.25,BUPA CARE HOMES LTD.
Adult and Health Services,Head of Adults,Third Party Payments,470101,Purchase of Care,09/06/2020,3747394-2618082,"2,292.00",BURLINGTON CARE LTD.
Adult and Health Services,Head of Adults,Third Party Payments,470101,Purchase of Care,09/06/2020,3747394-2618275,"2,292.00",BURLINGTON CARE LTD.
Adult and Health Services,Head of Adults,Third Party Payments,470101,Purchase of Care,09/06/2020,3747395-2615995,"1,332.90",CARE UK COMMUNITY PARTNERSHIPS LTD.
Adult and Health Services,Head of Adults,Third Party Payments,470101,Purchase of Care,09/06/2020,3747395-2616056,"2,488.08",CARE UK COMMUNITY PARTNERSHIPS LTD.
Adult and Health Services,Head of Adults,Third Party Payments,474101,Purchase of Care,09/06/2020,3747395-2616115,"1,294.72",CARE UK COMMUNITY PARTNERSHIPS LTD.
Adult and Health Services,Head of Adults,Third Party Payments,474999,Purchase of Care,09/06/2020,3747395-2616116,796.99,CARE UK COMMUNITY PARTNERSHIPS LTD.
Adult and Health Services,Head of Adults,Third Party Payments,470101,Purchase of Care,09/06/2020,3747395-2616158,"2,488.08",CARE UK COMMUNITY PARTNERSHIPS LTD.
Adult and Health Services,Head of Adults,Third Party Payments,471101,Purchase of Care,09/06/2020,3747395-2616380,"2,579.92",CARE UK COMMUNITY PARTNERSHIPS LTD.
Adult and Health Services,Head of Adults,Third Party Payments,471101,Purchase of Care,09/06/2020,3747395-2616455,"2,579.92",CARE UK COMMUNITY PARTNERSHIPS LTD.
Adult and Health Services,Head of Adults,Third Party Payments,471101,Purchase of Care,09/06/2020,3747395-2616551,"2,579.92",CARE UK COMMUNITY PARTNERSHIPS LTD.
Adult and Health Services,Head of Adults,Third Party Payments,474101,Purchase of Care,09/06/2020,3747395-2616600,"2,589.44",CARE UK COMMUNITY PARTNERSHIPS LTD.
Adult and Health Services,Head of Adults,Third Party Payments,470101,Purchase of Care,09/06/2020,3747395-2617094,"2,488.08",CARE UK COMMUNITY PARTNERSHIPS LTD.
Adult and Health Services,Head of Adults,Third Party Payments,470101,Purchase of Care,09/06/2020,3747395-2617119,"2,488.08",CARE UK COMMUNITY PARTNERSHIPS LTD.
Adult and Health Services,Head of Adults,Third Party Payments,474101,Purchase of Care,09/06/2020,3747395-2617236,"1,294.72",CARE UK COMMUNITY PARTNERSHIPS LTD.
Adult and Health Services,Head of Adults,Third Party Payments,474999,Purchase of Care,09/06/2020,3747395-2617237,530.25,CARE UK COMMUNITY PARTNERSHIPS LTD.
Adult and Health Services,Head of Adults,Third Party Payments,470101,Purchase of Care,09/06/2020,3747395-2617325,"2,488.08",CARE UK COMMUNITY PARTNERSHIPS LTD.
Adult and Health Services,Head of Adults,Third Party Payments,471101,Purchase of Care,09/06/2020,3747395-2617331,"2,579.92",CARE UK COMMUNITY PARTNERSHIPS LTD.
Adult and Health Services,Head of Adults,Third Party Payments,471101,Purchase of Care,09/06/2020,3747395-2617332,"3,156.16",CARE UK COMMUNITY PARTNERSHIPS LTD.
Adult and Health Services,Head of Adults,Third Party Payments,474101,Purchase of Care,09/06/2020,3747395-2617524,"1,294.72",CARE UK COMMUNITY PARTNERSHIPS LTD.
Adult and Health Services,Head of Adults,Third Party Payments,474999,Purchase of Care,09/06/2020,3747395-2617525,506.00,CARE UK COMMUNITY PARTNERSHIPS LTD.
Adult and Health Services,Head of Adults,Third Party Payments,470101,Purchase of Care,09/06/2020,3747395-2617767,"2,488.08",CARE UK COMMUNITY PARTNERSHIPS LTD.
Adult and Health Services,Head of Adults,Third Party Payments,470101,Purchase of Care,09/06/2020,3747395-2618134,"2,488.08",CARE UK COMMUNITY PARTNERSHIPS LTD.
Adult and Health Services,Head of Adults,Third Party Payments,474101,Purchase of Care,09/06/2020,3747395-2618375,"2,589.44",CARE UK COMMUNITY PARTNERSHIPS LTD.
Adult and Health Services,Head of Adults,Third Party Payments,470101,Purchase of Care,09/06/2020,3747395-2618502,"2,488.08",CARE UK COMMUNITY PARTNERSHIPS LTD.
Adult and Health Services,Head of Adults,Third Party Payments,470101,Purchase of Care,09/06/2020,3747395-2618583,"2,488.08",CARE UK COMMUNITY PARTNERSHIPS LTD.
Adult and Health Services,Head of Adults,Third Party Payments,474101,Purchase of Care,09/06/2020,3747395-2618588,"2,589.44",CARE UK COMMUNITY PARTNERSHIPS LTD.
Adult and Health Services,Head of Adults,Third Party Payments,470101,Purchase of Care,09/06/2020,3747395-2618598,"2,488.08",CARE UK COMMUNITY PARTNERSHIPS LTD.
Adult and Health Services,Head of Adults,Third Party Payments,471101,Purchase of Care,09/06/2020,3747395-2619411,"2,579.92",CARE UK COMMUNITY PARTNERSHIPS LTD.
Adult and Health Services,Head of Adults,Third Party Payments,470101,Purchase of Care,09/06/2020,3747395-2619656,"2,488.08",CARE UK COMMUNITY PARTNERSHIPS LTD.
Adult and Health Services,Head of Adults,Third Party Payments,470101,Purchase of Care,09/06/2020,3747395-2620025,"3,603.42",CARE UK COMMUNITY PARTNERSHIPS LTD.
Adult and Health Services,Head of Adults,Third Party Payments,470101,Purchase of Care,09/06/2020,3747395-2620032,"2,043.78",CARE UK COMMUNITY PARTNERSHIPS LTD.
Adult and Health Services,Head of Adults,Third Party Payments,474101,Purchase of Care,09/06/2020,3747395-2620754,815.80,CARE UK COMMUNITY PARTNERSHIPS LTD.
Adult and Health Services,Head of Adults,Third Party Payments,474101,Purchase of Care,09/06/2020,3747395-2620836,516.25,CARE UK COMMUNITY PARTNERSHIPS LTD.
Adult and Health Services,Head of Adults,Third Party Payments,471101,Purchase of Care,09/06/2020,3747396-2617556,"2,504.00",CARE UK COMMUNITY PARTNERSHIPS LTD.
Adult and Health Services,Head of Adults,Third Party Payments,474101,Purchase of Care,09/06/2020,3747397-2619328,"2,280.00",CARE UK COMMUNITY PARTNERSHIPS LTD.
Adult and Health Services,Head of Adults,Third Party Payments,470101,Purchase of Care,09/06/2020,3747398-2616338,"2,488.08",CARE UK COMMUNITY PARTNERSHIPS LTD.
Adult and Health Services,Head of Adults,Third Party Payments,470101,Purchase of Care,09/06/2020,3747398-2616561,"2,488.08",CARE UK COMMUNITY PARTNERSHIPS LTD.
Adult and Health Services,Head of Adults,Third Party Payments,470101,Purchase of Care,09/06/2020,3747398-2616566,"2,488.08",CARE UK COMMUNITY PARTNERSHIPS LTD.
Adult and Health Services,Head of Adults,Third Party Payments,471101,Purchase of Care,09/06/2020,3747398-2616653,"2,579.92",CARE UK COMMUNITY PARTNERSHIPS LTD.
Adult and Health Services,Head of Adults,Third Party Payments,471101,Purchase of Care,09/06/2020,3747398-2616708,"2,579.92",CARE UK COMMUNITY PARTNERSHIPS LTD.
Adult and Health Services,Head of Adults,Third Party Payments,470101,Purchase of Care,09/06/2020,3747398-2616716,"1,184.80",CARE UK COMMUNITY PARTNERSHIPS LTD.
Adult and Health Services,Head of Adults,Third Party Payments,471101,Purchase of Care,09/06/2020,3747398-2617355,"2,579.92",CARE UK COMMUNITY PARTNERSHIPS LTD.
Adult and Health Services,Head of Adults,Third Party Payments,471101,Purchase of Care,09/06/2020,3747398-2617536,"2,579.92",CARE UK COMMUNITY PARTNERSHIPS LTD.
Adult and Health Services,Head of Adults,Third Party Payments,471101,Purchase of Care,09/06/2020,3747398-2617568,"2,579.92",CARE UK COMMUNITY PARTNERSHIPS LTD.
Adult and Health Services,Head of Adults,Third Party Payments,470101,Purchase of Care,09/06/2020,3747398-2617633,"2,488.08",CARE UK COMMUNITY PARTNERSHIPS LTD.
Adult and Health Services,Head of Adults,Third Party Payments,470101,Purchase of Care,09/06/2020,3747398-2618028,"1,244.04",CARE UK COMMUNITY PARTNERSHIPS LTD.
Adult and Health Services,Head of Adults,Third Party Payments,471101,Purchase of Care,09/06/2020,3747398-2618167,"2,579.92",CARE UK COMMUNITY PARTNERSHIPS LTD.
Adult and Health Services,Head of Adults,Third Party Payments,471101,Purchase of Care,09/06/2020,3747398-2618252,"2,579.92",CARE UK COMMUNITY PARTNERSHIPS LTD.
Adult and Health Services,Head of Adults,Third Party Payments,471101,Purchase of Care,09/06/2020,3747398-2618340,"2,579.92",CARE UK COMMUNITY PARTNERSHIPS LTD.
Adult and Health Services,Head of Adults,Third Party Payments,470101,Purchase of Care,09/06/2020,3747398-2618893,"2,488.08",CARE UK COMMUNITY PARTNERSHIPS LTD.
Adult and Health Services,Head of Adults,Third Party Payments,471101,Purchase of Care,09/06/2020,3747398-2618900,"2,579.92",CARE UK COMMUNITY PARTNERSHIPS LTD.
Adult and Health Services,Head of Adults,Third Party Payments,470101,Purchase of Care,09/06/2020,3747398-2619475,"2,488.08",CARE UK COMMUNITY PARTNERSHIPS LTD.
Adult and Health Services,Head of Adults,Third Party Payments,470101,Purchase of Care,09/06/2020,3747399-2615897,"2,608.08",CARE UK COMMUNITY PARTNERSHIPS LTD.
Adult and Health Services,Head of Adults,Third Party Payments,470101,Purchase of Care,09/06/2020,3747399-2616251,"2,488.08",CARE UK COMMUNITY PARTNERSHIPS LTD.
Adult and Health Services,Head of Adults,Third Party Payments,470101,Purchase of Care,09/06/2020,3747399-2616626,"2,488.08",CARE UK COMMUNITY PARTNERSHIPS LTD.
Adult and Health Services,Head of Adults,Third Party Payments,470101,Purchase of Care,09/06/2020,3747399-2616907,"2,488.08",CARE UK COMMUNITY PARTNERSHIPS LTD.
Adult and Health Services,Head of Adults,Third Party Payments,470101,Purchase of Care,09/06/2020,3747399-2617290,"2,488.08",CARE UK COMMUNITY PARTNERSHIPS LTD.
Adult and Health Services,Head of Adults,Third Party Payments,470101,Purchase of Care,09/06/2020,3747399-2617570,"2,488.08",CARE UK COMMUNITY PARTNERSHIPS LTD.
Adult and Health Services,Head of Adults,Third Party Payments,470101,Purchase of Care,09/06/2020,3747399-2617771,"2,488.08",CARE UK COMMUNITY PARTNERSHIPS LTD.
Adult and Health Services,Head of Adults,Third Party Payments,470101,Purchase of Care,09/06/2020,3747399-2618003,"2,488.08",CARE UK COMMUNITY PARTNERSHIPS LTD.
Adult and Health Services,Head of Adults,Third Party Payments,470101,Purchase of Care,09/06/2020,3747399-2618482,"2,488.08",CARE UK COMMUNITY PARTNERSHIPS LTD.
Adult and Health Services,Head of Adults,Third Party Payments,470101,Purchase of Care,09/06/2020,3747399-2618785,"2,488.08",CARE UK COMMUNITY PARTNERSHIPS LTD.
Adult and Health Services,Head of Adults,Third Party Payments,470101,Purchase of Care,09/06/2020,3747399-2618805,"2,488.08",CARE UK COMMUNITY PARTNERSHIPS LTD.
Adult and Health Services,Head of Adults,Third Party Payments,470101,Purchase of Care,09/06/2020,3747399-2618918,"2,488.08",CARE UK COMMUNITY PARTNERSHIPS LTD.
Adult and Health Services,Head of Adults,Third Party Payments,470101,Purchase of Care,09/06/2020,3747399-2618950,"2,488.08",CARE UK COMMUNITY PARTNERSHIPS LTD.
Adult and Health Services,Head of Adults,Third Party Payments,470101,Purchase of Care,09/06/2020,3747399-2618952,"2,488.08",CARE UK COMMUNITY PARTNERSHIPS LTD.
Adult and Health Services,Head of Adults,Third Party Payments,470101,Purchase of Care,09/06/2020,3747399-2619030,"2,488.08",CARE UK COMMUNITY PARTNERSHIPS LTD.
Adult and Health Services,Head of Adults,Third Party Payments,470101,Purchase of Care,09/06/2020,3747399-2619110,710.88,CARE UK COMMUNITY PARTNERSHIPS LTD.
Adult and Health Services,Head of Adults,Third Party Payments,470101,Purchase of Care,09/06/2020,3747399-2619627,"2,488.08",CARE UK COMMUNITY PARTNERSHIPS LTD.
Adult and Health Services,Head of Adults,Third Party Payments,470101,Purchase of Care,09/06/2020,3747399-2620050,799.74,CARE UK COMMUNITY PARTNERSHIPS LTD.
Adult and Health Services,Head of Adults,Third Party Payments,471101,Purchase of Care,09/06/2020,3747400-2617158,"2,388.00",CARE UK COMMUNITY PARTNERSHIPS LTD.
Adult and Health Services,Head of Adults,Third Party Payments,470101,Purchase of Care,09/06/2020,3747401-2617142,"2,316.16",CARE UK COMMUNITY PARTNERSHIPS LTD.
Adult and Health Services,Head of Adults,Third Party Payments,470101,Purchase of Care,09/06/2020,3747402-2615842,"2,688.96",CARELINE LIFESTYLES (UK) LTD.
Adult and Health Services,Head of Adults,Third Party Payments,470101,Purchase of Care,09/06/2020,3747403-2615957,"3,328.00",CARELINE LIFESTYLES (UK) LTD.
Adult and Health Services,Head of Adults,Third Party Payments,474101,Purchase of Care,09/06/2020,3747404-2616169,"2,638.00",CARELINE LIFESTYLES (UK) LTD.
Adult and Health Services,Head of Adults,Third Party Payments,470101,Purchase of Care,09/06/2020,3747404-2616170,817.60,CARELINE LIFESTYLES (UK) LTD.
Adult and Health Services,Head of Adults,Third Party Payments,474101,Purchase of Care,09/06/2020,3747404-2616367,"3,326.16",CARELINE LIFESTYLES (UK) LTD.
Adult and Health Services,Head of Adults,Third Party Payments,470101,Purchase of Care,09/06/2020,3747404-2616368,"1,168.00",CARELINE LIFESTYLES (UK) LTD.
Adult and Health Services,Head of Adults,Third Party Payments,474101,Purchase of Care,09/06/2020,3747405-2615914,"3,067.28",CARELINE LIFESTYLES (UK) LTD.
Adult and Health Services,Head of Adults,Third Party Payments,474101,Purchase of Care,09/06/2020,3747406-2617828,"3,370.72",CARELINE LIFESTYLES.
Adult and Health Services,Head of Adults,Third Party Payments,474101,Purchase of Care,09/06/2020,3747406-2618639,"3,370.72",CARELINE LIFESTYLES.
Adult and Health Services,Head of Adults,Third Party Payments,474101,Purchase of Care,09/06/2020,3747406-2618640,"4,496.80",CARELINE LIFESTYLES.
Adult and Health Services,Head of Adults,Third Party Payments,474999,Purchase of Care,09/06/2020,3747406-2618641,722.13,CARELINE LIFESTYLES.
Adult and Health Services,Head of Adults,Third Party Payments,474101,Purchase of Care,09/06/2020,3747406-2618684,"3,210.60",CARELINE LIFESTYLES.
Adult and Health Services,Head of Adults,Third Party Payments,470101,Purchase of Care,09/06/2020,3747407-2616996,"2,094.96",CAREWELL (HEALTH CARE) LTD.
Adult and Health Services,Head of Adults,Third Party Payments,474101,Purchase of Care,09/06/2020,3747407-2617012,"2,196.32",CAREWELL (HEALTH CARE) LTD.
Adult and Health Services,Head of Adults,Third Party Payments,470101,Purchase of Care,09/06/2020,3747407-2617051,"2,094.96",CAREWELL (HEALTH CARE) LTD.
Adult and Health Services,Head of Adults,Third Party Payments,470101,Purchase of Care,09/06/2020,3747407-2617342,"2,094.96",CAREWELL (HEALTH CARE) LTD.
Adult and Health Services,Head of Adults,Third Party Payments,470101,Purchase of Care,09/06/2020,3747407-2617435,"2,094.96",CAREWELL (HEALTH CARE) LTD.
Adult and Health Services,Head of Adults,Third Party Payments,470101,Purchase of Care,09/06/2020,3747407-2617439,"2,094.96",CAREWELL (HEALTH CARE) LTD.
Adult and Health Services,Head of Adults,Third Party Payments,474101,Purchase of Care,09/06/2020,3747407-2617494,"2,196.32",CAREWELL (HEALTH CARE) LTD.
Adult and Health Services,Head of Adults,Third Party Payments,470101,Purchase of Care,09/06/2020,3747407-2617830,"2,094.96",CAREWELL (HEALTH CARE) LTD.
Adult and Health Services,Head of Adults,Third Party Payments,470101,Purchase of Care,09/06/2020,3747407-2617918,"2,094.96",CAREWELL (HEALTH CARE) LTD.
Adult and Health Services,Head of Adults,Third Party Payments,470101,Purchase of Care,09/06/2020,3747407-2618042,"2,094.96",CAREWELL (HEALTH CARE) LTD.
Adult and Health Services,Head of Adults,Third Party Payments,470101,Purchase of Care,09/06/2020,3747407-2618088,"2,094.96",CAREWELL (HEALTH CARE) LTD.
Adult and Health Services,Head of Adults,Third Party Payments,470101,Purchase of Care,09/06/2020,3747407-2618182,"2,386.16",CAREWELL (HEALTH CARE) LTD.
Adult and Health Services,Head of Adults,Third Party Payments,470101,Purchase of Care,09/06/2020,3747407-2618235,"2,094.96",CAREWELL (HEALTH CARE) LTD.
Adult and Health Services,Head of Adults,Third Party Payments,474101,Purchase of Care,09/06/2020,3747407-2618356,"2,196.32",CAREWELL (HEALTH CARE) LTD.
Adult and Health Services,Head of Adults,Third Party Payments,470101,Purchase of Care,09/06/2020,3747407-2618578,"2,094.96",CAREWELL (HEALTH CARE) LTD.
Adult and Health Services,Head of Adults,Third Party Payments,474101,Purchase of Care,09/06/2020,3747407-2618719,"1,406.04",CAREWELL (HEALTH CARE) LTD.
Adult and Health Services,Head of Adults,Third Party Payments,470101,Purchase of Care,09/06/2020,3747407-2618765,"2,094.96",CAREWELL (HEALTH CARE) LTD.
Adult and Health Services,Head of Adults,Third Party Payments,470101,Purchase of Care,09/06/2020,3747407-2619032,"2,094.96",CAREWELL (HEALTH CARE) LTD.
Adult and Health Services,Head of Adults,Third Party Payments,470101,Purchase of Care,09/06/2020,3747407-2619046,"2,094.96",CAREWELL (HEALTH CARE) LTD.
Adult and Health Services,Head of Adults,Third Party Payments,470101,Purchase of Care,09/06/2020,3747407-2619095,"2,094.96",CAREWELL (HEALTH CARE) LTD.
